{"text_format":"1","workbook":"xlsx","n_sheets":60,"sheets":["عنوان","درسان","پيشگفتار","مجمع","2","3","4","5","6","7","8","9","10","11","12","13","14","15","16","17","18","19","20","21","22","23","24","25","26","27","28","29","30","31","32","33","34","35","36","37","38","39","40","41","42","43","44","45","46","47","48","49","50","51","52","53","54","55","56","57"],"not_rendered":{"charts":0,"images":0,"macros":1,"external_links":0,"defined_names":143,"comments":0,"pivot_tables":0},"unopened":[],"bounds":{"document_bytes":16777216,"sheet_cells":100000,"rows_first":2000,"rows_last":500,"rows_between":2000,"halvings":0,"cell_chars":16384,"cell_head_chars":4096},"cells_cut":0,"cells_raw":0,"read":"whole","date_system":"1900"}

{"sheet":"عنوان","index":0,"n_rows":35,"n_cols":1,"rows_kept":35,"cut":false,"hidden":false,"merged":[]}
[]
[]
[]
["سازمان حسابرسی"]
[]
[]
["شرکت سهامی عام نمونه"]
[]
["صورتهای مالی"]
[]
[]
["کمیته فنی"]
[]
["ویرایش ۱۴۰۵"]
[]
["رفتن به مجمع / فهرست"]
[]
[]
[]
[]
[]
[]
[]
[]
[]
[]
[]
[]
[]
[]
[]
[]
[]
[]
["راهنمای تطبیق PDF"]

{"sheet":"درسان","index":1,"n_rows":37,"n_cols":5,"rows_kept":37,"cut":false,"hidden":false,"merged":[[0,0,0,4],[1,0,1,4],[2,0,2,4]]}
["معرفی تجارت هوشمند درسان، محصولات، ابزارها و لینک‌های مهم","معرفی تجارت هوشمند درسان، محصولات، ابزارها و لینک‌های مهم","معرفی تجارت هوشمند درسان، محصولات، ابزارها و لینک‌های مهم","معرفی تجارت هوشمند درسان، محصولات، ابزارها و لینک‌های مهم","معرفی تجارت هوشمند درسان، محصولات، ابزارها و لینک‌های مهم"]
["تاریخ تهیه: 2026-06-22 | منبع: thdorsan.com","تاریخ تهیه: 2026-06-22 | منبع: thdorsan.com","تاریخ تهیه: 2026-06-22 | منبع: thdorsan.com","تاریخ تهیه: 2026-06-22 | منبع: thdorsan.com","تاریخ تهیه: 2026-06-22 | منبع: thdorsan.com"]
["تجارت هوشمند درسان مجموعه‌ای تخصصی در حوزه نرم‌افزارهای مالی، مالیاتی، حسابداری، سامانه مودیان، حقوق و دستمزد، آموزش و ابزارهای کاربردی برای حسابداران، مدیران مالی و مشاوران مالیاتی است.","تجارت هوشمند درسان مجموعه‌ای تخصصی در حوزه نرم‌افزارهای مالی، مالیاتی، حسابداری، سامانه مودیان، حقوق و دستمزد، آموزش و ابزارهای کاربردی برای حسابداران، مدیران مالی و مشاوران مالیاتی است.","تجارت هوشمند درسان مجموعه‌ای تخصصی در حوزه نرم‌افزارهای مالی، مالیاتی، حسابداری، سامانه مودیان، حقوق و دستمزد، آموزش و ابزارهای کاربردی برای حسابداران، مدیران مالی و مشاوران مالیاتی است.","تجارت هوشمند درسان مجموعه‌ای تخصصی در حوزه نرم‌افزارهای مالی، مالیاتی، حسابداری، سامانه مودیان، حقوق و دستمزد، آموزش و ابزارهای کاربردی برای حسابداران، مدیران مالی و مشاوران مالیاتی است.","تجارت هوشمند درسان مجموعه‌ای تخصصی در حوزه نرم‌افزارهای مالی، مالیاتی، حسابداری، سامانه مودیان، حقوق و دستمزد، آموزش و ابزارهای کاربردی برای حسابداران، مدیران مالی و مشاوران مالیاتی است."]
[]
["ردیف","بخش","عنوان","توضیح کوتاه","لینک قابل کلیک"]
[1,"معرفی و دسترسی اصلی","تجارت هوشمند درسان","مجموعه تخصصی نرم‌افزارها، ابزارها، آموزش‌ها و محتوای مالی، مالیاتی و حسابداری.",{"$f":"HYPERLINK(\"https://thdorsan.com/\",\"مشاهده\")","v":"مشاهده"}]
[2,"معرفی و دسترسی اصلی","مجموعه قوانین مالی و مالیاتی","بانک جستجوی قوانین، بخشنامه‌ها، آرا و مقررات مالی و مالیاتی.",{"$f":"HYPERLINK(\"https://thdorsan.com/laws\",\"مشاهده\")","v":"مشاهده"}]
[3,"معرفی و دسترسی اصلی","اخبار و تازه‌ها","صفحه تازه‌ترین اخبار، اطلاعیه‌ها و محتوای به‌روز درسان.",{"$f":"HYPERLINK(\"https://thdorsan.com/news\",\"مشاهده\")","v":"مشاهده"}]
[4,"معرفی و دسترسی اصلی","تماس با ما","راه ارتباطی با تجارت هوشمند درسان.",{"$f":"HYPERLINK(\"https://thdorsan.com/form/1-%D8%AA%D9%85%D8%A7%D8%B3-%D8%A8%D8%A7-%D9%85%D8%A7\",\"مشاهده\")","v":"مشاهده"}]
[5,"محصولات و نرم‌افزارها","نرم‌افزار واسط سامانه مودیان","صدور و ارسال صورتحساب الکترونیکی در سامانه مودیان.",{"$f":"HYPERLINK(\"https://thdorsan.com/%D9%86%D8%B1%D9%85-%D8%A7%D9%81%D8%B2%D8%A7%D8%B1-%D9%88%D8%A7%D8%B3%D8%B7-%D8%B3%D8%A7%D9%85%D8%A7%D9%86%D9%87-%D9%85%D9%88%D8%AF%DB%8C%D8%A7%D9%86\",\"مشاهده\")","v":"مشاهده"}]
[6,"محصولات و نرم‌افزارها","نرم‌افزار حقوق و دستمزد درسان","محاسبه حقوق، بیمه، مالیات و فیش حقوقی.",{"$f":"HYPERLINK(\"https://thdorsan.com/%D9%86%D8%B1%D9%85-%D8%A7%D9%81%D8%B2%D8%A7%D8%B1-%D8%AD%D9%82%D9%88%D9%82-%D9%88-%D8%AF%D8%B3%D8%AA%D9%85%D8%B2%D8%AF\",\"مشاهده\")","v":"مشاهده"}]
[7,"محصولات و نرم‌افزارها","نرم‌افزار مالیاتی سام / درسام","جستجوی هوشمند قوانین، مقررات، بخشنامه‌ها، آرا و اسناد مالیاتی.",{"$f":"HYPERLINK(\"https://thdorsan.com/sam/%D9%86%D8%B1%D9%85-%D8%A7%D9%81%D8%B2%D8%A7%D8%B1-%D9%85%D8%A7%D9%84%DB%8C%D8%A7%D8%AA%DB%8C-%D8%B3%D8%A7%D9%85\",\"مشاهده\")","v":"مشاهده"}]
[8,"محصولات و نرم‌افزارها","درسان‌دسک","نرم‌افزار ریموت دسکتاپ و پشتیبانی از راه دور.",{"$f":"HYPERLINK(\"https://thdorsan.com/167879140066515/%D8%AF%D8%B1%D8%B3%D8%A7%D9%86-%D8%AF%D8%B3%DA%A9\",\"مشاهده\")","v":"مشاهده"}]
[9,"محصولات و نرم‌افزارها","درسان کلود","ذخیره‌ساز ابری سازمانی و آفیس آنلاین درسان.",{"$f":"HYPERLINK(\"https://thdorsan.com/%D8%AF%D8%B1%D8%B3%D8%A7%D9%86-%DA%A9%D9%84%D9%88%D8%AF-%D8%B0%D8%AE%DB%8C%D8%B1%D9%87-%D8%B3%D8%A7%D8%B2-%D8%A7%D8%A8%D8%B1%DB%8C-%D8%B3%D8%A7%D8%B2%D9%85%D8%A7%D9%86%DB%8C\",\"مشاهده\")","v":"مشاهده"}]
[10,"محصولات و نرم‌افزارها","درسینار","برگزاری جلسات، کلاس و وبینار آنلاین.",{"$f":"HYPERLINK(\"https://thdorsan.com/%DA%A9%D9%84%D8%A7%D8%B3-%D8%A2%D9%86%D9%84%D8%A7%DB%8C%D9%86-%D8%AF%D8%B1%D8%B3%DB%8C%D9%86%D8%A7%D8%B1\",\"مشاهده\")","v":"مشاهده"}]
[11,"محصولات و نرم‌افزارها","کتاب‌های مالیاتی و حسابداری","فروشگاه کتاب‌های تخصصی مالیات و حسابداری.",{"$f":"HYPERLINK(\"https://thdorsan.com/category/%DA%A9%D8%AA%D8%A7%D8%A8-%D9%87%D8%A7%DB%8C-%D9%85%D8%A7%D9%84%DB%8C%D8%A7%D8%AA%DB%8C-%D9%88-%D8%AD%D8%B3%D8%A7%D8%A8%D8%AF%D8%A7%D8%B1%DB%8C\",\"مشاهده\")","v":"مشاهده"}]
[12,"محصولات و نرم‌افزارها","دوره‌های آموزشی","دوره‌های آموزشی آفلاین و محتوای آموزشی قوانین مالیاتی.",{"$f":"HYPERLINK(\"https://thdorsan.com/category/%D8%AF%D9%88%D8%B1%D9%87%20%D9%87%D8%A7%DB%8C-%D8%A2%D9%85%D9%88%D8%B2%D8%B4%DB%8C-%D8%A2%D9%81%D9%84%D8%A7%DB%8C%D9%86-%D9%82%D9%88%D8%A7%D9%86%DB%8C%D9%86-%D9%85%D8%A7%D9%84%DB%8C%D8%A7%D8%AA%DB%8C\",\"مشاهده\")","v":"مشاهده"}]
[13,"ابزارهای مالیاتی","دریافت شناسه کالا و خدمات مودیان","ابزار جستجو و دریافت شناسه کالا و خدمت سامانه مودیان.",{"$f":"HYPERLINK(\"https://thdorsan.com/%D8%AF%D8%B1%DB%8C%D8%A7%D9%81%D8%AA-%D8%B4%D9%86%D8%A7%D8%B3%D9%87-%DA%A9%D8%A7%D9%84%D8%A7-%D9%88-%D8%AE%D8%AF%D9%85%D8%A7%D8%AA-%D8%B3%D8%A7%D9%85%D8%A7%D9%86%D9%87-%D9%85%D9%88%D8%AF%DB%8C%D8%A7%D9%86\",\"مشاهده\")","v":"مشاهده"}]
[14,"ابزارهای مالیاتی","استانداردسازی خروجی دفاتر تجاری","ابزار آماده‌سازی و استانداردسازی خروجی دفاتر تجاری.",{"$f":"HYPERLINK(\"https://thdorsan.com/%D8%A7%D8%B3%D8%AA%D8%A7%D9%86%D8%AF%D8%A7%D8%B1%D8%AF-%D8%B3%D8%A7%D8%B2%DB%8C-%D8%AE%D8%B1%D9%88%D8%AC%DB%8C-%D8%AF%D9%81%D8%A7%D8%AA%D8%B1-%D8%AA%D8%AC%D8%A7%D8%B1%DB%8C\",\"مشاهده\")","v":"مشاهده"}]
[15,"ابزارهای مالیاتی","ضرایب مالیاتی / اینتاکد","جستجوی ضرایب مالیاتی و اینتاکد.",{"$f":"HYPERLINK(\"https://thdorsan.com/%D8%B6%D8%B1%D8%A7%DB%8C%D8%A8-%D9%85%D8%A7%D9%84%DB%8C%D8%A7%D8%AA%DB%8C-%D8%A7%DB%8C%D9%86%D8%AA%D8%A7%DA%A9%D8%AF\",\"مشاهده\")","v":"مشاهده"}]
[16,"ابزارهای مالیاتی","محاسبه فروش در ارزش افزوده از خروجی کارپوشه","محاسبه آنلاین فروش در ارزش افزوده.",{"$f":"HYPERLINK(\"https://thdorsan.com/%D9%85%D8%AD%D8%A7%D8%B3%D8%A8%D9%87-%D8%A2%D9%86%D9%84%D8%A7%DB%8C%D9%86-%D9%81%D8%B1%D9%88%D8%B4-%D8%AF%D8%B1-%D8%A7%D8%B1%D8%B2%D8%B4-%D8%A7%D9%81%D8%B2%D9%88%D8%AF%D9%87\",\"مشاهده\")","v":"مشاهده"}]
[17,"ابزارهای مالیاتی","تولید کلید عمومی، خصوصی و CSR","تولید فایل‌های کلید و CSR برای سامانه مودیان.",{"$f":"HYPERLINK(\"https://thdorsan.com/%D8%B5%D8%AF%D9%88%D8%B1-CSR-%DA%A9%D9%84%DB%8C%D8%AF-%D8%B9%D9%85%D9%88%D9%85%DB%8C-%D9%88-%D8%AE%D8%B5%D9%88%D8%B5%DB%8C\",\"مشاهده\")","v":"مشاهده"}]
[18,"ابزارهای مالیاتی","محاسبه زمان مشمولیت صدور صورتحساب","ابزار تعیین زمان مشمولیت صدور صورتحساب الکترونیکی."]
[19,"ابزارهای مالیاتی","محاسبه‌گر جرایم مالیاتی","محاسبه جرایم مالیاتی بر اساس نوع تکلیف و مقرره.",{"$f":"HYPERLINK(\"https://thdorsan.com/562772163011511/%D9%85%D8%AD%D8%A7%D8%B3%D8%A8%D9%87-%DA%AF%D8%B1-%D8%AC%D8%B1%D8%A7%DB%8C%D9%85-%D9%85%D8%A7%D9%84%DB%8C%D8%A7%D8%AA%DB%8C\",\"مشاهده\")","v":"مشاهده"}]
[20,"ابزارهای مالیاتی","محاسبه هوشمند بخشودگی جرایم","ابزار برآورد و بررسی بخشودگی جرایم سامانه مودیان."]
[21,"ابزارهای مالیاتی","بررسی مشمولیت فراخوان‌های مالیات بر ارزش افزوده","ابزار بررسی ضریب فعالیت و مشمولیت مشاغل در ارزش افزوده."]
[22,"ابزارهای مالیاتی","محاسبه حقوق، فوق‌العاده و فیش حقوقی ۱۴۰۴","ابزار محاسبه آنلاین حقوق، مزایا و فیش حقوقی.",{"$f":"HYPERLINK(\"https://thdorsan.com/562773243234992/%D9%85%D8%AD%D8%A7%D8%B3%D8%A8%D9%87-%D8%AD%D9%82%D9%88%D9%82-%D9%81%D9%88%D9%82-%D8%A7%D9%84%D8%B9%D8%A7%D8%AF%D9%87-%D9%88-%D9%81%DB%8C%D8%B4-%D8%AD%D9%82%D9%88%D9%82%DB%8C\",\"مشاهده\")","v":"مشاهده"}]
[23,"ابزارهای مالیاتی","استعلام کد اقتصادی","ابزار استعلام کد اقتصادی اشخاص حقیقی و حقوقی.",{"$f":"HYPERLINK(\"https://thdorsan.com/InquiryNationalID-%D8%A7%D8%B3%D8%AA%D8%B9%D9%84%D8%A7%D9%85-%DA%A9%D8%AF-%D8%A7%D9%82%D8%AA%D8%B5%D8%A7%D8%AF%DB%8C\",\"مشاهده\")","v":"مشاهده"}]
[24,"ابزارهای مالیاتی","ادغام و ترکیب فایل کارپوشه و بزرگترین سریال","ادغام، ترکیب و مرتب‌سازی فایل‌های خروجی کارپوشه.",{"$f":"HYPERLINK(\"https://thdorsan.com/325/karedgham\",\"مشاهده\")","v":"مشاهده"}]
[25,"ابزارهای مالیاتی","محاسبه هوشمند استهلاک دارایی ثابت","جستجوی روش، نرخ و مدت استهلاک دارایی‌ها بر اساس ماده ۱۴۹.",{"$f":"HYPERLINK(\"https://thdorsan.com/sam/%D8%A7%D8%A8%D8%B2%D8%A7%D8%B1-%D8%A7%D8%B3%D8%AA%D9%87%D9%84%D8%A7%DA%A9-%D9%85%D8%A7%D8%AF%D9%87-149\",\"مشاهده\")","v":"مشاهده"}]
[26,"ابزارهای مالیاتی","گروه‌بندی هوشمند مشاغل","ابزار تشخیص گروه‌بندی مشاغل مالیاتی ماده ۹۵.",{"$f":"HYPERLINK(\"https://thdorsan.com/tools/%DA%AF%D8%B1%D9%88%D9%87-%D8%A8%D9%86%D8%AF%DB%8C-%D9%85%D8%B4%D8%A7%D8%BA%D9%84-%D9%85%D8%A7%D9%84%DB%8C%D8%A7%D8%AA%DB%8C-%D9%85%D8%A7%D8%AF%D9%87-95\",\"مشاهده\")","v":"مشاهده"}]
[27,"ابزارهای مالیاتی","ابزار تشخیص مشمولیت ماده ۲۷۲","تشخیص مشمولیت ارائه صورت‌های مالی حسابرسی‌شده.",{"$f":"HYPERLINK(\"https://thdorsan.com/finance/%D8%A7%D8%A8%D8%B2%D8%A7%D8%B1-%D8%AA%D8%B4%D8%AE%DB%8C%D8%B5-%D9%85%D8%B4%D9%85%D9%88%D9%84%DB%8C%D8%AA-%D9%85%D8%A7%D8%AF%D9%87-272\",\"مشاهده\")","v":"مشاهده"}]
[28,"آموزش و معرفی","آموزش نرم‌افزار حقوق و دستمزد درسان","آموزش کار با نرم‌افزار حقوق و دستمزد.",{"$f":"HYPERLINK(\"https://thdorsan.com/teach/1-%D8%AD%D9%82%D9%88%D9%82-%D9%88-%D8%AF%D8%B3%D8%AA%D9%85%D8%B2%D8%AF\",\"مشاهده\")","v":"مشاهده"}]
[29,"آموزش و معرفی","آموزش نرم‌افزار واسط سامانه مودیان","آموزش سامانه مودیان و نرم‌افزار واسط.",{"$f":"HYPERLINK(\"https://thdorsan.com/teach/19-%D9%88%D8%A7%D8%B3%D8%B7-%D8%B3%D8%A7%D9%85%D8%A7%D9%86%D9%87-%D9%85%D9%88%D8%AF%DB%8C%D8%A7%D9%86\",\"مشاهده\")","v":"مشاهده"}]
[30,"آموزش و معرفی","آموزش نرم‌افزار درسان‌دسک","آموزش استفاده و رفع مشکلات درسان‌دسک.",{"$f":"HYPERLINK(\"https://thdorsan.com/167879140066515/%D8%AF%D8%B1%D8%B3%D8%A7%D9%86-%D8%AF%D8%B3%DA%A9\",\"مشاهده\")","v":"مشاهده"}]
[31,"آموزش و معرفی","معرفی نرم‌افزار حقوق و دستمزد درسان","صفحه معرفی محصول حقوق و دستمزد.",{"$f":"HYPERLINK(\"https://thdorsan.com/%D9%86%D8%B1%D9%85-%D8%A7%D9%81%D8%B2%D8%A7%D8%B1-%D8%AD%D9%82%D9%88%D9%82-%D9%88-%D8%AF%D8%B3%D8%AA%D9%85%D8%B2%D8%AF\",\"مشاهده\")","v":"مشاهده"}]
[32,"آموزش و معرفی","معرفی نرم‌افزار واسط سامانه مودیان","صفحه معرفی نرم‌افزار واسط درسان.",{"$f":"HYPERLINK(\"https://thdorsan.com/%D9%86%D8%B1%D9%85-%D8%A7%D9%81%D8%B2%D8%A7%D8%B1-%D9%88%D8%A7%D8%B3%D8%B7-%D8%B3%D8%A7%D9%85%D8%A7%D9%86%D9%87-%D9%85%D9%88%D8%AF%DB%8C%D8%A7%D9%86\",\"مشاهده\")","v":"مشاهده"}]

{"sheet":"پيشگفتار","index":2,"n_rows":62,"n_cols":1,"rows_kept":62,"cut":false,"hidden":false,"merged":[]}
["پیشگفتار"]
[]
["با توجه به تغییرات به‌عمل‌آمده در استانداردهای حسابداری و در راستای بهبود افشای اطلاعات در صورت‌های مالی شرکت‌های تولیدی، سازمان حسابرسی به منظور تأمین نیازهای اطلاعاتی سرمایه‌گذاران و سایر ذینفعان، صورت‌های مالی نمونه برای شرکت‌های تولیدی را بازنگری نموده است. ئ سعی کرده است که صورت های مالی مذکور حاوی اطلاعات مورد نیاز کلیه ذینفعان باشد . در این خصوص ، توجه استفاده کنندگان صورت های مالی را به نکات زیر جلب می نماید : "]
[]
["۱- این صورت‌های مالی دربرگیرنده حداقل الزامات ارائه و افشا است."]
[]
["۲- در تهیه صورت‌های مالی نمونه، بر افشای کافی و مناسب اطلاعات در شرایط عمومی و کلی تأکید شده و از پرداختن به اطلاعات مربوط به شرایط خاص خودداری شده است. به بیان دیگر ، ملاک درج اقلام در صورت های مالی اساسی نمونه و یادداشت های توضیحی آن ، غالبا عمومیت و اهمیت اقلام بوده است . از این رو ، در موارد با اهمیت ، اقلام باید جداگانه گزارش شود و در خصوص سایر موارد مستلزم افشا نیز باید حسب مورد از استادندارد های حسابداری مربوط ، پیروی گردد."]
[]
["۳- در برخی شرکت‌ها ممکن است سرفصل‌هایی وجود داشته باشد که در این صورت‌های مالی نمونه پیش‌بینی نشده است؛ در چنین شرایطی سرفصل‌های مذکور باید حسب مورد در جای مناسب خود به صورت‌های مالی اضافه شود."]
[]
["۴- استفاده از عنوان «سایر» در یادداشت‌های توضیحی نباید منجر به عدم افشای اطلاعات بااهمیت شود."]
[]
["۵- به منظور ارائه منصفانه صورت‌های مالی، شرکت ملزم است در مواردی که رعایت الزامات خاصی از استانداردهای حسابداری برای بهبود درک استفاده‌کنندگان کافی نباشد، اطلاعات بیشتری افشا کند. رویداد ها وشرابط ، بر وضعیت مالی و عملکرد مالی شرکت کافی نباشد ، اطلاعات بیشتری را افشا کند ."]
[]
["۶- در مواردی که مدیریت در ارزیابی های خود ، از ابهامی با اهمیت در ارتباط با رویدادها و شرایطی آگاه می شود که می تواند نسیت به توانایی شرکت به ادامه فعالیت، تردیدی عمده ایجاد کند ، شرکت باید این ابهام را افشا کند. "]
[]
["۷- شرکت باید هر طبقه بااهمیت از اقلام مشابه را به طور جداگانه ارائه کند. شرکت باید اقلامی را که ماهیت یا کارکرد مشابه ندارند، به طور جداگانه ارائه کند مگر آنکه این اقلام کم‌اهمیت باشند.شرکت نباید با پنهان کردن اطلاعات با اهمیت در میان اطلاعات بی اهمیت یا با تجمیع اقلام با اهمیتی که ماهیت و کارکرد متفاوت دارند ، از قابلیت درک صورت های مالی بکاهد ، چرا که ارائه اطلاعات تفصیلی کم اهمیت ، زمینه نادیده گرفتن اطلاعات با اهمیت را فراهم می کند ."]
[]
["۸- مهم‌ترین تغییرات نسبت به نسخه قبلی صورت‌های مالی نمونه ابلاغ‌شده در سال ۱۴۰۱، به‌کارگیری استاندارد حسابداری ۴۳ «درآمد عملیاتی حاصل از قرارداد با مشتریان» در تهیه صورت‌های مالی است که دوره مالی آنها از تاریخ ۱۴۰۴/۰۱/۰۱ و بعد از آن شروع می‌شود."]
[]
["مفروضات :"]
["شرکت نمونه (سهامی عام) ، شرکتی توابدی و غیر توایدی است ."]
["شرکت نمونه ، شرکت فرعی است که که شرکت فرعی ، وابسته، مشارکت خاص و عملیات خارجی ندارد ."]
["در پایان ، از اعضای محترم کمیته فنی سازمان حسابرسی ( آقایان رضا اسماعیل زاده، مجتبی علی میرزایی ، حسن کرمی ، فرج لطف الهی ، حمید رضا مظفری، کیهان مهام و خانم هاله عسگریان ، الهام حمیدی و حلیمه رحمانی) و همچنین اعضای محترم کارگروه فرعی کمیته فنی (آقایان محمد میکائیلی و حمید فودازی)که در تهیه این صورت های مالی نقش موثری داشته اند قدردانی می شود . "]
["بازگشت به فهرست"]
[]
[]
[]
[]
[]
[]
[]
[]
[]
[]
[]
[]
[]
[]
[]
[]
[]
[]
[]
[]
[]
[]
[]
[]
[]
[]
[]
[]
[]
[]
[]
[]
[]
[]
[]
[]
["راهنمای تطبیق PDF"]

{"sheet":"مجمع","index":3,"n_rows":28,"n_cols":10,"rows_kept":28,"cut":false,"hidden":false,"merged":[[19,0,19,9],[25,8,25,9],[24,0,24,1],[8,0,8,9],[24,8,24,9],[27,8,27,9],[26,0,26,1],[25,0,25,1],[0,0,0,9],[5,0,5,9],[23,8,23,9],[22,8,22,9],[22,0,22,1],[22,2,22,3],[2,0,2,9],[27,0,27,1],[1,0,1,9],[4,0,4,9],[23,0,23,1],[7,0,7,9],[26,8,26,9]]}
["شرکت نمونه (سهامی عام)"]
["صورتهای مالی"]
["سال مالی منتهی به ۲۹ اسفند ۱۴x۴"]
[]
["مجمع عمومی عادی صاحبان سهام"]
["با احترام"]
[]
["به پیوست صورتهای مالی شرکت نمونه (سهامی عام) مربوط به سال مالی منتهی به ۲۹ اسفند ۱۴x۴ تقدیم می‌گردد. اجزای تشکیل‌دهنده صورتهای مالی به قرار زیر است:"]
[]
[]
[null,"اجزای صورتهای مالی",null,null,null,null,null,null,null,"شماره صفحه"]
["•","صورت سود و زیان",null,null,null,null,null,null,null,"2"]
["•","صورت سود و زیان جامع",null,null,null,null,null,null,null,"3"]
["•","صورت وضعیت مالی",null,null,null,null,null,null,null,"4-5"]
["•","صورت تغییرات در حقوق مالکانه",null,null,null,null,null,null,null,"6-7"]
["•","صورت جریان‌های نقدی",null,null,null,null,null,null,null,"8-9"]
["•","یادداشت‌های توضیحی صورتهای مالی",null,null,null,null,null,null,null,"10-79"]
[]
[]
["صورتهای مالی طبق استانداردهای حسابداری تهیه شده و در تاریخ ...../...../۱۴x۵ به تأیید هیأت مدیره شرکت رسیده است."]
[]
[]
["اعضای هیأت مدیره",null,"نام نماینده اشخاص حقوقی",null,null,null,"سمت",null,"امضا"]
[".........",null,null,".........",null,null,"رئیس هیأت مدیره - غیرموظف",null,"........."]
[".........",null,null,".........",null,null,"نایب رئیس هیأت مدیره - غیرموظف",null,"........."]
[".........",null,null,".........",null,null,"عضو هیأت مدیره و مدیرعامل",null,"........."]
[".........",null,null,".........",null,null,"عضو هیأت مدیره و مدیر فروش",null,"........."]
[".........",null,null,".........",null,null,"عضو هیأت مدیره - غیرموظف",null,"........."]

{"sheet":"2","index":4,"n_rows":57,"n_cols":5,"rows_kept":57,"cut":false,"hidden":false,"merged":[[32,0,34,4],[1,0,1,4],[0,0,0,4],[30,0,30,4],[2,0,2,4]]}
["شرکت نمونه (سهامی عام)"]
["صورت سود و زیان"]
["سال مالی منتهی به ۲۹ اسفند ۱۴x۴"]
[]
["مبالغ به میلیون ریال"]
["مبنای استاندارد","شرح","یادداشت","سال ۱۴x۴","سال ۱۴x۳ (تجدید ارائه شده)"]
["پ ۱-۵۲","عملیات در حال تداوم"]
["الف ۱-۸۳","درآمدهای عملیاتی","5","..........",".........."]
["۱-۹۷","بهای تمام‌شده درآمدهای عملیاتی","7","(..........)","(..........)"]
["۱-۹۷","سود ناخالص",null,{"$f":"IFERROR(IF(COUNT(D8:D9)=0,\"..........\",SUM(D8:D9)),\"..........\")","v":".........."},{"$f":"IFERROR(IF(COUNT(E8:E9)=0,\"..........\",SUM(E8:E9)),\"..........\")","v":".........."}]
["۱-۸۶","هزینه‌های فروش، اداری و عمومی","8","(..........)","(..........)"]
["۱-۸۶","زیان کاهش ارزش دریافتنی‌ها","9","-","(..........)"]
["۱-۸۶","سایر درآمدها","10","..........",".........."]
["۱-۸۶","سایر هزینه‌ها","11","(..........)","(..........)"]
["۱-۸۶ و ۱-۸۸","سود عملیاتی",null,{"$f":"IFERROR(IF(COUNT(D10:D14)=0,\"..........\",SUM(D10:D14)),\"..........\")","v":".........."},{"$f":"IFERROR(IF(COUNT(E10:E14)=0,\"..........\",SUM(E10:E14)),\"..........\")","v":".........."}]
["ب ۱-۸۳","هزینه‌های مالی","12","(..........)","(..........)"]
[null,"سایر درآمدها و هزینه‌های غیرعملیاتی","13","..........",".........."]
["۱-۸۶ و ۱-۸۸","سود عملیات در حال تداوم قبل از مالیات",null,{"$f":"IFERROR(IF(COUNT(D15:D17)=0,\"..........\",SUM(D15:D17)),\"..........\")","v":".........."},{"$f":"IFERROR(IF(COUNT(E15:E17)=0,\"..........\",SUM(E15:E17)),\"..........\")","v":".........."}]
["۱-۳۵ و ۳۵-۷۶","هزینه مالیات بر درآمد","36-4","(..........)","(..........)"]
["۱-۸۶","سود خالص عملیات در حال تداوم",null,{"$f":"IFERROR(IF(COUNT(D18:D19)=0,\"..........\",SUM(D18:D19)),\"..........\")","v":".........."},{"$f":"IFERROR(IF(COUNT(E18:E19)=0,\"..........\",SUM(E18:E19)),\"..........\")","v":".........."}]
[null,"عملیات متوقف‌شده"]
["ث ۱-۸۳","سود (زیان) خالص عملیات متوقف‌شده","14","..........","(..........)"]
["ج ۱-۸۳","سود خالص",null,{"$f":"IFERROR(IF(COUNT(D20,D22)=0,\"..........\",SUM(D20,D22)),\"..........\")","v":".........."},{"$f":"IFERROR(IF(COUNT(E20,E22)=0,\"..........\",SUM(E20,E22)),\"..........\")","v":".........."}]
["۳۰-۳۴","سود هر سهم:"]
["۳۰-۳۱","سود پایه هر سهم - عملیاتی (ریال)",null,"..........",".........."]
["۳۰-۳۱","سود پایه هر سهم - غیرعملیاتی (ریال)",null,"..........",".........."]
["۳۰-۳۱","ناشی از عملیات در حال تداوم (ریال)",null,"..........",".........."]
["۳۰-۳۳","ناشی از عملیات متوقف‌شده (ریال)",null,"..........","(..........)"]
["۱-۸۶","سود پایه هر سهم (ریال)","15",{"$f":"IFERROR(IF(COUNT(D27:D28)=0,\"..........\",SUM(D27:D28)),\"..........\")","v":".........."},{"$f":"IFERROR(IF(COUNT(E27:E28)=0,\"..........\",SUM(E27:E28)),\"..........\")","v":".........."}]
[]
["یادداشت‌های توضیحی، بخش جدایی‌ناپذیر صورت‌های مالی است."]
[]
["۱- با توجه به اینکه زیان کاهش ارزش دریافتنی‌ها در نتیجه ورشکستگی یکی از مشتریان عمده بوده، لذا طبق بند ۸۶ استاندارد حسابداری ۱، برای درک عملکرد مالی شرکت، ذیل سرفصل جداگانه در صورت سود و زیان ارائه شده است."]
[]
[]
[]
[]
[]
[]
[]
[]
[]
[]
[]
["بازگشت به مجمع"]
[]
[]
[]
[]
[]
[]
[]
[]
[]
[]
[]
["راهنمای تطبیق PDF"]

{"sheet":"3","index":5,"n_rows":43,"n_cols":5,"rows_kept":43,"cut":false,"hidden":false,"merged":[[15,0,15,4],[1,0,1,4],[0,0,0,4],[38,0,40,4],[2,0,2,4]]}
["شرکت نمونه (سهامی عام)"]
["صورت سود و زیان جامع"]
["سال مالی منتهی به ۲۹ اسفند ۱۴x۴"]
[]
["مبالغ به میلیون ریال"]
["مبنای استاندارد","شرح","یادداشت","سال ۱۴x۴","سال ۱۴x۳ (تجدید ارائه شده)"]
["پ ۱-۵۲","سود خالص",null,"..........",".........."]
["الف ۱-۱۰۰","سایر اقلام سود و زیان جامع که در دوره‌های آتی به صورت سود و زیان تجدید طبقه‌بندی نخواهد شد:"]
["۱۱-۸۱ و ...","مازاد تجدید ارزیابی دارایی‌های ثابت مشهود","16","..........","-"]
[null,"مالیات بر درآمد اقلام فوق",null,"(..........)","-"]
[null,"سایر اقلام سود و زیان جامع که در دوره‌های آتی به صورت سود و زیان تجدید طبقه‌بندی خواهد شد:"]
[null,"مالیات بر درآمد اقلام فوق",null,"(..........)","-"]
[null,"سایر اقلام سود و زیان جامع پس از کسر مالیات",null,{"$f":"IFERROR(IF(COUNT(D9:D12)=0,\"..........\",SUM(D9:D12)),\"..........\")","v":".........."},{"$f":"IFERROR(IF(COUNT(E9:E12)=0,\"..........\",SUM(E9:E12)),\"..........\")","v":".........."}]
[null,"سود جامع",null,{"$f":"IFERROR(IF(COUNT(D7,D13)=0,\"..........\",SUM(D7,D13)),\"..........\")","v":".........."},{"$f":"IFERROR(IF(COUNT(E7,E13)=0,\"..........\",SUM(E7,E13)),\"..........\")","v":".........."}]
[]
["یادداشت‌های توضیحی، بخش جدایی‌ناپذیر صورت‌های مالی است."]
[]
[]
[]
[]
[]
[]
[]
[]
[]
[]
[]
[]
[]
[]
[]
[]
[]
[]
[]
[]
[]
[]
["۱- چنانچه اجزای تشکیل‌دهنده صورت سود و زیان جامع محدود به سود خالص باشد، ارائه این صورت مالی موضوعیت ندارد."]
[]
[]
["راهنمای تطبیق PDF"]
["بازگشت به مجمع"]

{"sheet":"4","index":6,"n_rows":89,"n_cols":6,"rows_kept":89,"cut":false,"hidden":false,"merged":[[1,0,1,5],[0,0,0,5],[56,0,57,5],[2,0,2,5],[28,0,28,5]]}
["شرکت نمونه (سهامی عام)"]
["صورت وضعیت مالی"]
["به تاریخ ۲۹ اسفند ۱۴x۴"]
[]
["مبالغ به میلیون ریال"]
["مبنای استاندارد","شرح","یادداشت","۱۴x۴/۱۲/۲۹","۱۴x۳/۱۲/۳۰ (تجدید ارائه شده)","۱۴x۳/۰۱/۰۱ (تجدید ارائه شده)"]
[null,"دارایی‌ها"]
[null,"دارایی‌های غیرجاری"]
["الف ۱-۵۵","دارایی‌های ثابت مشهود","16","..........","..........",".........."]
["ب ۱-۵۵","سرمایه‌گذاری در املاک","17","..........","..........",".........."]
["پ ۱-۵۵","دارایی‌های نامشهود","18","..........","..........",".........."]
["ت ۱-۵۵","سرمایه‌گذاری‌های بلندمدت","19","..........","..........",".........."]
["ت ۱-۵۵","دریافتنی‌های تجاری و سایر دریافتنی‌ها","20","..........","..........",".........."]
["ش ۱-۵۵","دارایی مالیات انتقالی","35","..........","..........",".........."]
["۱-۵۶","سایر دارایی‌ها","21","..........","..........",".........."]
["۱-۵۶","جمع دارایی‌های غیرجاری",null,{"$f":"IFERROR(IF(COUNT(D9:D15)=0,\"..........\",SUM(D9:D15)),\"..........\")","v":".........."},{"$f":"IFERROR(IF(COUNT(E9:E15)=0,\"..........\",SUM(E9:E15)),\"..........\")","v":".........."},{"$f":"IFERROR(IF(COUNT(F9:F15)=0,\"..........\",SUM(F9:F15)),\"..........\")","v":".........."}]
[null,"دارایی‌های جاری"]
["خ ۱-۵۵","پیش‌پرداخت‌ها","22","..........","..........",".........."]
["چ ۱-۵۵","موجودی مواد و کالا","23","..........","..........",".........."]
["(الف) ۴۳-۱۱۶","دارایی‌های حاصل از قرارداد","24","..........","-","-"]
["ح ۱-۵۵","دریافتنی‌های تجاری و سایر دریافتنی‌ها","20","..........","..........",".........."]
["ت ۱-۵۵","سرمایه‌گذاری‌های کوتاه‌مدت","25","..........","..........",".........."]
["د ۱-۵۵","موجودی نقد","26","..........","..........",".........."]
["ذ ۱-۵۵ و ۳۱-۳۷","دارایی‌های غیرجاری نگهداری‌شده برای فروش","27","..........","-","-"]
["۱-۵۶","جمع دارایی‌های جاری",null,{"$f":"IFERROR(IF(COUNT(D18:D24)=0,\"..........\",SUM(D18:D24)),\"..........\")","v":".........."},{"$f":"IFERROR(IF(COUNT(E18:E24)=0,\"..........\",SUM(E18:E24)),\"..........\")","v":".........."},{"$f":"IFERROR(IF(COUNT(F18:F24)=0,\"..........\",SUM(F18:F24)),\"..........\")","v":".........."}]
["۱-۵۶","جمع دارایی‌ها",null,{"$f":"IFERROR(IF(COUNT(D16,D25)=0,\"..........\",SUM(D16,D25)),\"..........\")","v":".........."},{"$f":"IFERROR(IF(COUNT(E16,E25)=0,\"..........\",SUM(E16,E25)),\"..........\")","v":".........."},{"$f":"IFERROR(IF(COUNT(F16,F25)=0,\"..........\",SUM(F16,F25)),\"..........\")","v":".........."}]
[]
[]
["حقوق مالکانه و بدهی‌ها"]
[null,"حقوق مالکانه"]
["ظ ۱-۵۵","سرمایه","28","..........","..........",".........."]
["ث ۱-۸۰","افزایش سرمایه در جریان","29","-","-",".........."]
[]
[]
[]
[]
[]
[]
[]
[]
[]
[]
[]
[]
[]
[]
[]
[]
[]
[]
[]
[]
[]
[]
[]
[]
["1 . طبق بند 39 استاندارد حسابداری 1 ، در صورتی که واحد تحاری (1) یک رویه حسابداری جدید را با تسری به گذشته بکار گیرد ، (2) اقلامی از صورتحساب های مالی را با تسری به گذشته تجدید ارائه نماید یا (3) اقلامی در صورت های مالی را تجدید طبقه بندی کند و این موارد اثر با اهمیتی بر اطلاعات مندرج در صورت وضعیت مالی در ابتدای دوره قبل داشته باشد ، باید صورت وضعیت مالی به تاریخ ابتدای دوره قبل نیز ارائه گردد."]
[]
[]
[]
[]
[]
[]
[]
[]
[]
[]
[]
[]
[]
[]
[]
[]
[]
[]
[]
[]
[]
[]
[]
[]
["بازگشت به مجمع"]
[]
[]
[]
[]
[]
[]
["راهنمای تطبیق PDF"]

{"sheet":"5","index":7,"n_rows":92,"n_cols":6,"rows_kept":92,"cut":false,"hidden":false,"merged":[[2,0,2,5],[1,0,1,5],[0,0,0,5],[60,0,60,5]]}
["شرکت نمونه (سهامی عام)"]
["صورت وضعیت مالی"]
["به تاریخ ۲۹ اسفند ۱۴x۴"]
["پ 52-1"]
["مبالغ به میلیون ریال"]
["مبنای استاندارد","شرح","یادداشت","۱۴x۴/۱۲/۲۹","۱۴x۳/۱۲/۳۰ (تجدید ارائه شده)","۱۴x۳/۰۱/۰۱ (تجدید ارائه شده)"]
[]
["ث ۱-۸۰","صرف سهام","30","..........","..........",".........."]
["ث ۱-۸۰","صرف سهام خزانه",null,"..........","..........","-"]
["ث ۱-۸۰","اندوخته قانونی","31","..........","..........",".........."]
["ث ۱-۸۰","سایر اندوخته‌ها","32","..........","..........",".........."]
["۱۱-۸۱ و ۱۷-۹۶","مازاد تجدید ارزیابی دارایی‌ها",null,"..........","..........",".........."]
["۱-۵۶","سود انباشته",null,"..........","..........",".........."]
["۳۵-۳۶","سهام خزانه","33","(..........)","(..........)","(..........)"]
["۱-۵۶","جمع حقوق مالکانه",null,{"$f":"IFERROR(IF(COUNT(D8:D14)=0,\"..........\",SUM(D8:D14)),\"..........\")","v":".........."},{"$f":"IFERROR(IF(COUNT(E8:E14)=0,\"..........\",SUM(E8:E14)),\"..........\")","v":".........."},{"$f":"IFERROR(IF(COUNT(F8:F14)=0,\"..........\",SUM(F8:F14)),\"..........\")","v":".........."}]
[null,"بدهی‌ها"]
[null,"بدهی‌های غیرجاری"]
["ر ۱-۵۵","پرداختنی‌های تجاری و سایر پرداختنی‌ها","34","..........","..........",".........."]
["ژ ۱-۵۵","تسهیلات مالی بلندمدت","35","..........","..........",".........."]
["رش ۱-۵۵","بدهی مالیات انتقالی","36","..........","..........",".........."]
["ز ۱-۵۵","ذخیره مزایای پایان خدمت کارکنان","37","..........","..........",".........."]
["۱-۵۶","جمع بدهی‌های غیرجاری",null,{"$f":"IFERROR(IF(COUNT(D18:D21)=0,\"..........\",SUM(D18:D21)),\"..........\")","v":".........."},{"$f":"IFERROR(IF(COUNT(E18:E21)=0,\"..........\",SUM(E18:E21)),\"..........\")","v":".........."},{"$f":"IFERROR(IF(COUNT(F18:F21)=0,\"..........\",SUM(F18:F21)),\"..........\")","v":".........."}]
[null,"بدهی‌های جاری"]
["ر ۱-۵۵","پرداختنی‌های تجاری و سایر پرداختنی‌ها","34","..........","..........",".........."]
["س ۱-۵۵","مالیات پرداختنی","36","..........","..........",".........."]
["ژ ۱-۵۵","سود سهام پرداختنی","38","..........","..........",".........."]
["ژ ۱-۵۵","تسهیلات مالی","35","..........","..........",".........."]
["ز ۱-۵۵","ذخایر","39","..........","..........",".........."]
["(الف) ۴۳-۱۱۶","بدهی‌های ناشی از قرارداد","40","..........","-","-"]
["ص ۱-۵۵","پیش‌دریافت‌ها","41","..........","..........",".........."]
["ض ۱-۵۵ و ۳۱-۳۷","بدهی‌های مرتبط با دارایی‌های غیرجاری نگهداری‌شده برای فروش","27","-","-",".........."]
["۱-۵۶","جمع بدهی‌های جاری",null,{"$f":"IFERROR(IF(COUNT(D24:D31)=0,\"..........\",SUM(D24:D31)),\"..........\")","v":".........."},{"$f":"IFERROR(IF(COUNT(E24:E31)=0,\"..........\",SUM(E24:E31)),\"..........\")","v":".........."},{"$f":"IFERROR(IF(COUNT(F24:F31)=0,\"..........\",SUM(F24:F31)),\"..........\")","v":".........."}]
["۱-۵۶","جمع بدهی‌ها",null,{"$f":"IFERROR(IF(COUNT(D22,D32)=0,\"..........\",SUM(D22,D32)),\"..........\")","v":".........."},{"$f":"IFERROR(IF(COUNT(E22,E32)=0,\"..........\",SUM(E22,E32)),\"..........\")","v":".........."},{"$f":"IFERROR(IF(COUNT(F22,F32)=0,\"..........\",SUM(F22,F32)),\"..........\")","v":".........."}]
["۱-۵۶","جمع حقوق مالکانه و بدهی‌ها",null,{"$f":"IFERROR(IF(COUNT(D15,D33)=0,\"..........\",SUM(D15,D33)),\"..........\")","v":".........."},{"$f":"IFERROR(IF(COUNT(E15,E33)=0,\"..........\",SUM(E15,E33)),\"..........\")","v":".........."},{"$f":"IFERROR(IF(COUNT(F15,F33)=0,\"..........\",SUM(F15,F33)),\"..........\")","v":".........."}]
[]
[]
[]
[]
[]
[]
[]
[]
[]
[]
[]
[]
[]
[]
[]
[]
[]
[]
[]
[]
[]
[]
[]
[]
[]
[]
["یادداشت‌های توضیحی، بخش جدایی‌ناپذیر صورت‌های مالی است."]
[]
[]
[]
[]
[]
[]
[]
[]
[]
[]
[]
[]
[]
[]
[]
[]
[]
[]
[]
[]
[]
[]
[]
["بازگشت به مجمع"]
[]
[]
[]
[]
[]
[]
["راهنمای تطبیق PDF"]

{"sheet":"6","index":8,"n_rows":55,"n_cols":12,"rows_kept":55,"cut":false,"hidden":false,"merged":[[2,0,2,11],[1,0,1,11],[0,0,0,11],[26,0,26,11]]}
["شرکت نمونه (سهامی عام)"]
["صورت تغییرات در حقوق مالکانه"]
["سال مالی منتهی به ۲۹ اسفند ۱۴x۴"]
[]
[null,null,null,null,null,null,null,null,null,null,null,"مبالغ به میلیون ریال"]
["مبنای استاندارد","شرح","سرمایه","افزایش سرمایه در جریان","صرف سهام","صرف سهام خزانه","اندوخته قانونی","سایر اندوخته‌ها","مازاد تجدید ارزیابی دارایی‌ها","سود انباشته","سهام خزانه","جمع کل"]
["پ ۱-۱۰۸","مانده در ۱۴x۳/۰۱/۰۱","..........","..........","..........","..........","..........","..........","..........","..........","..........",".........."]
["ب ۱-۱۰۸","اصلاح اشتباهات (یادداشت ۴۰)","..........","..........","..........","..........","..........","..........","..........","..........","..........",".........."]
["ب ۱-۱۰۸","تغییر در رویه‌های حسابداری (یادداشت ۴۰)","..........","..........","..........","..........","..........","..........","..........","..........","..........",".........."]
[null,"مانده تجدید ارائه‌شده در ۱۴x۳/۰۱/۰۱","..........","..........","..........","..........","..........","..........","..........","..........","..........",".........."]
[null,"تغییرات حقوق مالکانه در سال ۱۴x۳"]
["پ ۱-۱۰۸","سود خالص گزارش‌شده در صورت‌های مالی سال ۱۴x۳",{"$f":"IFERROR(IF(COUNT(C7:C11)=0,\"..........\",SUM(C7:C11)),\"..........\")","v":".........."},"..........","..........","..........","..........","..........","..........","..........","..........",".........."]
["ب ۱-۱۰۸","اصلاح اشتباهات (یادداشت ۴۰)","..........","..........","..........","..........","..........","..........","..........","..........","..........",".........."]
["ب ۱-۱۰۸","تغییر در رویه‌های حسابداری (یادداشت ۴۰)","..........","..........","..........","..........","..........","..........","..........","..........","..........",".........."]
[null,"سود خالص تجدید ارائه‌شده سال ۱۴x۳",{"$f":"IFERROR(IF(COUNT(C12:C14)=0,\"..........\",SUM(C12:C14)),\"..........\")","v":".........."},"..........","..........","..........","..........","..........","..........","..........","..........",".........."]
["پ ۱-۱۰۸","سایر اقلام سود و زیان جامع پس از کسر مالیات","..........","..........","..........","..........","..........","..........","..........","..........","..........",".........."]
[null,"سود جامع سال ۱۴x۳",{"$f":"IFERROR(IF(COUNT(C12:C16)=0,\"..........\",SUM(C12:C16)),\"..........\")","v":".........."},"..........","..........","..........","..........","..........","..........","..........","..........",".........."]
["۱-۱۱۰","سود سهام مصوب","-","-","-","-","-","-","-","..........","..........",".........."]
["پ ۱-۱۰۸","افزایش سرمایه","..........","..........","..........","..........","..........","..........","..........","..........","..........",".........."]
["پ ۱-۱۰۸","افزایش سرمایه در جریان","..........","..........","..........","..........","..........","..........","..........","..........","..........",".........."]
["پ ۱-۱۰۸","خرید سهام خزانه","-","-","-","..........","-","-","-","-","..........",".........."]
["پ ۱-۱۰۸","فروش سهام خزانه","-","-","-","..........","-","-","-","-","..........",".........."]
["پ ۱-۱۰۸","انتقال از سایر اقلام حقوق مالکانه به سود انباشته","..........","..........","..........","..........","..........","..........","..........","..........","..........",".........."]
["پ ۱-۱۰۸","تخصیص به اندوخته قانونی","..........","..........","..........","..........","..........","..........","..........","..........","..........",".........."]
["پ ۱-۱۰۸","تخصیص به سایر اندوخته‌ها","..........","..........","..........","..........","..........","..........","..........","..........","..........",".........."]
[null,"مانده تجدید ارائه‌شده در ۱۴x۳/۱۲/۳۰","..........","..........","..........","..........","..........","..........","..........","..........","..........",".........."]
["یادداشت‌های توضیحی، بخش جدایی‌ناپذیر صورت‌های مالی است."]
[]
[]
[]
[]
[]
[]
[]
[]
[]
[]
[]
[]
[]
[]
[]
[]
[]
[]
[]
[]
["بازگشت به مجمع"]
[]
[]
[]
[]
[]
[]
["راهنمای تطبیق PDF"]

{"sheet":"7","index":9,"n_rows":31,"n_cols":12,"rows_kept":31,"cut":false,"hidden":false,"merged":[[2,0,2,11],[1,0,1,11],[23,0,23,11],[0,0,0,11]]}
["شرکت نمونه (سهامی عام)"]
["صورت تغییرات در حقوق مالکانه"]
["سال مالی منتهی به ۲۹ اسفند ۱۴x۴"]
[]
["پ 52-1 ت\nث 52-1",null,null,null,null,null,null,null,null,null,null,"مبالغ به میلیون ریال"]
["مبنای استاندارد","شرح","سرمایه","افزایش سرمایه در جریان","صرف سهام","صرف سهام خزانه","اندوخته قانونی","سایر اندوخته‌ها","مازاد تجدید ارزیابی دارایی‌ها","سود انباشته","سهام خزانه","جمع کل"]
["پ ۱-۱۰۸","مانده در ۱۴x۴/۰۱/۰۱","..........","..........","..........","..........","..........","..........","..........","..........","..........",".........."]
["(ب) ۴۳-۲ و (پ) ۴۳-۶","تعدیل ناشی از بکارگیری استاندارد ۴۳ برای نخستین‌بار","..........","..........","..........","..........","..........","..........","..........","..........","..........",".........."]
[null,"مانده تعدیل‌شده در ۱۴x۴/۰۱/۰۱","..........","..........","..........","..........","..........","..........","..........","..........","..........",".........."]
[null,"تغییرات حقوق مالکانه در سال ۱۴x۴"]
["پ ۱-۱۰۸","سود خالص سال ۱۴x۴",{"$f":"IFERROR(IF(COUNT(C7:C10)=0,\"..........\",SUM(C7:C10)),\"..........\")","v":".........."},"..........","..........","..........","..........","..........","..........","..........","..........",".........."]
["پ ۱-۱۰۸","سایر اقلام سود و زیان جامع پس از کسر مالیات","..........","..........","..........","..........","..........","..........","..........","..........","..........",".........."]
[null,"سود جامع سال ۱۴x۴",{"$f":"IFERROR(IF(COUNT(C11:C12)=0,\"..........\",SUM(C11:C12)),\"..........\")","v":".........."},"..........","..........","..........","..........","..........","..........","..........","..........",".........."]
["۱-۱۱۰","سود سهام مصوب","-","-","-","-","-","-","-","..........","..........",".........."]
["پ ۱-۱۰۸","افزایش سرمایه","..........","..........","..........","..........","..........","..........","..........","..........","..........",".........."]
["پ ۱-۱۰۸","افزایش سرمایه در جریان","..........","..........","..........","..........","..........","..........","..........","..........","..........",".........."]
["پ ۱-۱۰۸","خرید سهام خزانه","-","-","-","..........","-","-","-","-","..........",".........."]
["پ ۱-۱۰۸","فروش سهام خزانه","-","-","-","..........","-","-","-","-","..........",".........."]
["پ ۱-۱۰۸","انتقال از سایر اقلام حقوق مالکانه به سود انباشته","..........","..........","..........","..........","..........","..........","..........","..........","..........",".........."]
["پ ۱-۱۰۸","تخصیص به اندوخته قانونی","..........","..........","..........","..........","..........","..........","..........","..........","..........",".........."]
["پ ۱-۱۰۸","تخصیص به سایر اندوخته‌ها","..........","..........","..........","..........","..........","..........","..........","..........","..........",".........."]
[null,"مانده در ۱۴x۴/۱۲/۲۹","..........","..........","..........","..........","..........","..........","..........","..........","..........",".........."]
[]
["یادداشت‌های توضیحی، بخش جدایی‌ناپذیر صورت‌های مالی است."]
[]
[]
[]
[]
["بازگشت به مجمع"]
[]
["راهنمای تطبیق PDF"]

{"sheet":"8","index":10,"n_rows":92,"n_cols":6,"rows_kept":92,"cut":false,"hidden":false,"merged":[[53,1,53,5],[0,1,0,5],[1,1,1,5],[2,1,2,5]]}
[null,"شرکت نمونه (سهامی عام)"]
[null,"صورت جریان‌های نقدی"]
[null,"سال مالی منتهی به ۲۹ اسفند ۱۴x۴"]
[]
[null,"مبالغ به میلیون ریال"]
[null,"مبنای استاندارد","شرح","یادداشت","سال ۱۴x۴","سال ۱۴x۳ (تجدید ارائه شده)"]
[null,"۲-۹","جریان‌های نقدی حاصل از فعالیت‌های عملیاتی"]
[null,"۲-۱۲","وجه نقد حاصل از عملیات","43","..........",".........."]
[null,"۲-۳۲","پرداخت‌های نقدی بابت مالیات بر درآمد",null,"(..........)","(..........)"]
[null,null,"جریان خالص ورود (خروج) وجه نقد حاصل از فعالیت‌های عملیاتی",null,{"$f":"IFERROR(IF(COUNT(E8:E9)=0,\"..........\",SUM(E8:E9)),\"..........\")","v":".........."},{"$f":"IFERROR(IF(COUNT(F8:F9)=0,\"..........\",SUM(F8:F9)),\"..........\")","v":".........."}]
[null,"۲-۹","جریان‌های نقدی حاصل از فعالیت‌های سرمایه‌گذاری"]
[null,"ب ۲-۱۵","دریافت‌های نقدی از فروش دارایی‌های ثابت مشهود",null,"..........",".........."]
[null,"الف ۲-۱۵","پرداخت‌های نقدی برای خرید دارایی‌های ثابت مشهود",null,"(..........)","(..........)"]
[null,null,"دریافت‌های نقدی از فروش دارایی‌های غیرجاری نگهداری‌شده برای فروش",null,"..........","-"]
[null,"ب ۲-۱۵","دریافت‌های نقدی از فروش دارایی‌های نامشهود",null,"..........",".........."]
[null,"الف ۲-۱۵","پرداخت‌های نقدی برای خرید دارایی‌های نامشهود",null,"(..........)","(..........)"]
[null,"ت ۲-۱۵","دریافت‌های نقدی از فروش سرمایه‌گذاری‌های بلندمدت",null,"..........",".........."]
[null,"پ ۲-۱۵","پرداخت‌های نقدی برای تحصیل سرمایه‌گذاری‌های بلندمدت",null,"(..........)","(..........)"]
[null,"ت ۲-۱۵","دریافت‌های نقدی از فروش سرمایه‌گذاری در املاک",null,"..........",".........."]
[null,"پ ۲-۱۵","پرداخت‌های نقدی برای تحصیل سرمایه‌گذاری در املاک",null,"(..........)","(..........)"]
[null,"ت ۲-۱۵","دریافت‌های نقدی از فروش سرمایه‌گذاری‌های کوتاه‌مدت",null,"..........",".........."]
[null,"پ ۲-۱۵","پرداخت‌های نقدی برای تحصیل سرمایه‌گذاری‌های کوتاه‌مدت",null,"(..........)","(..........)"]
[null,"ث ۲-۱۵","پرداخت‌های نقدی بابت تسهیلات اعطایی به دیگران",null,"(..........)","(..........)"]
[null,"ج ۲-۱۵","دریافت‌های نقدی از استرداد تسهیلات اعطایی به دیگران",null,"..........",".........."]
[null,"۲-۳۱","دریافت‌های نقدی از سود تسهیلات اعطایی به دیگران",null,"..........",".........."]
[null,"۲-۳۱","دریافت‌های نقدی از سود سهام",null,"..........",".........."]
[null,"۲-۲۹","دریافت‌های نقدی از سود سایر سرمایه‌گذاری‌ها",null,"..........",".........."]
[null,null,"جریان خالص ورود (خروج) وجه نقد حاصل از فعالیت‌های سرمایه‌گذاری",null,{"$f":"IFERROR(IF(COUNT(E12:E27)=0,\"..........\",SUM(E12:E27)),\"..........\")","v":".........."},{"$f":"IFERROR(IF(COUNT(F12:F27)=0,\"..........\",SUM(F12:F27)),\"..........\")","v":".........."}]
[null,null,"جریان خالص ورود وجه نقد قبل از فعالیت‌های تأمین مالی",null,{"$f":"IFERROR(IF(COUNT(E10,E28)=0,\"..........\",SUM(E10,E28)),\"..........\")","v":".........."},{"$f":"IFERROR(IF(COUNT(F10,F28)=0,\"..........\",SUM(F10,F28)),\"..........\")","v":".........."}]
[null,"۲-۹","جریان‌های نقدی حاصل از فعالیت‌های تأمین مالی"]
[null,"الف ۲-۱۶","دریافت‌های نقدی از افزایش سرمایه",null,"..........",".........."]
[null,"الف ۲-۱۶","دریافت‌های نقدی از صرف سهام",null,"..........","-"]
[null,"الف ۲-۱۶","دریافت‌های نقدی از فروش سهام خزانه",null,"..........",".........."]
[null,"ب ۲-۱۶","پرداخت‌های نقدی برای خرید سهام خزانه",null,"(..........)","(..........)"]
[null,"پ ۲-۱۶","دریافت‌های نقدی از تسهیلات",null,"..........",".........."]
[]
[]
[]
[]
[]
[]
[]
[]
[]
[]
[]
[]
[]
[]
[]
[]
[]
[]
[null,"یادداشت‌های توضیحی، بخش جدایی‌ناپذیر صورت‌های مالی است."]
[]
[]
[]
[]
[]
[]
[]
[]
[]
[]
[]
[]
[]
[]
[]
[]
[]
[]
[]
[]
[]
[]
[]
[]
[]
[null,"بازگشت به مجمع"]
[]
[]
[]
[]
[]
[]
[]
[]
[]
[]
[]
[null,"راهنمای تطبیق PDF"]

{"sheet":"9","index":11,"n_rows":91,"n_cols":6,"rows_kept":91,"cut":false,"hidden":false,"merged":[[53,1,53,4],[0,1,0,4],[1,1,1,4],[2,1,2,4],[24,0,24,4],[35,1,35,4]]}
[null,"شرکت نمونه (سهامی عام)"]
[null,"صورت جریان‌های نقدی"]
[null,"سال مالی منتهی به ۲۹ اسفند ۱۴x۴"]
["پ52-1\nت ث 52-1",null,null,null,null,"مبالغ به میلیون ریال"]
[]
["مبنای استاندارد","شرح","یادداشت","سال ۱۴x۴","سال ۱۴x۳ (تجدید ارائه شده)"]
["ت ۲-۱۶","پرداخت‌های نقدی بابت اصل تسهیلات",null,"(..........)","(..........)"]
["۲-۳۱","پرداخت‌های نقدی بابت سود تسهیلات",null,"(..........)","(..........)"]
["پ ۲-۱۶","دریافت‌های نقدی از انتشار اوراق مشارکت",null,"..........",".........."]
["ت ۲-۱۶","پرداخت‌های نقدی بابت اصل اوراق مشارکت",null,"(..........)","(..........)"]
["ت ۲-۱۶","پرداخت‌های نقدی بابت سود اوراق مشارکت",null,"(..........)","(..........)"]
["پ ۲-۱۶","دریافت‌های نقدی از انتشار اوراق خرید دین",null,"..........",".........."]
["ت ۲-۱۶","پرداخت‌های نقدی بابت اصل اوراق خرید دین",null,"(..........)","(..........)"]
["ت ۲-۱۶","پرداخت‌های نقدی بابت سود اوراق خرید دین",null,"(..........)","(..........)"]
["ث ۲-۱۶","پرداخت‌های نقدی بابت اصل اقساط اجاره سرمایه‌ای",null,"(..........)","(..........)"]
["ث ۲-۱۶","پرداخت‌های نقدی بابت سود اجاره سرمایه‌ای",null,"(..........)","(..........)"]
["۲-۳۱","پرداخت‌های نقدی بابت سود سهام",null,"(..........)","(..........)"]
[null,"جریان خالص ورود (خروج) وجه نقد حاصل از فعالیت‌های تأمین مالی",null,{"$f":"IFERROR(IF(COUNT(D7:D17)=0,\"..........\",SUM(D7:D17)),\"..........\")","v":".........."},{"$f":"IFERROR(IF(COUNT(E7:E17)=0,\"..........\",SUM(E7:E17)),\"..........\")","v":".........."}]
["۲-۴۹","خالص افزایش (کاهش) در موجودی نقد",null,{"$f":"IFERROR(IF(COUNT('8'!E29,D18)=0,\"..........\",SUM('8'!E29,D18)),\"..........\")","v":".........."},{"$f":"IFERROR(IF(COUNT('8'!F29,E18)=0,\"..........\",SUM('8'!F29,E18)),\"..........\")","v":".........."}]
["۲-۴۹","مانده موجودی نقد در ابتدای سال",null,"..........",".........."]
["۲-۲۸","تأثیر تغییرات نرخ ارز",null,"..........",".........."]
["۲-۴۹","مانده موجودی نقد در پایان سال",null,{"$f":"IFERROR(IF(COUNT(D19,D20,D21)=0,\"..........\",SUM(D19,D20,D21)),\"..........\")","v":".........."},{"$f":"IFERROR(IF(COUNT(E19,E20,E21)=0,\"..........\",SUM(E19,E20,E21)),\"..........\")","v":".........."}]
["۲-۴۲","معاملات غیرنقدی","44","..........",".........."]
[]
["یادداشت‌های توضیحی، بخش جدایی‌ناپذیر صورت‌های مالی است."]
[]
[]
[]
[null,"بازگشت به مجمع"]
[]
[]
[]
[]
[]
[]
[]
[]
[]
[]
[]
[]
[]
[]
[]
[]
[]
[]
[]
[]
[]
[]
[]
[]
[]
[]
[]
[]
[]
[]
[]
[]
[]
[]
[]
[]
[]
[]
[]
[]
[]
[]
[]
[]
[]
[]
[]
[]
[]
[]
[]
[]
[]
[]
[]
[]
[]
[]
[]
[]
[]
["راهنمای تطبیق PDF"]

{"sheet":"10","index":12,"n_rows":24,"n_cols":11,"rows_kept":24,"cut":false,"hidden":false,"merged":[[0,0,0,10],[1,0,1,10],[2,0,2,10],[4,2,4,10],[5,2,5,10],[26,2,26,10],[19,5,19,6],[17,5,17,6],[7,2,7,10],[16,5,16,6],[18,5,18,6],[21,2,21,10],[22,2,22,10],[23,2,23,10],[24,2,24,10],[25,2,25,10],[6,2,6,10],[9,2,9,10],[10,2,10,10],[12,2,12,10],[13,2,13,10]]}
["شرکت نمونه (سهامی عام)"]
["صورت وضعیت مالی"]
["به تاریخ ۲۹ اسفند ۱۴x۴"]
[]
[null,null,"1- تاريخچه و فعاليت شركت :"]
[null,null,"1-1- تاریخجه "]
[null,"الف و پ 52-1\nالف 1-138\nب 1-138\nپ 1-138\n12-15","شركت نمونه (سهامی عام) به شناسه ملی..........  در تاريخ .......... به صورت شركت سهامى خاص تأسيس شده و طى شماره ......... مورخ .......... در اداره کل ثبت شركت‌ها و مالكيت صنعتى .......... (محل ثبت) به ثبت رسيد و متعاقبا از تاریخ .........، شروع به بهره‌برداری نموده است. شرکت در تاريخ .......... به موجب صورتجلسه مجمع عمومی فوق‌العاده مورخ .......... به شركت سهامى عام تبديل و در تاریخ .......... در بورس اوراق ‌بهادار پذیرفته شده است. در حال حاضر، شركت نمونه جزء واحدهاى تجارى فرعى شركت .......... است و شرکت اصلی تهایی گروه ، شركت .......... است. نشانی مركز اصلى شركت .......... و محل فعالیت اصلی آن در شهر .......... واقع است."]
[null,"ب 138-1","[تغییر نام شرکت یا سایر شناسه های هویت ، نسبت به سال قبل ، باید افشا شود]"]
[]
[null,null,"1-2- فعالیت اصلی  : "]
[null,"1-138","موضوع فعاليت شركت طبق ماده .......... اساسنامه، .......... می‌باشد. فعالیت اصلی شرکت طی سال مورد گزارش .......... است ."]
[]
[null,"1-138","1-3- كاركنان"]
[null,null,"میانگین کارکنان در استخدام و نیز کارکنان شرکت های خدماتی که بخشی از امور خدماتی شرکت را به عهده دارند ، طی سال یه شرح زیر بوده است :"]
[null,null,null,null,null,null,null,null,"13x4",null,"13x3"]
[null,null,null,null,null,null,null,null,"نفر",null,"نفر"]
[null,null,null,null,null,"کارکنان رسمی",null,null,null,null,0]
[null,null,null,null,null,"کارکنان قراردادی",null,null,null,null,0]
[null,null,null,null,null,null,null,null,{"$f":"IFERROR(IF(SUM(I17:I18)=0,\"..........\",SUM(I17:I18)),\"..........\")","v":".........."},null,{"$f":"IFERROR(IF(SUM(K17:K18)=0,\"..........\",SUM(K17:K18)),\"..........\")","v":".........."}]
[null,null,null,null,null,"کارکنان شرکت های خدماتی"]
[]
[null,"27-34","2- بکارگیری استاندارد های حسابداری جدید و تجدید نظر شده : "]
[null,null,"2-1- استاندارد های حسابداری جدید و تجدید نطر شده که در دوره جاری لازم الاجرا شده است :"]
[null,"(ب) پ 2-43\nپ 6-43\nپ7-43\nپ 8-43\n","2-1-1- استاندارد حسابداری 43 \" درآمد های عملیاتی حاصل از قرارداد  با مشتریان \".\nاین استاندارد جایگزین استاندارد حسابداری 3 \" درآمد عملیاتی\" ،استاندارد حسابداری 9 \"حسابداری پیمان های بلند مدت و استاندارد 29  فعالیت های ساخت املاک  شده است و برای شناسایی تمام درآمد های عملیاتی حاصل از قرارداد با مشتریان کاربرد دارد .رویه شناخت درآمد در یادداشت های توضیحی 3-2 درج شده است. شرکت ، استاندارد حسابداری 43 را با استفاده از رویکرد \" تسری به گذشته تعدیل شده \" بکار گرفته است ، به این معنی که اثر بکارگیری این استاندارد در تاریخ بکارگیری اولیه (1404/01/01) شناسایی شده اما اطلاعات ارائه شده برای سال 14*3 تجدید ارائه نشده است . علاوه بر این ، الزامات افشای این استاندارد برای اطلاعات مقایسه ای بکار گرفته نشده است .در این شیوه گذار ، شرکت این استاندارد را تنها برای قراردادهایی با تسری به گذشته بکار گرفته است که در تاریخ بکارگیری اولیه (1404/01/01) قرارداد های تکمیل نشده محسوب می گردند.\n"]

{"sheet":"11","index":13,"n_rows":21,"n_cols":14,"rows_kept":21,"cut":false,"hidden":false,"merged":[[4,3,4,4],[1,3,1,13],[8,3,8,5],[9,3,9,9],[0,3,0,12],[7,3,7,5],[3,3,3,12],[2,3,2,12],[6,3,6,5],[38,4,38,12],[13,3,13,13],[5,3,5,5],[34,4,34,12],[19,2,21,2],[21,4,21,12],[17,3,17,13],[11,3,11,13],[28,4,28,12],[19,3,19,13],[18,3,18,13],[20,3,20,13],[16,3,16,13],[15,3,15,13]]}
[null,null,null,{"$f":"عنوان!A13","v":0}]
[null,null,null,"یادداشت های توضیحی صورت های مالی"]
[null,null,null,{"$f":"عنوان!A15","v":0}]
["پ8-43",null,"43-8 پ","آثار گذار بکارگیری این استاندارد بر سود انباشته 1/1/4x14 به شرح زیر است:             ",null,null,null,null,null,null,null,null,null," (مبالغ به میلیون ریال)"]
[null,null,null,"سود انباشته ",null,null,null,null,null,null,null,"یادداشت ",null,"اثر گذار به استاندارد حسابداری 43"]
[null,null,null,"محصولات تولیدی یا حق برگشت",null,null,null,null,null,null,null,"الف",null,".............................."]
[null,null,null,"..............................",null,null,null,null,null,null,null,null,null,".............................."]
[null,null,null,"..............................",null,null,null,null,null,null,null,null,null,".............................."]
[null,null,null,"مالیات ",null,null,null,null,null,null,null,null,null,".............................."]
[null,null,null,"تعدیل ناشی از یکارگیری استاندارد حسابداری 43 برای تخستین بار ",null,null,null,null,null,null,null,null,null,".............................."]
[]
[null,null,null,"الف- به موجب استاندارد حسابداری 3 \"درآمد عملیاتی\"، شناسایی درآمد در قراردادها زمانی امکان‌پذیر بود که علاوه بر احراز معیارهای شناخت درآمد، می‌بایست مبالغ آتی برگشت کالا به گونه‌ای اتکاپذیر قابل برآورد و بدهی ناشی از برگشت کالا نیز با توجه به تجربیات گذشته و سایر عوامل، امکان‌پذیر می‌شد. در غیر این صورت شناسایی درآمد به تعویق می‌افتاد. \nطبق استاندارد حسابداری 43 ، درآمد صرفا تا میزانی شناسایی می‌شود که قطعی بوده و به احتمال زیاد در آینده برگشت نخواهد شد. لذا با بکارگیری این استاندارد، درآمد زودتر از استاندارد حسابداری 3 شناسایی شده و بدهی استرداد نیز در پرداختنی‌های تجاری منظور می‌شود و علاوه بر این یک دارایی جدید بابت حق برگشت کالا تحت عنوان\"دارایی حق برگشت\" به عنوان بخشی از موجودی کالا ارائه می‌شود. "]
[]
[null,null,null," یا [بکارگیری این استاندارد اثر با اهمیتی بر صورت‌های مالی واحد تجاری ندارد.]"]
[]
[null,null,"34-29\n34-30","2-2- بکارگیری استانداردهای حسابداری جدید و تجدید نظر شده مصوب که هنوز لازم‌الاجرا نیستند:"]
[null,null,null,"1ـ2ـ2ـ استاندارد حسابداری 15 \"حسابداری سرمایه‌گذاری‌ها\" (تجدیدنظر شده):"]
[null,null,"15-29","این استاندارد از ابتدای سال مالی 1405 لازم‌الاجرا می‌شود. مهمترین تغییر به عمل آمده، حذف روش اقل بهای تمام شده و خالص ارزش فروش برای اندازه‌گیری سرمایه‌گذاری‌های جاری سریع المعامله است و مقرر گردیده صرفا از روش ارزش منصفانه برای اندازه‌گیری این سرمایه‌گذاری‌ها استفاده شود. با توجه به رویه قبلی شرکت مبنی بر ارزش بازار برای سرمایه‌گذاری‌های جاری سریع المعامله، بکارگیری استاندارد حسابداری یاد شده بر صورت‌های مالی شرکت تاثیری ندارد."]
[null,null,null,"2-2-2- استاندارد حسابداری 44 \"اجاره‌ها\":"]
[null,null,"44-22\n44-23\n44-26\n44-5\n44-6","این استاندارد حسابداری از ابتدای سال 1405 لازم‌الاجرا می‌شود."]
[null,null,null,"[بکارگیری این استاندارد اثر با اهمیتی بر صورت‌های مالی آتی شرکت ندارد.]"]

{"sheet":"12","index":14,"n_rows":26,"n_cols":4,"rows_kept":26,"cut":false,"hidden":false,"merged":[[13,3,13,13],[6,3,6,13],[37,4,37,12],[2,3,2,13],[8,3,8,13],[0,3,0,12],[12,3,12,13],[3,3,3,13],[33,4,33,12],[14,3,14,13],[25,3,25,13],[10,3,10,13],[9,3,9,13],[1,3,1,13],[4,3,4,13],[11,3,11,13],[7,3,7,13],[5,3,5,13]]}
[null,null,null,{"$f":"عنوان!A13","v":0}]
[null,null,null,"یادداشت های توضیحی صورت های مالی"]
[null,null,null,"3- اهم رويه‌هاي حسابداری"]
[null,null,null,"1-3- مبانی اندازه‌گیری استفاده شده در تهیه صورت‌های مالی"]
[null,null,null,"1ـ1ـ3ـ صورت‌های مالی بر مبنای بهای تمام شده تاریخی تهیه شده است. به استثنای موارد زیر که به ارزش منصفانه اندازه‌گیری می‌شود:\nالف- سرمایه‌گذاری‌های جاری سریع‌المعامله در بازار به روش ارزش بازار و\nب- ماشین‌الات و تجهیزات به روش تجدید ارزیابی."]
[null,null,null,"2ـ1ـ3ـ ارزش منصفانه، قيمتي است که بابت فروش یک دارایی یا انتقال یک بدهی در معامله‌ای نظام‌مند بین فعالان بازار، در تاریخ اندازه‌گیری در شرایط جاری بازار، قابل دریافت یا قابل پرداخت خواهد بود، صرف‌نظر از اينکه قيمت مزبور بطور مستقیم قابل‌ مشاهده باشد یا با استفاده از تکنیک‌های دیگر ارزشيابي برآورد شود. به منظور افزایش ثبات رویه و قابلیت مقایسه در اندازه‌گیری ارزش منصفانه و افشاهای مرتبط با آن، سلسله مراتب ارزش منصفانه در سه سطح زیر طبقه‌بندی مي‌شوند:"]
[null,null,null,"الف ـ داده‌های ورودی سطح 1، قيمت‌هاي اعلام‌شده (تعدیل‌نشده) در بازارهای فعال برای دارایی‌ها یا بدهی‌های همانند است که واحد تجاری می‌تواند در تاریخ اندازه‌گیری به آنها دست یابد."]
[null,null,null,"ب ـ داده‌های ورودی سطح 2، داده‌های ورودی غیر از قيمت‌هاي اعلام‌شده‌ مشمول سطح 1 هستند و برای دارایی یا بدهی مورد نظر، بطور مستقیم یا غیرمستقیم قابل مشاهده می‌باشند."]
[null,null,null,"ج ـ داده‌های ورودی سطح 3، داده‌های ورودی غیرقابل مشاهده دارایی یا بدهی می‌باشند."]
[null,null,null,"2-3- درآمد عملیاتی"]
[null,null,null,"1-2-3- درآمد عملیاتی حاصل از قرارداد با مشتریان در زمان ایفای تعهدات عملکردی از طریق انتقال کالا یا خدمت تعهد شده (یعنی یک دارایی) به مشتری، شناسایی می‌شود. دارایی در زمانی (در طول زمانی) انتقال می‌یابد که مشتری کنترل دارایی را بدست آورد. مشتری کنترل کالا را در زمان تحویل در درب کارخانه/.../... و کنترل خدمات را در طول اجرای تعهدات عملکردی بدست می‌آورد."]
[null,null,null,"2-2-3- در موارد فروش با حق برگشت کالا، معادل مبلغ فروش کالای برگشتی برآوردی، به جای انعکاس در درآمد عملیاتی به عنوان \"بدهی استرداد\" شناسایی می‌شود و در مقابل، معادل مبلغ بهای تمام شده کالای برگشتی برآوردی به جای انعکاس در بهای تمام شده درآمد عملیاتی، به عنوان\"دارایی حق برگشت\" شناسایی می‌شود."]
[null,null,null,"3-2-3- این درآمد ارزش منصفانه مابه‌ازایی است که شرکت انتظار دارد در قبال انتقال کالا یا خدمت تعهد شده به مشتری نسبت به آن محق باشد به استثنای مبالغی که به نمایندگی از اشخاص ثالث وصول می‌شود (برای مثال، مالیات بر ارزش افزوده). مابه‌ازای تعهد شده در قرارداد با مشتری، ممکن است شامل مبالغ ثابت، مبالغ متغیر، یا هر دو باشد."]
[null,null,null,"3-3- دارایی‌های حاصل از قرارداد با مشتریان و بدهی‌های ناشی از قرارداد با مشتریان\n "]
[null,null,null,"شرکت مانده‌های قراردادی خود را به تفکیک هر قرارداد، در طبقه دارایی‌های حاصل از قرارداد یا بدهی‌های ناشی از قرارداد ارائه می‌کند. دارایی‌های حاصل از قرارداد جدا از حساب‌های دریافتنی ارائه می‌شوند. هردو طبقه دارایی‌های حاصل از قرارداد و حساب‌های دریافتنی، نشان‌دهنده حق شرکت برای دریافت مابه‌ازا در قبال انتقال کالا یا خدمت به مشتری هستند، اما تفاوت آنها در زمان تحقق این حق است، به گونه‌ای که حساب‌های دریافتنی مشروط به گذر زمان می‌باشد، در حالی که دارایی‌های حاصل از قرارداد مشروط به ایفای تعهدات عملکردی بیشتر توسط شرکت طبق مفاد قرارداد است، به عبارت دیگر درآمد شناسایی شده‌ای است که هنوز صورتحساب آنها صادر نشده است"]
[]
[]
[]
[]
[]
[]
[]
[]
[]
[]
[null,null,null," رویه های حسابداری که موضوعیت ندارد ، نباید افشا شود1"]

{"sheet":"13","index":15,"n_rows":19,"n_cols":12,"rows_kept":19,"cut":false,"hidden":false,"merged":[[18,3,18,13],[39,4,39,12],[14,3,14,6],[13,3,13,6],[5,3,5,13],[15,8,15,9],[35,4,35,12],[10,3,10,13],[16,11,16,13],[16,8,16,9],[17,3,17,13],[15,11,15,13],[16,3,16,6],[15,3,15,6],[14,11,14,13],[11,3,11,6],[14,8,14,9],[1,3,1,13],[0,3,0,12],[11,8,11,9],[6,3,6,13],[13,8,13,9],[3,3,3,13],[8,3,8,13],[7,3,7,13],[4,3,4,13],[11,11,11,13],[9,3,9,13],[13,11,13,13]]}
[null,null,null,{"$f":"عنوان!A13","v":0}]
[null,null,null,"یادداشت های توضیحی صورت های مالی"]
[]
[null,null,null," و پس از صدور صورتحساب برای مشتری به دریافتنی‌های تجاری تجدید طبقه‌بندی می‌شود. همچنین، بدهی‌های ناشی از قرارداد شامل مبالغی است که تاکنون توسط شرکت دریافت شده یا قابل دریافت است لیکن میزان آن بیش از حق شرکت نسبت به مابه‌ازای مربوط به تعهدات عملکردی انجام شده است. مجموع خالص دارایی‌های حاصل از هر قرارداد و بدهی‌های ناشی از همان قرارداد بر حسب مورد در سرفصل‌ (دارایی‌های حاصل از قرارداد) و (بدهی‌های ناشی از قرارداد) در صورت وضعیت مالی ارائه می‌شود"]
[]
[null,null,null,"4-3- گزارشگرى برحسب قسمت‌هاى مختلف"]
[null,null,"14-25\n15-25\n16-25\n17-25\n18-25\n19-25\n115-43","1-4-3- قسمت‌هاى شرکت در صورتى به عنوان قسمت قابل گزارش مشخص مي‌شود كه اكثر درآمد عملياتى آنها از فروش به مشتريان برون سازمانى عايد گردد و درآمد عملياتى حاصل از فروش به مشتريان برون‌سازمانى و معاملات با ساير قسمت‌ها، حداقل 10 درصد جمع درآمد تمام قسمت‌ها اعم از برون‌سازمانى يا داخلى باشد، يا نتيجه عمليات قسمت، اعم از سود يا زيان، حداقل 10 درصد مجموع سود عملياتى قسمت‌هاى سودده يا مجموع زيان‌هاى عملياتى قسمت‌هاى زيان‌ده، هر كدام كه قدرمطلق آن بزرگتر است باشد؛ يا دارايي‌هاى آن حداقل 10 درصد جمع دارايي‌هاى تمام قسمت‌ها باشد. توضيح اين كه جمع درآمد عملياتى حاصل از فروش به مشتريان برون‌سازمانى كه قابل ‌انتساب به قسمت‌هاى قابل‌گزارش است، باید بيش از 75 درصد جمع درآمد عملياتى شرکت ‌باشد."]
[null,null,"20-25","2-4-3- اطلاعات قسمت‌های قابل ‌گزارش بر اساس همان رویه‌های حسابداری مورد استفاده در تهیه صورت‌های مالی شرکت، تهیه شده است."]
[null,null,null,"3-4-3- درآمد عملیاتی قسمت ناشی از معاملات با سایر قسمت‌ها (انتقالات بین قسمت‌ها)، بر مبنای همان رویه مورد عمل شرکت برای قیمت‌گذاری آن انتقالات، اندازه‌گیری می‌شود. هزینه‌های عملیاتی قسمت شامل هزینه‌های مرتبط با فعالیت اصلی و مستمر قسمت، سایر هزینه‌های مستقیم قابل‌انتساب به قسمت و نیز آن بخش از هزینه‌های مشترک می‌باشد که بر مبنای نسبت درآمد عملیاتی قسمت به کل درآمد عملیاتی شرکت، به قسمت قابل‌گزارش تخصیص می‌یابد."]
[null,null,null,"5-3- تسعير ارز"]
[null,null,null,"1-5-3- اقلام پولى ارزى با نرخ قابل دسترس ارز در پایان دوره و اقلام غيرپولى كه به بهاى تمام شده برحسب ارز اندازه‌گیری شده است، با نرخ قابل دسترس ارز در تاریخ معامله، تسعیر می‌شود. نرخ‌های قابل دسترس به شرح زیر است:"]
[null,null,null,"مانده ها و معاملات مرتبط ",null,null,null,null,"نوع ارز",null,null,"نرخ تسعیر "]
[]
[null,null,null,"موجودی نقد",null,null,null,null,"یورو",null,null,"نرخ تالار دوم مرکز مبادله ...... ریاال "]
[null,null,null,"تسهیلات ارزی ",null,null,null,null,"یورو",null,null,"نرخ تالار دوم مرکز مبادله ...... ریاال "]
[null,null,null,"دریافتنی های ارزی",null,null,null,null,"دلار",null,null,"نرخ تالار دوم مرکز مبادله ...... ریاال "]
[null,null,null,"................................",null,null,null,null,"................................",null,null,"................................"]
[null,null,"16-27","2-5-3-تفاوت‌های ناشی از تسویه یا تسعیر اقلام پولی ارزی حسب مورد به شرح زیر در حساب‌ها منظور می‌شود :"]
[null,null,"الف 29-16\n\nب 29-16\n\n","الف - تفاوت‌های تسعیر بدهی‌های ارزی مربوط به دارایی‌های واجد شرایط، به بهای تمام شده آن دارایی منظور می‌شود.\nب – تفاوت تسعیر بدهی‌های ارزی مربوط به تحصیل و ساخت دارایی‌ها، ناشی از کاهش شدید ارزش ریال، در صورتی که کاهش ارزش ریال نسبت به تاریخ شروع کاهش ارزش، حداقل 20 درصد باشد \n"]

{"sheet":"14","index":16,"n_rows":19,"n_cols":4,"rows_kept":19,"cut":false,"hidden":false,"merged":[[16,11,16,13],[16,8,16,9],[15,11,15,13],[12,3,13,3],[39,4,39,12],[15,8,15,9],[35,4,35,12]]}
[null,null,null,{"$f":"عنوان!A13","v":0}]
[null,null,null,"یادداشت های توضیحی صورت های مالی"]
[]
[null,null,null,"و در مقابل بدهی حفاظی وجود نداشته باشد، تا سقف مبلغ قابل بازیافت، به بهای تمام شده دارایی مربوط اضافه می‌شود."]
[null,null,"ب 29-16","پ – در صورت برگشت شدید کاهش ارزش ریال (حداقل 20 درصد)، سود ناشی از تسعیر بدهی‌های مزبور تا سقف زیان‌های تسعیری که قبلاً به بهاي تمام شده دارایی منظور شده است متناسب با عمر مفید باقیمانده از بهاي تمام شده دارایی کسر می‌شود.\nت – در سایر موارد، به عنوان درآمد یا هزینه دوره وقوع شناسایی و در صورت سود و زیان گزارش می‌شود."]
[]
[null,null,"26-16","3-5-3- در صورت وجود نرخ‌های متعدد برای یک ارز، از نرخی برای تسعیر استفاده می‌شود که جریان‌های نقدی آتی ناشی از معامله یا مانده حساب مربوط، بر حسب آن تسویه می‌شود. اگر تبدیل دو واحد پول به یکدیگر به صورت موقت ممکن نباشد، نرخ مورد استفاده، نرخ اولین تاریخی است که در آن، تبدیل امکان‌پذیر می‌شود.\n"]
[null,null,"8و 7ـ13","6-3- مخارج تامين مالى\n\n"]
[null,null,null,"مخارج تامين مالى در دوره وقوع به عنوان هزينه شناسايى مي‌شود، به استثناى مخارجى كه مستقيما قابل‌انتساب به تحصيل «دارايي‌هاى واجد شرايط» است.\n\n"]
[null,null,"77-11","7-3- دارايي‌هاى ثابت مشهود"]
[null,null,null,"3-7-1- دارايي‌هاى ثابت مشهود (به استثناى موارد مندرج در يادداشت‌های 2-7-3 و 3-7-3) بر مبناى بهاى تمام شده اندازه‌گیری مي‌شود. مخارج بعدی مرتبط با دارايي‌هاى ثابت مشهود که موجب بهبود وضعیت دارایی در مقایسه با استاندارد عملکرد ارزیابی‌شده اولیه آن گردد و منجر به افزایش منافع اقتصادی حاصل از دارایی شود، به مبلغ دفتری دارایی اضافه و طی عمر مفید باقیمانده دارایی‌های مربوط مستهلک می‌شود. مخارج روزمره تعمیر و نگهداری دارایی‌ها که به منظور حفظ وضعیت دارایی در مقایسه با استاندارد عملکرد ارزیابی‌شده اولیه دارایی انجام می‌شود، در زمان وقوع به عنوان هزینه شناسایی می‌گردد."]
[null,null,null,"2-7-3- ماشين‌آلات و تجهیزات بر مبناى مبلغ تجديد ارزيابى در حساب‌ها انعکاس یافته است. تجدید ارزیابی در تاریخ......... با استفاده از ارزیابان مستقل، صورت پذیرفته است. تناوب تجديد ارزيابي به تغييرات ارزش منصفانه دارايي‌هاي تجديد ارزيابي شده بستگي دارد. چنانچه ارزش منصفانه دارايي‌هاي تجديد ارزيابي‌شده، تفاوت بااهميتي با مبلغ دفتري آن داشته باشد، تجديد ارزيابي بعدي ضرورت دارد. دوره تناوب تجدید ارزیابی ...... ساله می‌باشد."]
[null,null,null,"    3-7-3دارایی‌های ثابت مشهود تحصیل شده از طریق قرارداد اجاره به شرط تملیک، به «اقل ارزش منصفانه دارایی در آغاز اجاره و ارزش فعلی حداقل مبالغ اجاره» اندازه‌گیری می‌شود. جهت محاسبه ارزش فعلی حداقل مبالغ اجاره، از نرخ ضمنی سود تضمین‌شده اجاره استفاده می‌گردد."]
[]
[null,null,"11-77","3-7-4- استهلاك دارايي‌هاى ثابت مشهود، مشتمل بر دارایی‌های ناشی از اجاره سرمایه‌ای، با توجه به الگوی مصرف منافع اقتصادی آتی مورد انتظار (شامل عمر مفيد برآوردى) دارايي‌هاى مربوط و با در نظر گرفتن آيين‌نامه استهلاكات موضوع ماده 149 اصلاحیه مصوب 31/04/1394 قانون ماليات‌هاى مستقيم مصوب اسفندماه 1366 و اصلاحیه‌های بعدی آن و بر اساس نرخ‌ها و روش‌هاى زير محاسبه مي‌شود:\n\n\n\n\n"]
[null,null,null,""]
[null,null,null,""]
[]
[null,null,null,""]

{"sheet":"15","index":17,"n_rows":20,"n_cols":12,"rows_kept":20,"cut":false,"hidden":false,"merged":[[0,3,0,13],[18,3,18,13],[14,3,14,12],[6,3,6,5],[15,12,15,14],[10,7,10,9],[6,7,6,9],[13,3,13,12],[15,8,15,9],[3,3,3,5],[16,12,16,14],[8,3,8,5],[16,8,16,9],[35,4,35,13],[10,3,10,5],[6,11,6,12],[19,3,19,13],[15,3,15,7],[4,3,4,5],[4,7,4,9],[9,11,9,12],[7,7,7,9],[5,7,5,9],[39,4,39,13],[3,7,3,9],[10,11,10,12],[8,7,8,9],[5,3,5,5],[17,3,17,13],[8,11,8,12],[9,3,9,5],[9,7,9,9],[5,11,5,12],[4,11,4,12],[7,3,7,5],[7,11,7,12],[16,3,16,7],[3,11,3,12]]}
[null,null,null,{"$f":"عنوان!A13","v":0}]
[null,null,"یادداشت های توضیحی صورت های مالی"]
[]
[null,null,null,"نوع دارایی",null,null,null,"نرخ استهلاک",null,null,null,"روش استهلاک"]
[null,null,null,"ساختمان ",null,null,null,".....",null,null,null,"....."]
[null,null,null,"تاسیسات",null,null,null,".....",null,null,null,"....."]
[null,null,null,"ماشین‌آلات و تجهیزات",null,null,null,".....",null,null,null,"....."]
[null,null,null,"وسایل نقلیه",null,null,null,".....",null,null,null,"....."]
[null,null,null,"اثاثه و منصوبات",null,null,null,".....",null,null,null,"....."]
[null,null,null,"ابزارآلات",null,null,null,".....",null,null,null,"....."]
[null,null,null,".....",null,null,null,".....",null,null,null,"....."]
[]
[]
[null,null,null,"3-7-4-1- براى دارايي‌هاى ثابتى كه طى ماه تحصيل مي‌شود و مورد بهره‏بردارى قرار مى‏گيرد، استهلاك از اول ماه بعد محاسبه و در حساب‌ها منظور مي‌شود. در مواردى كه هر يك از دارايي‌هاى استهلاك‌پذير (به استثنای ساختمان‌ها و تاسیسات ساختمانی) پس از آمادگى جهت بهره‌بردارى به علت تعطيل كار يا علل ديگر براى بیش از 6 ماه متوالی در یک دوره مالی مورد استفاده قرار نگيرد، ميزان استهلاك آن براى مدت ياد شده معادل 30 درصد نرخ استهلاك منعكس در جدول بالاست. در این صورت چنانچه محاسبه استهلاك بر حسب مدت باشد، 70 درصد مدت زمانی که دارایی مـورد استفاده قرار نگرفته است، به باقی‌مانده مدت تعیین شده براي استهلاك دارایی در این جدول اضافه خواهد شد."]
[null,null,null,"2-4-7-3- استهلاک دارایی‌های تجدیدارزیابی‌شده با توجه به مبلغ دفتری جدید (پس از تجدیدارزیابی)، طی عمر مفید باقیمانده محاسبه و در حساب‌ها منظور می‌شود."]
[]
[null,null,null,"3-8- مازاد تجدیدارزیابی دارایی‌ها"]
[null,null,"39-11","1-8-3- افزايش‌ مبلغ‌ دفتري‌ يك‌ دارايي‌ ثابت‌ مشهود در نتيجه‌ تجديد ارزيابي‌ آن‌ (درآمد غيرعملياتي‌ تحقق‌‌نيافته‌ ناشي از تجديد ارزيابي‌) مستقيما تحت‌ عنوان‌ مازاد تجديد ارزيابي‌ ثبت‌ و در صورت وضعیت مالی به ‌عنوان‌ بخشي‌ از حقوق‌ مالکانه‌ طبقه‌بندي‌ مي‌شود و در صورت‌ سود و زيان‌ جامع‌ انعكاس‌ مي‌يابد. هرگاه‌ افزايش‌ مزبور عكس‌ يك‌ كاهش‌ قبلي‌ ناشي از تجديد ارزيابي‌ باشد كه‌ به‌ عنوان‌ هزينه‌ شناسايي‌ گرديده‌ است‌، در اين ‌صورت،‌ اين‌ افزايش‌ تا ميزان‌ هزينه‌ قبلي‌ شناسايي‌ شده‌ در رابطه‌ با همان‌ دارايي‌ به ‌عنوان‌ درآمد به‌ سود و زيان‌ دوره‌ منظور می‌شود."]
[null,null,"40-11","2-8-3- كاهش‌ مبلغ‌ دفتري‌ يك‌ دارايي‌ ثابت‌ مشهود در نتيجه‌ تجديد ارزيابي‌ آن‌ به ‌عنوان‌ هزينه‌ شناسايي‌ مي‌شود. هرگاه‌ كاهش‌ مزبور عكس‌ يك‌ افزايش‌ قبلي‌ ناشي از تجديد ارزيابي‌ باشد كه‌ به‌ حساب‌ مازاد تجديد ارزيابي‌ منظور شده‌ است‌، در اين ‌صورت، اين‌ كاهش‌ تا ميزان‌ مازاد تجديد ارزيابي‌ مربوط‌ به‌ همان‌ دارايي‌ به‌ بدهکار حساب‌ مازاد تجديد ارزيابي‌ منظور می‌گردد و در صورت‌ سود و زيان‌ جامع‌ انعكاس‌ می‌يابد و باقيمانده‌ به‌ عنوان‌ هزينه‌ شناسايي‌ می‌شود."]
[null,null,"41-11","3-8-3- مازاد تجديد ارزيابي منعکس شده در سرفصل حقوق مالکانه، در زمان برکناري يا واگذاري دارايي مربوط يا به موازات استفاده از آن توسط شرکت، مستقيما به حساب سود انباشته منظور شود. مبلغ مازاد قابل انتقال معادل تفاوت بين استهلاک مبتني بر مبلغ تجديد ارزيابي دارايي و استهلاک مبتني بر بهاي تمام شده تاريخي آن است. افزايش سرمايه به طور مستقيم، از محل مازاد تجدید ارزیابی مجاز نيست، مگر در مواردي که به ‌موجب قانون تجويز شده باشد."]

{"sheet":"16","index":18,"n_rows":24,"n_cols":11,"rows_kept":24,"cut":false,"hidden":false,"merged":[[0,3,0,13],[40,4,40,13],[36,4,36,13],[13,6,13,8],[19,10,19,11],[16,2,16,4],[19,6,19,8],[15,6,15,8],[15,2,15,4],[15,10,15,11],[14,10,14,11],[1,2,1,12],[13,10,13,11],[14,2,14,4],[16,10,16,11],[13,2,13,4],[14,6,14,8],[12,2,12,4],[12,6,12,8],[16,6,16,8],[12,10,12,11],[19,2,19,4],[17,10,17,11],[17,2,17,4],[17,6,17,8]]}
[null,null,null,{"$f":"عنوان!A13","v":0}]
[null,null,"یادداشت های توضیحی صورت های مالی"]
[]
[null,"3-9 سرمایه‌گذاری در املاک"]
["15-5","سرمایه‌گذاری در املاک به بهای تمام شده پس از کسر کاهش ارزش انباشته هر یک از سرمایه‌گذاری‌ها اندازه‌گیری می‌شود. درآمد سرمایه‌گذاری در املاک، به ارزش منصفانه مابه‌ازای دریافتی یا دریافتنی به کسر مبالغ برآوردی از بابت برگشت از فروش و تخفیفات شناسایی می‌شود. سرمایه‌گذاری در املاک شامل سرمايه‌گذاري‌ در زمين‌ يا ساختماني‌ است‌ كه‌ تکمیل شده یا در جریان ساخت است و به‌ جهت‌ ارزش‌ بالقوه‌اي‌ كه‌ از نظر سرمايه‌گذاري‌ دارد (افزایش ارزش و اجاره) و نه‌ به قصد استفاده یا فروش در روال عادی فعالیتهای تجاری توسط‌ شرکت نگهداري‌ مي‌شود."]
[]
["17-58","3-10- دارایی‌های نامشهود"]
["17-96\n17-100","1-10-3- دارایی‌های نامشهود، بر مبناى بهاى تمام شده اندازه‌گیری و در حساب‌ها ثبت مى‏شود. مخارجی از قبیل مخارج معرفي يک محصول يا خدمت جديد مانند مخارج تبليغات، مخارج انجام فعاليت تجاري در يک محل جديد يا با يک گروه جديد از مشتريان مانند مخارج آموزش کارکنان، و مخارج اداري، عمومي و فروش در بهاي تمام شده دارايي نامشهود منظور نمي‌شود. شناسايي مخارج در مبلغ دفتري يک دارايي نامشهود، هنگامي که دارايي آماده بهره‌برداري است، متوقف مي‌شود. بنابراين، مخارج تحمل شده براي استفاده يا بکارگيري مجدد يک دارايي نامشهود، در مبلغ دفتري آن منظور نمي‌شود."]
[]
[null,"2-10-3- استهلاک دارایی‌های نامشهود با عمر مفید معین، با توجه به الگوی مصرف منافع اقتصادی آتی مورد انتظار مربوط و بر اساس نرخ‌ها و روش‌های زیر محاسبه می‌شود:"]
[]
[]
[null,null,"نوع دارایی",null,null,null,"نرخ استهلاک",null,null,null,"روش استهلاک"]
[null,null,"ساختمان ",null,null,null,".....",null,null,null,"....."]
[null,null,"دانش فنی ",null,null,null,".....",null,null,null,"....."]
[null,null,"نرم افزارها",null,null,null,".....",null,null,null,"....."]
[null,null,".....",null,null,null,".....",null,null,null,"....."]
[]
["32-115","3-10-3- سرقفلی محل کسب به دلیل عمر مفید نامعین، مستهلک نمی‌شود."]
["32-116","3-11","3-11  زیان کاهش ارزش دارایی‌ها"]
[null,"3-11-1- در پایان هر دوره گزارشگری، در صورت وجود هرگونه نشانه‌ای دال بر امکان کاهش ارزش دارایی‌ها، آزمون کاهش ارزش انجام می‌گیرد. در این صورت مبلغ بازیافتنی دارایی برآورد و با ارزش دفتری آن مقایسه می‌گردد. چنانچه برآورد مبلغ بازیافتنی یک دارایی منفرد ممکن نباشد، مبلغ بازیافتنی واحد مولد وجه نقدی که دارایی متعلق به آن است تعیین می‌گردد."]
[null,"3-11-2- آزمون کاهش ارزش دارایی‌های نامشهود با عمر مفید نامعین، بدون توجه به وجود یا عدم‌وجود هرگونه نشانه‌ای دال بر امکان کاهش ارزش، به طور سالانه انجام می‌شود."]
[null,"3-11-3- مبلغ بازیافتنی یک دارایی (یا واحد مولد وجه نقد)، ارزش فروش به کسر مخارج فروش یا ارزش اقتصادی، هر کدام بیشتر است می‌باشد. ارزش اقتصادی برابر با ارزش فعلی جریان‌های نقدی آتی ناشی از دارایی با استفاده از نرخ تنزیل قبل از مالیات که بیانگر ارزش زمانی پول و ریسک‌های مختص دارایی که جریان‌های نقدی آتی برآوردی بابت آن تعدیل نشده است، می‌باشد."]
[null,"3-11-4- تنها در صورتی‌که مبلغ بازیافتنی یک دارایی از مبلغ دفتری آن کمتر باشد، مبلغ دفتری دارایی (یا واحد مولد وجه نقد) تا مبلغ بازیافتنی آن کاهش یافته و تفاوت به عنوان زیان کاهش ارزش بلافاصله در صورت سود و زیان شناسایی می‌گردد، مگر اینکه دارایی تجدید ارزیابی‌شده باشد که در این صورت منجر به کاهش مبلغ مازاد تجدید ارزیابی می‌گردد."]

{"sheet":"17","index":19,"n_rows":20,"n_cols":6,"rows_kept":20,"cut":false,"hidden":false,"merged":[[8,5,8,8],[7,5,7,8],[17,2,17,3],[19,2,19,3],[1,2,1,3],[3,2,3,3],[6,2,6,3],[13,2,13,3],[15,2,15,3],[5,2,5,3],[10,5,10,8],[18,2,18,3],[11,5,11,8],[40,4,40,13],[9,5,9,8],[16,2,16,3],[36,4,36,13]]}
[null,null,null,{"$f":"عنوان!A13","v":0}]
[null,null,"یادداشت های توضیحی صورت های مالی"]
[]
[null,null,"5-11-3- در صورت افزایش مبلغ بازیافتنی از زمان شناسایی آخرین زیان که بیانگر برگشت زیان کاهش ارزش دارایی (واحد مولد وجه نقد) می‌باشد، مبلغ دفتری دارایی تا مبلغ بازیافتنی جدید حداکثر تا مبلغ دفتری با فرض عدم ‌شناسایی زیان کاهش ارزش در سال‌های قبل، افزایش می‌یابد. برگشت زیان کاهش ارزش دارایی (واحد مولد وجه نقد) نیز بلافاصله در صورت سود و زیان شناسایی می‌گردد مگر اینکه دارایی تجدید ارزیابی ‌شده باشد که در این صورت منجر به افزایش مبلغ مازاد تجدید ارزیابی می‌گردد."]
[]
[null,"8-48","12-3- موجودى مواد و كالا"]
[null,"25تا22-8","1-12-3- موجودى مواد و كالا به «اقل بهاى تمام شده و خالص ارزش فروش» هر یک از اقلام/گروه‌هاى اقلام مشابه ارزشيابى مي‌شود. در صورت فزونى بهاى تمام شده نسبت به خالص ارزش فروش، تفاوت به عنوان زیان كاهش ارزش موجودى شناسايى مي‌شود. بهاى تمام شده موجودي‌ها با بكارگيرى روش‌هاى زير تعيين مي‌شود:"]
[null,null,null,null,null,"روش مورد استفاده"]
[null,null,null,"مواد اوليه و بسته‌بندى",null,"اولین صادره از اولین وارده "]
[null,null,null,"كالاى در جريان ساخت",null,"اولین صادره از اولین وارده "]
[null,null,null,"\t    كالاى ساخته شده",null,"میانگین موزون "]
[null,null,null,"قطعات و لوازم يدكى",null,"میانگین موزون "]
[]
[null,null,"3-12-2- موجودى مواد اوليه و بسته‌بندى در شركت تا قبل از سال مالى 4x14 با بكارگيرى روش ميانگين موزون اندازه‌گیری مي‌شد، اما به دلیل ......... از ابتداى سال 4x14 روش مزبور به روش «اولين صادره از اولين وارده» تغيير یافته و روش جديد با فرض تسرى به دوره‌هاى قبل اعمال شده است (يادداشت 2-42)."]
[]
[null,null,"13-3- دارایی‌های غیرجاری نگهداری‌شده برای فروش"]
[null,"31-7\n31-8\n31-9","1-13-3- دارایی‌های غیرجاری (مجموعه‌های واحد) که مبلغ دفتری آنها، عمدتا از طریق فروش و نه استفاده مستمر بازیافت می‌گردد، به عنوان «دارایی‌های غیرجاری نگهداری‌شده برای فروش» طبقه‌بندی می‌شود. این شرایط تنها زمانی احراز می‌شود که دارایی‌های غیرجاری (مجموعه‌های واحد) جهت فروش فوری در وضعیت فعلی آن، فقط بر حسب شرایطی که برای فروش چنین دارایی‌هایی مرسوم و معمول است، آماده بوده و فروش آن بسیار محتمل باشد و سطح مناسبی از مدیریت، متعهد به اجرای طرح فروش دارایی‌های غیرجاری (مجموعه‌های واحد) باشد به گونه‌ای که انتظار رود شرایط تکمیل فروش طی یک سال از تاریخ طبقه‌بندی، به استثنای مواردی که خارج از حیطه اختیار مدیریت شرکت است، احراز گردد."]
[null,"31-16","2-13-3- دارایی‌های غیرجاری (مجموعه‌های واحد) نگهداری‌شده برای فروش، به «اقل مبلغ دفتری و خالص ارزش فروش» اندازه‌گیری می‌گردد."]
[null,null,"14-3- ذخایر"]
[null,"4-7\n4-11\n4-50\n4-74\n4-75","ذخایر، بدهی‌هایی هستند که زمان تسویه و یا تعیین مبلغ آن توام با ابهام نسبتا قابل توجه است. ذخایر زمانی شناسایی می‌شوند که شرکت دارای تعهد فعلی (قانونی یا عرفی) در نتیجه رویدادهای گذشته باشد، خروج منافع اقتصادی برای تسویه تعهد محتمل باشد و مبلغ تعهد به گونه‌ای اتکاپذیر قابل برآورد باشد.\n"]

{"sheet":"18","index":20,"n_rows":12,"n_cols":2,"rows_kept":12,"cut":false,"hidden":false,"merged":[[11,1,11,9],[12,1,12,9],[5,1,5,9],[10,1,10,5],[8,1,8,9],[7,1,7,9]]}
[{"$f":"عنوان!A13","v":0}]
["یادداشت های توضیحی صورت های مالی"]
[{"$f":"عنوان!A15","v":0}]
[]
[]
[null,"ذخاير در پايان هر دوره مالي بررسي و براي نشان‌ دادن بهترين برآورد جاري تعديل می‌شوند و هرگاه خروج منافع اقتصادي براي تسويه تعهد، ديگر محتمل نباشد، ذخيره برگشت داده می‌شود."]
[]
[null,"1-14-3- ذخیره تضمین محصولات (گارانتی)"]
["4-57\n4-59\n4-20","قراردادهای زیانبار، قراردادهایي هستند که مخارج غيرقابل اجتناب آنها برای ايفاي تعهدات ناشي از قراردادها، بيش از منافع اقتصادي مورد انتظار آن قراردادها است. مخارج غيرقابل ‌اجتناب قرارداد، حداقل خالص مخارج خروج از قرارداد يعني اقل «زیان ناشی از اجرای قرارداد» و «مخارج جبران خسارت ناشی از ترک قرارداد» است. جهت‌ كليه‌ قراردادهای زیانبار، ذخیره لازم به میزان تعهد فعلي مربوط به زیان قراردادها، شناسايي می‌شود."]
[]
["4-11","3-14-3- ذخيره مزاياى پايان خدمت كاركنان"]
[null,"ذخيره مزاياى پايان خدمت كاركنان براساس يك ماه آخرين حقوق ثابت و مزاياى مستمر براى هر سال خدمت آنان محاسبه و در حساب‌ها منظور مي‌شود."]

{"sheet":"19","index":21,"n_rows":20,"n_cols":10,"rows_kept":20,"cut":false,"hidden":false,"merged":[[2,0,2,8],[9,9,9,16],[7,4,7,8],[12,9,12,16],[13,4,13,8],[8,9,8,16],[16,1,16,16],[7,9,7,16],[11,4,11,8],[7,1,7,3],[13,9,13,16],[0,0,0,8],[11,1,11,3],[19,1,19,16],[18,1,18,3],[1,0,1,8],[9,4,9,8],[12,4,12,8],[8,1,8,3],[8,4,8,8],[10,9,10,16],[10,4,10,8],[12,1,13,3],[15,1,15,3],[9,1,10,3],[11,9,11,16],[5,1,5,8]]}
[{"$f":"عنوان!A13","v":0}]
["یادداشت های توضیحی صورت های مالی"]
[{"$f":"عنوان!A15","v":0}]
[]
[]
[null,"15-3- سرمايه‌گذاري‌ها"]
[]
[null,null,null,null,"نوع سرمایه‌گذاری",null,null,null,null,"نحوه اندازگیری"]
[null,"سرمایه‌گذاری‌های بلندمدت",null,null,"سرمايه‌گذاري‌ در اوراق‌بهادار",null,null,null,null,"بهـاى تمـام شــده به كسـر کاهش ارزش انباشته هر یک از سرمایه‌گذاری‌ها"]
[null,"سرمایه‌گذاری‌های جاری",null,null,"سرمايه‌گذاري سريع‏المعامله در بازار",null,null,null,null,"ارزش بازار مجموعه‌ (پرتفوي‌) سرمايه‌گذاري‌ها"]
[null,null,null,null,"ساير سرمايه‌گذاري‌هاى جارى",null,null,null,null,"اقل بهاى تمام شده و خالص ارزش فروش هر یک از سرمايه‌گذاري‌ها"]
[null,null,null,null,"نوع سرمایه‌گذاری",null,null,null,null,"زمان شناخت درامد"]
[null,"انواع سرمایه‌گذاری‌ها",null,null,"سرمايه‌گذاري‌هاى جاری و بلندمدت در سهام شرکت‌ها",null,null,null,null,"در زمان تصويب سود توسط مجمع عمومى صاحبان سهام شركت سرمايه‏پذير (تا تاريخ صورت وضعیت مالی)"]
[null,null,null,null,"سرمایه‌گذاری در سایر اوراق بهادار",null,null,null,null,"در زمان تحقق سود تضمین شده (با توجه به نرخ سود مؤثر)"]
[]
[null,"16-3- اوراق مشارکت"]
[null,"اوراق‌ مشارکت منتشر شده به کسر، بر مبنای روش «ناخالص» در حساب‌ها ثبت می‌گردد. مبلغ کسر اوراق مشارکت و همچنین مخارج انتشار آن در مقاطع سررسید پرداخت سود و کارمزد بر اساس روش «نرخ سود موثر» مستهلک می‌گردد."]
[]
[null,"17-3- سهام خزانه"]
[null,"3-17-1- سهام خزانه به روش بهای تمام شده شناسایی می‌شود و به عنوان یک رقم کاهنده در بخش حقوق مالکانه در صورت وضعیت مالی ارائه می‌شود. در زمان خريد، فروش، انتشار يا ابطال ابزار‌هاي مالكانه خود شرکت، هيچ‌ سود يا زياني در صورت سود و زيان شناسايي نمی‌شود. مابه‌ازای پرداختي يا دريافتی بطور مستقیم در بخش حقوق مالکانه شناسايي ‌می‌شود.\n2-17-2- هنگام فروش سهام خزانه، هیچگونه مبلغی در صورت سود و زیان و صورت سود و زیان جامع شناسایی نمی‌شود و تفاوت خالص مبلغ فروش و مبلغ دفتری در حساب «صرف (کسر) سهام خزانه» شناسایی و ثبت می‌شود."]

{"sheet":"20","index":22,"n_rows":19,"n_cols":2,"rows_kept":19,"cut":false,"hidden":false,"merged":[[5,1,5,9],[15,1,15,9],[8,1,8,9],[17,1,17,9],[7,1,7,9],[11,1,11,9],[12,1,12,9],[18,1,18,9],[9,1,9,9],[14,1,14,5],[10,1,10,5],[13,1,13,9]]}
[{"$f":"عنوان!A13","v":0}]
["یادداشت های توضیحی صورت های مالی"]
[{"$f":"عنوان!A15","v":0}]
[]
[]
[null,"3-17-3- در تاریخ گزارشگری، مانده بدهکار در حساب «صرف (کسر) سهام خزانه» به حساب سود (زیان) انباشته منتقل می‌شود. مانده بستانکار حساب مزبور تا میزان کسر سهام خزانه منظور شده قبلی به حساب سود (زیان) انباشته، به آن حساب منظور و باقیمانده به عنوان «صرف سهام خزانه» در صورت وضعیت مالی در بخش حقوق مالکانه ارائه و در زمان فروش کل سهام خزانه، به حساب سود (زیان) انباشته منتقل می‌شود.\n4-17-3- هرگاه‌ تنها بخشي‌ از مجموع‌ سهام خزانه‌، واگذار شود، مبلغ‌ دفتري‌ هر سهم خزانه بر مبناي‌ ميانگين‌ بهاي‌ تمام‌ شده‌ مجموع‌ سهام خزانه محاسبه‌ می‌شود."]
[]
["35-78","3-18- مالیات بر درآمد"]
["35-79","3-18-1 هزینه مالیات "]
[null,"هزینه مالیات، مجموع مالیات جاری و انتقالی است. ماليات جاري و مالیات انتقالي در صورت سود و زيان منعكس می‌شوند، مگر در مواردی که به اقلام شناسایی شده در صورت سود و زیان جامع یا حقوق صاحبان سرمایه مرتبط باشند که به ترتیب در صورت سود و زیان جامع یا مستقیما در حقوق مالکانه شناسایی می‌شوند."]
["35-20","2-18-3- مالیات انتقالی"]
[null,"مالیات انتقالی، بر اساس تفاوت موقتی بین مبلغ دفتری دارایی‌ها و بدهی‌ها برای مقاصد گزارشگری مالی و مبالغ مورد استفاده برای مقاصد مالیاتی محاسبه می‌شود.\nدر پایان هر دوره گزارشگری برای اطمینان از قابلیت بازیافت مبلغ دفتری دارایی‌های مالیات انتقالی، محتمل بودن وجود سود مشمول مالیات در آینده قابل پیش‌بینی برای بازیافت دارایی مالیات انتقالی ارزیابی می‌گردد و در صورت ضرورت، مبلغ دفتری دارایی‌های مزبور تا میزان قابل بازیافت کاهش داده می‌شود. چنین کاهشی، در صورتی برگشت داده می‌شود که وجود سود مشمول مالیات به میزان کافی، محتمل باشد."]
["35-71","3-18-3- تهاتر دارايي‌های مالیات جاری و بدهي‌هاي ماليات جاري"]
[null,"شرکت دارايي‌های مالیات جاری و بدهي‌هاي ماليات جاري را تنها در صورتی تهاتر می‌كند که الف. حق قانوني برای تهاتر مبالغ شناسايي‎شده داشته باشد و ب. قصد تسويه بر مبناي خالص، یا بازیافت و تسويه همزمان دارایی و بدهي را داشته باشد."]
[null,"4-18-3-  مالیات جاری و انتقالی دوره جاری"]
[null,"مالیات جاری و انتقالی در سود و زیان شناسایی می‌شود، به استثنای زمانی که آن‌ها مربوط به اقلامی باشند که در سایر اقلام سود و زیان جامع یا مستقیماً در حقوق مالکانه شناسایی می‌شوند، که در این خصوص، مالیات جاری و انتقالی نیز به ترتیب در سایر اقلام سود و زیان جامع یا مستقیماً در حقوق مالکانه شناسایی می‌شود. "]
[]
["123ـ1\n125ـ1\n129ـ1","4- قضاوت‌های مدیریت در فرآیند بکارگیری رویه‌های حسابداری و برآوردها\n1-4- قضاوت‌ها در فرآیند بکارگیری رویه‌های حسابداری \n1-1-4- طبقه‌بندی سرمایه‌گذاری‌ها در طبقه دارایی‌های غیرجاری"]
["41-8\n41-9\n41-10","هیات مدیره با بررسی نگهداشت سرمایه و نقدینگی مورد نیاز، قصد نگهداري‌ سرمایه‌گذاری‌های بلندمدت براي‌ مدت‌ طولاني را ‌دارد. این سرمایه‌گذاری‌ها با قصد استفاده‌ مستمر توسط‌ شرکت نگهداري‌ مي‌شود و هدف‌ آن‌ نگهداري‌ پرتفويي‌ از سرمايه‌گذاري‌ها جهت‌ تامين‌ درآمد و يا رشد سرمايه‌ براي‌ شرکت است‌."]

{"sheet":"21","index":23,"n_rows":29,"n_cols":11,"rows_kept":29,"cut":false,"hidden":false,"merged":[[28,0,28,1],[2,0,2,10],[12,8,12,10],[13,8,13,10],[13,4,13,6],[3,1,4,1],[1,0,1,10],[5,1,5,10],[16,0,16,1],[26,0,26,1],[0,0,0,10],[6,8,6,10],[21,0,21,1]]}
[{"$f":"عنوان!A13","v":0}]
["یادداشت های توضیحی صورت های مالی"]
[{"$f":"عنوان!A15","v":0}]
[null,"2-4- قضاوت مربوط به براوردها\n1-2-4- ذخیره تضمین محصولات"]
[]
[null,"به موجب قرارداد منعقده با مشتریان، محصولات فروخته شده دارای تضمین مرغوبیت کالا می باشد. با توجه به اینکه تضمین تعهد شده صرفا جهت ایجاد اطمینان از مطابقت محصول با ویژگی‌های توافق شده با مشتری می‌باشد، هیئت مدیره با توجه به میزان فروش و بررسی نتایج سال‌های گذشته، اقدام به برآورد ذخیره جهت تضمین محصولات می‌نماید."]
[null,null,null,null,null,null,null,null,"(مبالغ به میلیون ریال)"]
[null,"5- درآمدهای عملیاتی",null,null,null,null,null,null,{"$f":"IFERROR('10'!M10,\"..........\")","v":0},null,{"$f":"IFERROR('10'!K10,\"..........\")","v":0}]
[null,null,null,null,"فروش خالص(1-5)"]
[null,null,null,null,"درآمد ارائه خدمات (2-5)"]
[]
[]
[null,"5-1 - فروش خالص",null,null,null,null,null,null,"(مبالغ به میلیون ریال)"]
[null,null,null,null,{"$f":"IFERROR('10'!I15,\"..........\")","v":"13x4"},null,null,null,{"$f":"IFERROR('10'!I15,\"..........\")","v":"13x4"}]
[null,null,null,null,"مقدار",null,"مبلغ",null,"مقدار",null,"مبلغ"]
[]
["    داخلی:"]
[null,"گروه محصولات / محصول ..........",null,null,0,null,0,null,0,null,0]
[null,"گروه محصولات / محصول ..........",null,null,0,null,0,null,0,null,0]
[null,"سایر(اقلام کمتراز 10 درصد فروش ناخالص)"]
[null,null,null,null,{"$f":"IFERROR(IF(SUM(E18:E20)=0,\"..........\",SUM(E18:E20)),\"..........\")","v":".........."},null,{"$f":"IFERROR(IF(SUM(G18:G20)=0,\"..........\",SUM(G18:G20)),\"..........\")","v":".........."},null,{"$f":"IFERROR(IF(SUM(I18:I20)=0,\"..........\",SUM(I18:I20)),\"..........\")","v":".........."},null,{"$f":"IFERROR(IF(SUM(K18:K20)=0,\"..........\",SUM(K18:K20)),\"..........\")","v":".........."}]
["     صادراتی:"]
[null,"گروه محصولات / محصول.............",null,null,0,null,0,null,null,null,0]
[null,"گروه محصولات / محصول.............",null,null,0,null,0,null,null,null,0]
[null,"سایر(اقلام کمتراز 10 درصد فروش ناخالص)",null,null,{"$f":"IFERROR(IF(COUNT(E23:E24)=0,\"..........\",SUM(E23:E24)),\"..........\")","v":0},null,{"$f":"IFERROR(IF(COUNT(G23:G24)=0,\"..........\",SUM(G23:G24)),\"..........\")","v":0},null,null,null,{"$f":"IFERROR(IF(COUNT(K23:K24)=0,\"..........\",SUM(K23:K24)),\"..........\")","v":0}]
[null,null,null,null,{"$f":"IFERROR(IF(SUM(E23:E25)=0,\"..........\",SUM(E23:E25)),\"..........\")","v":".........."},null,{"$f":"IFERROR(IF(SUM(G23:G25)=0,\"..........\",SUM(G23:G25)),\"..........\")","v":".........."},null,{"$f":"IFERROR(IF(SUM(I23:I25)=0,\"..........\",SUM(I23:I25)),\"..........\")","v":".........."},null,{"$f":"IFERROR(IF(SUM(K23:K25)=0,\"..........\",SUM(K23:K25)),\"..........\")","v":".........."}]
["   فروش ناخالص",null,null,null,{"$f":"IFERROR(E21+E26,\"..........\")","v":".........."},null,{"$f":"IFERROR(G21+G26,\"..........\")","v":".........."},null,{"$f":"IFERROR(I21+I26,\"..........\")","v":".........."},null,{"$f":"IFERROR(K21+K26,\"..........\")","v":".........."}]
[null,"برگشت از فروش و تخفیفات",null,null,null,null,0,null,0,null,0]
["   فروش خالص",null,null,null,null,null,{"$f":"IFERROR(IF(SUM(G27:G28)=0,\"..........\",SUM(G27:G28)),\"..........\")","v":".........."},null,{"$f":"IFERROR(IF(SUM(I27:I28)=0,\"..........\",SUM(I27:I28)),\"..........\")","v":".........."},null,{"$f":"IFERROR(IF(SUM(K27:K28)=0,\"..........\",SUM(K27:K28)),\"..........\")","v":".........."}]

{"sheet":"22","index":24,"n_rows":29,"n_cols":11,"rows_kept":29,"cut":false,"hidden":false,"merged":[[8,4,8,6],[14,4,14,6],[0,0,0,10],[2,0,2,10],[1,0,1,10],[23,8,23,10],[10,4,10,6],[4,8,4,10],[22,8,22,10],[15,4,15,6],[4,1,4,6],[11,4,11,6],[23,4,23,6],[13,4,13,6],[21,1,21,6],[7,4,7,6],[16,4,16,6],[18,2,18,6],[17,2,17,6],[9,4,9,6],[12,4,12,6]]}
[{"$f":"عنوان!A13","v":0}]
["یادداشت های توضیحی صورت های مالی"]
[{"$f":"عنوان!A15","v":0}]
[]
[null,"5-2- درآمد ارائه خدمات:",null,null,null,null,null,null,"(مبالغ به میلیون ریال)"]
[null,null,null,null,null,null,null,null,{"$f":"IFERROR('10'!I15,\"..........\")","v":"13x4"},null,{"$f":"IFERROR(IF(I20=0,\"..........\",I6/I20),\"..........\")","v":".........."}]
[null,null,null,null,null,null,null,null," ریال",null," ریال"]
[null,null,null,null,"خدمات ارائه شده در طول زمان:"]
[null,null,null,null,"خدمات پشتیبانی"]
[null,null,null,null,"خدمات .........."]
[null,null,null,null,"سایر (اقلام کمتر از 10 درصد درآمد خدمات)"]
[]
[null,null,null,null,"خدمات ارائه شده در نقطه‌ای از زمان:"]
[null,null,null,null,"خدمات نصب و راه‌اندازی"]
[null,null,null,null,"خدمات .........."]
[null,null,null,null,"سایر (اقلام کمتر از 10 درصد درآمد خدمات)",null,null,null,null,null,{"$f":"IFERROR(IF(I20=0,\"..........\",I16/I20),\"..........\")","v":".........."}]
[null,null,null,null,"خدمات کارمزدی",null,null,null,0,null,{"$f":"IFERROR(IF(I20=0,\"..........\",I17/I20),\"..........\")","v":".........."}]
[null,null,{"$f":"IFERROR(IF(A20=0,\"..........\",A18/A20),\"..........\")","v":".........."},null,null,null,null,null,0,null,{"$f":"IFERROR(IF(I20=0,\"..........\",I18/I20),\"..........\")","v":".........."}]
[null,null,"سایر (اقلام کمتراز 10 درصد درآمد خدمات)",null,null,null,null,null,0,null,{"$f":"IFERROR(IF(I20=0,\"..........\",I19/I20),\"..........\")","v":".........."}]
[null,null,null,null,null,null,null,null,{"$f":"IFERROR(IF(SUM(I17:I19)=0,\"..........\",SUM(I17:I19)),\"..........\")","v":".........."},null,{"$f":"IFERROR(IF(I25=0,\"..........\",I20/I25),\"..........\")","v":".........."}]
[]
[null,"5-3- فروش خالص و درآمد ارائه خدمات به تفكيك وابستگى اشخاص:",null,null,null,null,null,null,{"$f":"IFERROR(IF(SUM(I17:I20)=0,\"..........\",SUM(I17:I20)),\"..........\")","v":".........."},null,{"$f":"IFERROR(IF(I25=0,\"..........\",I22/I25),\"..........\")","v":".........."}]
[null,null,null,null,null,null,null,null,"(مبالغ به میلیون ریال)"]
[null,null,null,null,{"$f":"IFERROR('10'!I15,\"..........\")","v":"13x4"},null,null,null,{"$f":"IFERROR('10'!K15,\"..........\")","v":"13x3"}]
[null,null,null,null,"درآمد عملیاتی",null,"درصد نسبت به کل",null,"درآمد عملیاتی",null,"درصد نسبت به کل"]
[null,null,null,null," ریال",null,null,null," ریال"]
[null,"اشخاص وابسته ",{"$f":"IFERROR(IF(E29=0,\"..........\",E27/E29),\"..........\")","v":""},null,0,null,{"$f":"IFERROR(IF(E29=0,\"..........\",E27/E29),\"..........\")","v":""},null,0,null,{"$f":"IFERROR(IF(I29=0,\"..........\",I27/I29),\"..........\")","v":".........."}]
[null,"ساير مشتریان",null,null,{"$f":"IFERROR(IF(G29=0,\"..........\",G28/G29),\"..........\")","v":""},null,{"$f":"IFERROR(IF(E29=0,\"..........\",E28/E29),\"..........\")","v":""},null,0,null,{"$f":"IFERROR(IF(I29=0,\"..........\",I28/I29),\"..........\")","v":".........."}]
[null,null,null,null,{"$f":"IFERROR(IF(SUM(E27:E28)=0,\"..........\",SUM(E27:E28)),\"..........\")","v":""},null,{"$f":"IFERROR(IF(SUM(G27:G28)=0,\"..........\",SUM(G27:G28)),\"..........\")","v":""},null,{"$f":"IFERROR(IF(SUM(I27:I28)=0,\"..........\",SUM(I27:I28)),\"..........\")","v":".........."},null,{"$f":"IFERROR(IF(SUM(K27:K28)=0,\"..........\",SUM(K27:K28)),\"..........\")","v":".........."}]

{"sheet":"23","index":25,"n_rows":19,"n_cols":15,"rows_kept":19,"cut":false,"hidden":false,"merged":[[18,14,18,15],[17,14,17,15],[18,5,18,6],[16,14,16,15],[9,8,9,9],[6,2,6,12],[6,14,6,15],[16,11,16,12],[10,5,10,6],[9,5,9,6],[8,8,8,9],[13,11,13,12],[5,2,5,12],[15,5,15,6],[9,14,9,15],[15,11,15,12],[5,14,5,15],[14,2,14,3],[10,8,10,9],[14,8,14,9],[13,2,13,3],[14,14,14,15],[15,14,15,15],[9,11,9,12],[8,11,8,12],[11,14,11,15],[10,14,10,15],[7,14,7,15],[0,0,0,1],[8,14,8,15],[18,11,18,12],[12,11,12,12],[11,5,11,6],[11,11,11,12],[9,2,9,3],[15,2,15,3],[15,8,15,9],[14,5,14,6],[17,5,17,6],[17,11,17,12],[14,11,14,12],[8,2,8,3],[7,11,7,12],[10,2,10,3],[7,8,7,9],[12,5,12,6],[13,8,13,9],[16,2,16,3],[16,8,16,9],[8,5,8,6],[7,2,7,3],[1,0,1,1],[18,2,18,3],[18,8,18,9],[13,14,13,15],[10,11,10,12],[12,2,12,3],[12,8,12,9],[17,2,17,3],[13,5,13,6],[12,14,12,15],[2,0,2,1],[16,5,16,6],[17,8,17,9],[7,5,7,6],[11,2,11,3],[11,8,11,9]]}
[{"$f":"عنوان!A13","v":0}]
["یادداشت های توضیحی صورت های مالی"]
[{"$f":"عنوان!A15","v":0}]
[]
["1-91","5-4- جدول مقايسه‌اى درآمدهای عملیاتی و بهاى تمام شده"]
[null,null,"                                                                         ",null,null,null,null,null,null,null,null,null,null,null,"(مبالغ به میلیون ریال)"]
[null,null,"4x14",null,null,null,null,null,null,null,null,null,null,null,"3x14"]
[null,"\n","درآمد عملیاتی",null,null,"بهاي تمام شده درآمد عملیاتی",null,null,"سود ناخالص",null,null,"درصد سود ناخالص به درآمد عملیاتی",null,null,"درصد سود ناخالص به درآمد عملیاتی"]
[null,"فروش خالص"]
[null,"\tگروه محصولات/محصول .....","..........",null,null,"(..........)",null,null,{"$f":"IFERROR(IF(COUNT(C10,F10)=0,\"..........\",SUM(C10,F10)),\"..........\")","v":".........."},null,null,{"$f":"IFERROR(IF(COUNT(I10,C10)=0,\"..........\",I10/C10),\"..........\")","v":".........."},null,null,{"$f":"IFERROR(IF(COUNT(I10,C10)=0,\"..........\",I10/C10),\"..........\")","v":".........."}]
[null,"\tگروه محصولات/محصول .....","..........",null,null,"(..........)",null,null,"..........",null,null,"..........",null,null,".........."]
[null,"سایر (اقلام کمتر از 10 درصد درآمد عملیاتی)","..........",null,null,"(..........)",null,null,"..........",null,null,"..........",null,null,".........."]
[null,null,"..........",null,null,"(..........)",null,null,"..........",null,null,"..........",null,null,".........."]
[null,"درآمد ارائه خدمات",null,null,null,null,null,null,"..........",null,null,"..........",null,null,".........."]
[null,"خدمات ...","..........",null,null,"(..........)",null,null,"..........",null,null,"..........",null,null,".........."]
[null,"خدمات ...","..........",null,null,"(..........)",null,null,"..........",null,null,"..........",null,null,".........."]
[null,"سایر (اقلام کمتر از 10 درصد درآمد عملیاتی)","..........",null,null,"(..........)",null,null,"..........",null,null,"..........",null,null,".........."]
[null,null,"..........",null,null,"(..........)",null,null,"..........",null,null,"..........",null,null,".........."]
[null,null,"..........",null,null,"(..........)",null,null,"..........",null,null,"..........",null,null,".........."]

{"sheet":"24","index":26,"n_rows":32,"n_cols":22,"rows_kept":32,"cut":false,"hidden":false,"merged":[[1,0,1,21],[7,15,7,17],[7,3,7,5],[28,11,28,15],[0,0,0,21],[6,11,6,21],[2,0,2,21],[31,0,31,21],[7,19,7,21],[28,3,28,7],[7,7,7,9],[7,11,7,13],[27,0,27,19]]}
[{"$f":"عنوان!A13","v":0}]
["یادداشت های توضیحی صورت های مالی"]
[{"$f":"عنوان!A15","v":0}]
[]
["24-25- گزارشگرى برحسب قسمت‌هاى مختلف "]
["39-1- اطلاعات مربوط به قسمت‌هاى تجاري شرکت به ‌شرح زير است:"]
[null,null,null,null,null,null,null,null,null,null,null,"(مبالغ به ميليون ريال)"]
[null,null,null,"گروه محصولات/ محصول .....",null,null,null,"گروه محصولات/ محصول .....",null,null,null,"ساير عمليات",null,null,null,"حذف‌ها",null,null,null,"تلفيقي"]
[null,null,null,{"$f":"IFERROR('10'!I15,\"..........\")","v":"13x4"},null,{"$f":"IFERROR('10'!K15,\"..........\")","v":"13x3"},null,{"$f":"IFERROR('10'!I15,\"..........\")","v":"13x4"},null,{"$f":"IFERROR('10'!K15,\"..........\")","v":"13x3"},null,{"$f":"IFERROR('10'!I15,\"..........\")","v":"13x4"},null,{"$f":"IFERROR('10'!K15,\"..........\")","v":"13x3"},null,{"$f":"IFERROR('10'!I15,\"..........\")","v":"13x4"},null,{"$f":"IFERROR('10'!K15,\"..........\")","v":"13x3"},null,{"$f":"IFERROR('10'!I15,\"..........\")","v":"13x4"},null,{"$f":"IFERROR('10'!K15,\"..........\")","v":"13x3"}]
["درآمد عملياتي:"]
["فروش به مشتريان برون‌سازماني",null,null,0,null,0,null,0,null,0,null,0,null,0,null,0,null,0,null,{"$f":"IFERROR(IF(COUNT(D11,F11,H11,J11,L11,N11,P11,R11)=0,\"..........\",SUM(D11,F11,H11,J11,L11,N11,P11,R11)),\"..........\")","v":0},null,0]
["فروش به ساير قسمت‌ها",null,null,0,null,0,null,0,null,0,null,0,null,0,null,0,null,0,null,{"$f":"IFERROR(IF(COUNT(D12,F12,H12,J12,L12,N12,P12,R12)=0,\"..........\",SUM(D12,F12,H12,J12,L12,N12,P12,R12)),\"..........\")","v":0},null,0]
["جمع درآمد عملياتي",null,null,{"$f":"IFERROR(IF(SUM(D11:D12)=0,\"..........\",SUM(D11:D12)),\"..........\")","v":".........."},null,{"$f":"IFERROR(IF(SUM(F11:F12)=0,\"..........\",SUM(F11:F12)),\"..........\")","v":".........."},null,{"$f":"IFERROR(IF(SUM(H11:H12)=0,\"..........\",SUM(H11:H12)),\"..........\")","v":".........."},null,{"$f":"IFERROR(IF(SUM(J11:J12)=0,\"..........\",SUM(J11:J12)),\"..........\")","v":".........."},null,{"$f":"IFERROR(IF(SUM(L11:L12)=0,\"..........\",SUM(L11:L12)),\"..........\")","v":".........."},null,{"$f":"IFERROR(IF(SUM(N11:N12)=0,\"..........\",SUM(N11:N12)),\"..........\")","v":".........."},null,{"$f":"IFERROR(IF(SUM(P11:P12)=0,\"..........\",SUM(P11:P12)),\"..........\")","v":".........."},null,{"$f":"IFERROR(IF(SUM(R11:R12)=0,\"..........\",SUM(R11:R12)),\"..........\")","v":".........."},null,{"$f":"IFERROR(IF(SUM(T11:T12)=0,\"..........\",SUM(T11:T12)),\"..........\")","v":".........."},null,{"$f":"IFERROR(IF(SUM(V11:V12)=0,\"..........\",SUM(V11:V12)),\"..........\")","v":".........."}]
["نتيجه عمليات قسمت",null,null,0,null,0,null,0,null,0,null,0,null,0,null,0,null,0,null,{"$f":"IFERROR(IF(COUNT(D14,F14,H14,J14,L14,N14,P14,R14)=0,\"..........\",SUM(D14,F14,H14,J14,L14,N14,P14,R14)),\"..........\")","v":0},0,0]
["هزينه‌هاي مشترك تخصيص‌نيافته",null,null,null,null,null,null,null,null,null,null,null,null,null,null,null,null,null,null,{"$f":"IFERROR(IF(COUNT(D15,F15,H15,J15,L15,N15,P15,R15)=0,\"..........\",SUM(D15,F15,H15,J15,L15,N15,P15,R15)),\"..........\")","v":".........."},null,0]
["سود عملياتي",null,null,null,null,null,null,null,null,null,null,null,null,null,null,null,null,null,null,{"$f":"IFERROR(IF(COUNT(T11:T15)=0,\"..........\",SUM(T11:T15)),\"..........\")","v":0},null,{"$f":"IFERROR(IF(COUNT(V11:V15)=0,\"..........\",SUM(V11:V15)),\"..........\")","v":0}]
["ساير اطلاعات:",null,null,null,null,null,null,null,null,null,null,null,null,null,null,null,null,null,null,{"$f":"IFERROR(IF(COUNT(D17,F17,H17,J17,L17,N17,P17,R17)=0,\"..........\",SUM(D17,F17,H17,J17,L17,N17,P17,R17)),\"..........\")","v":".........."},null,0]
["دارايي‌هاي قسمت",null,null,null,null,null,null,null,null,null,null,null,null,null,null,null,null,null,null,{"$f":"IFERROR(IF(COUNT(D18,F18,H18,J18,L18,N18,P18,R18)=0,\"..........\",SUM(D18,F18,H18,J18,L18,N18,P18,R18)),\"..........\")","v":".........."},null,0]
["دارايي‌هاي مشترك تخصيص‌نيافته",null,null,null,null,null,null,null,null,null,null,null,null,null,null,null,null,null,null,{"$f":"IFERROR(IF(COUNT(D19,F19,H19,J19,L19,N19,P19,R19)=0,\"..........\",SUM(D19,F19,H19,J19,L19,N19,P19,R19)),\"..........\")","v":".........."},null,0]
["جمع دارايي‌هاي تلفيقي",null,null,null,null,null,null,null,null,null,null,null,null,null,null,null,null,null,null,{"$f":"IFERROR(IF(SUM(T14:T19)=0,\"..........\",SUM(T14:T19)),\"..........\")","v":".........."},null,{"$f":"IFERROR(IF(SUM(V14:V19)=0,\"..........\",SUM(V14:V19)),\"..........\")","v":".........."}]
["بدهي‌هاي قسمت",null,null,null,null,null,null,null,null,null,null,null,null,null,null,null,null,null,null,{"$f":"IFERROR(IF(COUNT(D21,F21,H21,J21,L21,N21,P21,R21)=0,\"..........\",SUM(D21,F21,H21,J21,L21,N21,P21,R21)),\"..........\")","v":".........."},null,0]
["بدهي‌هاي مشترك تخصيص‌نيافته",null,null,null,null,null,null,null,null,null,null,null,null,null,null,null,null,null,null,{"$f":"IFERROR(IF(COUNT(D22,F22,H22,J22,L22,N22,P22,R22)=0,\"..........\",SUM(D22,F22,H22,J22,L22,N22,P22,R22)),\"..........\")","v":".........."},null,0]
["جمع بدهي‌هاي تجمیعی",null,null,null,null,null,null,null,null,null,null,null,null,null,null,null,null,null,null,{"$f":"IFERROR(IF(COUNT(T21:T22)=0,\"..........\",SUM(T21:T22)),\"..........\")","v":".........."},null,{"$f":"IFERROR(IF(SUM(V21:V22)=0,\"..........\",SUM(V21:V22)),\"..........\")","v":".........."}]
["مخارج سرمايه‌اي",null,null,0,null,0,null,0,null,0,null,0,null,0,null,null,null,null,null,{"$f":"IFERROR(IF(COUNT(D24,F24,H24,J24,L24,N24,P24,R24)=0,\"..........\",SUM(D24,F24,H24,J24,L24,N24,P24,R24)),\"..........\")","v":0}]
["استهلاك",null,null,0,null,0,null,0,null,0,null,0,null,0,null,null,null,null,null,{"$f":"IFERROR(IF(COUNT(D25,F25,H25,J25,L25,N25,P25,R25)=0,\"..........\",SUM(D25,F25,H25,J25,L25,N25,P25,R25)),\"..........\")","v":0}]
["ساير هزينه‌هاي غيرنقدي به ‌استثناي استهلاك",null,null,0,null,0,null,0,null,0,null,0,null,0,null,null,null,null,null,{"$f":"IFERROR(IF(COUNT(D26,F26,H26,J26,L26,N26,P26,R26)=0,\"..........\",SUM(D26,F26,H26,J26,L26,N26,P26,R26)),\"..........\")","v":0}]
[]
["6-2- شرکت داراى دو قسمت عمليات اصلى شامل توليد گروه محصولات/محصول ..... و ..... در سطح ايران مي‌باشد. مسئوليت هر يك از قسمت‌هاى فوق به عهده مدير توليد جداگانه و با نظارت مديرعامل است. محصولات عمده توليدى هر دو قسمت به شرح زير است:"]
[null,null,null,"قسمت",null,null,null,null,null,null,null,"نام محصولات عمده"]
[null,null,null,"گروه محصولات/ محصول ....."]
[null,null,null,"گروه محصولات/ محصول ....."]
["6-3- دارایی‌های هر قسمت شامل تمام دارایی‌های عملیاتی استفاده شده توسط قسمت است که عمدتا وجه نقد، مطالبات، موجودی مواد و کالا و دارایی‌های ثابت مشهود (پس از کسر اقلام‌کاهنده مربوط) را در برمی‌گیرد. با وجود اینکه بیشتر این دارایی‌ها می‌تواند مستقیما به هر یک از قسمت‌ها منتسب شود اما مبلغ دفتری برخی از دارایی‌هایی که به طور مشترک توسط دو یا چند قسمت استفاده می‌شود بر مبنایی منطقی به آن قسمت‌ها تخصیص می‌یابد. بدهی‌های قسمت شامل تمام بدهی‌های عملیاتی است و به طور عمده در برگیرنده حساب‌ها و اسناد پرداختنی، پیش‌دریافت‌ها و سایر اقلام پرداختنی است. بدهی‌های قسمت، مالیات بردرآمد را در برنمی‌گیرد. "]

{"sheet":"25","index":27,"n_rows":37,"n_cols":15,"rows_kept":37,"cut":false,"hidden":false,"merged":[[0,1,0,14],[27,2,27,14],[29,10,29,12],[1,1,1,14],[7,2,7,14],[36,0,36,14],[2,1,2,14],[8,10,8,14],[29,6,29,8],[5,2,5,14],[8,4,8,8]]}
[null,{"$f":"عنوان!A13","v":0}]
[null,"یادداشت های توضیحی صورت های مالی"]
[null,{"$f":"عنوان!A15","v":0}]
[]
[]
[null,null,"6-4- درآمد عملیاتی قسمت، هزینه‌های عملیاتی قسمت و نتیجه عملیات قسمت شامل انتقالات بین قسمت‌های تجاری است. چنین انتقالاتی، به قیمت‌های بازار رقابتی برای مشتریان برون سازمانی منظور می‌شود. این انتقالات در تجمیع حذف می‌شود."]
[]
[null,"1-97","7- بهای تمام‌شده درآمدهای عملیاتی"]
[null,"1-98",null,null,{"$f":"IFERROR('10'!I15,\"..........\")","v":"13x4"},null,null,null,null,null,{"$f":"IFERROR('10'!K15,\"..........\")","v":"13x3"}]
[null,null,null,null,"فروش",null,"ارائه خدمات",null,"جمع",null,"فروش",null,"ارائه خدمات",null,"جمع"]
[null,null,null,null," ریال",null," ریال",null," ریال",null," ریال",null," ریال",null," ریال"]
[null,null,"مواد مستقیم مصرفی",null,0,null,0,null,{"$f":"IFERROR(IF(G21=0,\"..........\",G12/G21),\"..........\")","v":".........."},null,0,null,{"$f":"IFERROR(IF(K19=0,\"..........\",K12/K19),\"..........\")","v":".........."},null,{"$f":"IFERROR(M12+K12,\"..........\")","v":".........."}]
[null,null,"دستمزد مستقیم",null,0,null,0,null,{"$f":"IFERROR(IF(G21=0,\"..........\",G13/G21),\"..........\")","v":".........."},null,0,null,{"$f":"IFERROR(IF(K19=0,\"..........\",K13/K19),\"..........\")","v":".........."},null,{"$f":"IFERROR(M13+K13,\"..........\")","v":".........."}]
[null,null,"سربار ساخت:"]
[null,null,"مواد غیرمستقیم",null,0,null,0,null,{"$f":"IFERROR(IF(G21=0,\"..........\",G15/G21),\"..........\")","v":".........."},null,0,null,{"$f":"IFERROR(IF(K19=0,\"..........\",K15/K19),\"..........\")","v":".........."},null,{"$f":"IFERROR(M15+K15,\"..........\")","v":".........."}]
[null,null," استهلاک",null,0,null,0,null,{"$f":"IFERROR(IF(G21=0,\"..........\",G16/G21),\"..........\")","v":".........."},null,0,null,{"$f":"IFERROR(IF(K19=0,\"..........\",K16/K19),\"..........\")","v":".........."},null,{"$f":"IFERROR(M16+K16,\"..........\")","v":".........."}]
[null,null,"..........."]
[null,null,{"$f":"IFERROR(IF(E19=0,\"..........\",E18/E19),\"..........\")","v":".........."},null,0,null,0,null,{"$f":"IFERROR(IF(G21=0,\"..........\",G18/G21),\"..........\")","v":".........."},null,0,null,{"$f":"IFERROR(IF(K19=0,\"..........\",K18/K19),\"..........\")","v":".........."},null,{"$f":"IFERROR(M18+K18,\"..........\")","v":".........."}]
[null,null,null,null,{"$f":"IFERROR(IF(SUM(E12:E18)=0,\"..........\",SUM(E12:E18)),\"..........\")","v":".........."},null,null,null,{"$f":"IFERROR(IF(K21=0,\"..........\",K19/K21),\"..........\")","v":".........."},null,{"$f":"IFERROR(IF(SUM(K12:K18)=0,\"..........\",SUM(K12:K18)),\"..........\")","v":".........."},null,{"$f":"IFERROR(IF(K21=0,\"..........\",K19/K21),\"..........\")","v":".........."},null,{"$f":"IFERROR(IF(SUM(O12:O18)=0,\"..........\",SUM(O12:O18)),\"..........\")","v":".........."}]
[null,null,"هزینه های جذب نشده",null,{"$f":"IFERROR(IF(C21=0,\"..........\",C20/C21),\"..........\")","v":".........."},null,{"$f":"IFERROR(IF(E21=0,\"..........\",E20/E21),\"..........\")","v":".........."},null,{"$f":"IFERROR(IF(G21=0,\"..........\",G20/G21),\"..........\")","v":".........."},null,{"$f":"IFERROR(IF(I21=0,\"..........\",I20/I21),\"..........\")","v":".........."},null,{"$f":"IFERROR(IF(K21=0,\"..........\",K20/K21),\"..........\")","v":".........."},null,{"$f":"IFERROR(IF(M21=0,\"..........\",M20/M21),\"..........\")","v":".........."}]
[null,null,"جمع هزینه های ساخت",null,{"$f":"IFERROR(IF(SUM(E18:E20)=0,\"..........\",SUM(E18:E20)),\"..........\")","v":".........."},null,{"$f":"IFERROR(IF(SUM(G19:G20)=0,\"..........\",SUM(G19:G20)),\"..........\")","v":".........."},null,{"$f":"IFERROR(IF(G24=0,\"..........\",G21/G24),\"..........\")","v":".........."},null,{"$f":"IFERROR(IF(SUM(K18:K20)=0,\"..........\",SUM(K18:K20)),\"..........\")","v":".........."},null,{"$f":"IFERROR(IF(K24=0,\"..........\",K21/K24),\"..........\")","v":".........."},null,{"$f":"IFERROR(IF(SUM(O18:O20)=0,\"..........\",SUM(O18:O20)),\"..........\")","v":".........."}]
[null,null,"(افزایش)کاهش موجودی های درجریان ساخت",null,0,null,0,null,{"$f":"IFERROR(IF(G24=0,\"..........\",G22/G24),\"..........\")","v":".........."}]
[null,null,"ضایعات غیر عادی",null,0,null,0,null,{"$f":"IFERROR(IF(G24=0,\"..........\",G23/G24),\"..........\")","v":".........."},null,0,null,{"$f":"IFERROR(IF(K24=0,\"..........\",K23/K24),\"..........\")","v":".........."}]
[null,null,"بهای تمام شده ساخت",null,{"$f":"IFERROR(IF(SUM(E21:E23)=0,\"..........\",SUM(E21:E23)),\"..........\")","v":".........."},null,{"$f":"IFERROR(IF(SUM(G21:G23)=0,\"..........\",SUM(G21:G23)),\"..........\")","v":".........."},null,{"$f":"IFERROR(IF(G26=0,\"..........\",G24/G26),\"..........\")","v":".........."},null,{"$f":"IFERROR(IF(SUM(K21:K23)=0,\"..........\",SUM(K21:K23)),\"..........\")","v":".........."},null,{"$f":"IFERROR(IF(K26=0,\"..........\",K24/K26),\"..........\")","v":".........."},null,{"$f":"IFERROR(M24+K24,\"..........\")","v":".........."}]
[null,null,"(افزایش) کاهش موجودی های ساخته شده",null,0,null,0,null,{"$f":"IFERROR(IF(G26=0,\"..........\",G25/G26),\"..........\")","v":".........."},null,0,null,{"$f":"IFERROR(IF(K26=0,\"..........\",K25/K26),\"..........\")","v":".........."},null,{"$f":"IFERROR(M25+K25,\"..........\")","v":".........."}]
[null,null,"بهای تمام شده درآمدهای عملیاتی",null,{"$f":"IFERROR(IF(SUM(E24:E25)=0,\"..........\",SUM(E24:E25)),\"..........\")","v":".........."},null,{"$f":"IFERROR(IF(SUM(G24:G25)=0,\"..........\",SUM(G24:G25)),\"..........\")","v":".........."},null,{"$f":"IFERROR(IF(SUM(I24:I25)=0,\"..........\",SUM(I24:I25)),\"..........\")","v":".........."},null,{"$f":"IFERROR(IF(SUM(K24:K25)=0,\"..........\",SUM(K24:K25)),\"..........\")","v":".........."},null,{"$f":"IFERROR(IF(SUM(M24:M25)=0,\"..........\",SUM(M24:M25)),\"..........\")","v":".........."},null,{"$f":"IFERROR(IF(SUM(O24:O25)=0,\"..........\",SUM(O24:O25)),\"..........\")","v":".........."}]
[]
[null,null,"7-1- در سال مورد گزارش مبلغ ..... ميليون ريال (سال قبل ..... ميليون ريال) مواد اوليه توسط شركت خريدارى شده است. تامين‌كنندگان اصلى مواد اوليه (بيش از ده درصد خريد) به تفكيك کشور و مبلغ خريد از هر يك به شرح زير است:"]
[]
[null,null,null,null,null,null,"4x14",null,null,null,"3x14"]
[null,null,"نوع مواد اوليه",null,"كشور",null,"ميليون ريال",null,"درصد نسبت به كل خريدسال",null,"ميليون ريال",null,"درصد نسبت به كل خريد سال"]
[null,null,"..........",null,"انگلستان",null,"..........",null,"..........",null,"..........",null,".........."]
[null,null,"..........",null,"آلمان",null,"..........",null,"..........",null,"..........",null,".........."]
[null,null,"..........",null,"ايران",null,"..........",null,"..........",null,"..........",null,".........."]
[]
[]
["1 . با توجه به انعکاس زیان کاهش ارزش موجودی‌ها تحت سرفصل‌ سایر هزینه‌ها (یادداشت توضیحی 11)، اقلام موجودی در جدول محاسبه بهای تمام شده کالای فروش رفته، به صورت ناخالص درج می‌شود."]

{"sheet":"26","index":28,"n_rows":36,"n_cols":15,"rows_kept":36,"cut":false,"hidden":false,"merged":[[1,1,1,12],[20,4,20,8],[23,4,23,8],[22,4,22,8],[0,1,0,12],[16,4,16,8],[2,1,2,12],[4,1,4,12],[26,4,26,8],[25,4,25,8],[15,4,15,8],[10,1,10,12],[7,2,7,4],[18,4,18,8],[6,2,6,4],[24,4,24,8],[31,2,31,12],[11,1,11,12],[17,4,17,8],[35,0,35,12],[30,1,30,10],[14,4,14,8],[27,4,27,8]]}
[null,{"$f":"عنوان!A13","v":0}]
[null,"یادداشت های توضیحی صورت های مالی"]
[null,{"$f":"عنوان!A15","v":0}]
[]
["1-115","7-2- مقايسه مقدار توليد واقعی شرکت در سال مالى مورد گزارش با ظرفيت اسمى و ظرفيت معمول (عملى)، نتايج زير را نشان مى‌دهد:"]
[null,null,null,null,null,null,"واحد اندازه گیری",null,"ظرفیت اسمی",null,"ظرفیت معمول (عملی)",null,"تولید واقعی سال",null,"تولید واقعی سال"]
[null,null,"گروه محصولات/ محصول ...",null,null,null,null,null,null,null,null,null,0,null,0]
[null,null,"گروه محصولات/ محصول ..."]
[]
[]
["8-11","3-7- هزینه‌های جذب نشده عمدتاً به دلیل توقف تولید ناشی از .......... محاسبه شده است."]
["1-97","8- هزینه‌های فروش، اداری و عمومی"]
["1-98",null,null,null,null,null,null,null,null,null,{"$f":"IFERROR('7'!H14,\"..........\")","v":"-"},null,{"$f":"IFERROR('10'!K15,\"..........\")","v":"13x3"}]
["1-115",null,null,null,null,null,null,null,null,null,"ریال",null,"ریال"]
[null,null,null,null,"هزینه‌های فروش",null,null,null,null,null,0,null,0]
[null,null,null,null,"حقوق و دستمزد و مزايا ",null,null,null,null,null,0,null,0]
[null,null,null,null,"حمل و نقل",null,null,null,null,null,0,null,0]
[null,null,null,null,"حق العمل کاری و کمیسیون فروش",null,null,null,null,null,0,null,0]
[null,null,null,null,"استهلاک",null,null,null,null,null,0,null,0]
[null,null,null,null,null,null,null,null,null,null,0,null,0]
[null,null,null,null,"سایر (اقلام کمتر از 10 درصد هزینه‌های فروش)",null,null,null,null,null,0,null,0]
[null,null,null,null,null,null,null,null,null,null,{"$f":"IFERROR(IF(SUM(K15:K21)=0,\"..........\",SUM(K15:K21)),\"..........\")","v":".........."},null,{"$f":"IFERROR(IF(SUM(M15:M21)=0,\"..........\",SUM(M15:M21)),\"..........\")","v":".........."}]
[null,null,null,null,"هزینه‌های اداری و عمومی",null,null,null,null,null,0,null,0]
[null,null,null,null,"حقوق و دستمزد و مزایا",null,null,null,null,null,0,null,0]
[null,null,null,null,"پاداش هیات مدیره ",null,null,null,null,null,0,null,0]
[null,null,null,null,"استهلاك",null,null,null,null,null,0,null,0]
[null,null,null,null,"..........................",null,null,null,null,null,0,null,0]
[null,null,null,null,"ساير (اقلام کمتر از 10 درصد هزینه‌های اداری و عمومی) ",null,null,null,null,null,0,null,0]
[null,null,null,null,null,null,null,null,null,null,0,null,0]
[]
["1-86","9- زیان کاهش ارزش دریافتنی‌ها",null,null,null,null,null,null,null,null,null,null,"  "]
[null,null,"در سال مورد گزارش مبلغ ..... میلیون ریال از مطالبات در نتیجه ورشکستگی یکی از مشتریان عمده شرکت، مشکوک‌الوصول شده و کاهش ارزش برای آن در نظر گرفته شده است."]
[]
[]
[]
[" . با توجه به اینکه زیان کاهش ارزش دریافتنی‌ها در نتیجه ورشکستگی یکی از مشتریان عمده بوده، لذا طبق بند 86 استاندارد حسابداری 1، برای درک عملکرد مالی شرکت نمونه، تحت سرفصل جداگانه در صورت سود و زیان ارائه شده است، در غیر این صورت جزو هزینه‌های فروش، اداری و عمومی منظور می‌شود."]

{"sheet":"27","index":29,"n_rows":41,"n_cols":8,"rows_kept":41,"cut":false,"hidden":false,"merged":[[40,0,40,7],[0,0,0,7],[11,2,11,3],[2,0,2,7],[37,2,37,3],[14,2,14,3],[1,0,1,7]]}
[{"$f":"عنوان!A13","v":0}]
["یادداشت های توضیحی صورت های مالی"]
[{"$f":"عنوان!A15","v":0}]
[]
["1-115",null,"10 - سایر درآمدها"]
[null,null,null,null,null,{"$f":"IFERROR('10'!I15,\"..........\")","v":"13x4"},null,{"$f":"IFERROR('10'!K15,\"..........\")","v":"13x3"}]
[null,null,null,null,null," ریال",null," ریال"]
[null,null,"فروش ضايعات ",null,null,0,null,0]
["16-27",null,"سود ‌ناشى‌ از تسعير دارايي‌هاى ارزى عملياتى",null,null,0,null,0]
[null,null,"خالص اضافى انبار",null,null,{"$f":"IFERROR(IF(SUM(F8:F9)=0,\"..........\",SUM(F8:F9)),\"..........\")","v":".........."},null,{"$f":"IFERROR(IF(SUM(H8:H9)=0,\"..........\",SUM(H8:H9)),\"..........\")","v":".........."}]
[null,null,"........................",null,null,0,null,0]
[null,null,null,null,null,{"$f":"IFERROR(IF(SUM(F8:F11)=0,\"..........\",SUM(F8:F11)),\"..........\")","v":".........."},null,{"$f":"IFERROR(IF(SUM(H8:H11)=0,\"..........\",SUM(H8:H11)),\"..........\")","v":".........."}]
[]
[]
["1-115",null,"11- سایر هزینه‌ها"]
[null,null,null,null,null,null,null,"(مبالغ به میلیون ریال)"]
[null,null,null,null,null,{"$f":"IFERROR('10'!I15,\"..........\")","v":"13x4"},null,{"$f":"IFERROR('10'!K15,\"..........\")","v":"13x3"}]
[null,null,null,null,null," ریال",null," ریال"]
[null,null,"ضايعات غيرعادى توليد"]
[null,null,"هزينه‏هاى جذب نشده در توليد "]
[null,null,"زیان کاهش ارزش موجودی‌ها"]
[null,null,"زیان ناشی از تسعیر بدهی‌های ارزی عملیاتی1"]
[null,null,"خالص کسری انبار"]
[null,null,"...........",null,null,0,null,0]
[]
[null,null,"11-1- ضايعات غيرعادى توليد عمدتا، ناشى از .......... است."]
[null,null,"12- هزينه‌هاي مالى",null,null,null,null,"(مبالغ به میلیون ریال)"]
[null,null,null,null,null,{"$f":"IFERROR('10'!I15,\"..........\")","v":"13x4"},null,{"$f":"IFERROR('10'!K15,\"..........\")","v":"13x3"}]
[null,null,null,null,null," ریال",null," ریال"]
[null,null,"وام‌های دريافتي"]
[null,null,"بانک‌ها و موسسات اعتباری"]
["12-19",null,"اشخاص وابسته"]
[null,null,"سایر اشخاص"]
[null,null,"اوراق مشارکت"]
[null,null,"اوراق خرید دین"]
["21-21",null,"تعهدات اجاره سرمایه‌ای"]
[null,null,"...........",null,null,".",null,"."]
[null,null,null,null,null,".",null,"."]
[null,null,null,null,null,{"$f":"IFERROR(IF(SUM(F38:F38)=0,\"..........\",SUM(F38:F38)),\"..........\")","v":".........."},null,{"$f":"IFERROR(IF(SUM(H38:H38)=0,\"..........\",SUM(H38:H38)),\"..........\")","v":".........."}]
[]
["1. به‌صورت خالص در سرفصل مربوط درج شود."]

{"sheet":"28","index":30,"n_rows":44,"n_cols":8,"rows_kept":44,"cut":false,"hidden":false,"merged":[[43,0,43,7],[0,0,0,7],[1,0,1,7],[2,0,2,7],[5,5,5,7],[40,2,40,3],[4,1,4,5]]}
[{"$f":"عنوان!A13","v":0}]
["یادداشت های توضیحی صورت های مالی"]
[{"$f":"عنوان!A15","v":0}]
[]
["1-86","13- ساير درآمدها و هزينه‏هاى غيرعملياتى                                                                 "]
[null,null,null,null,null,"(مبالغ به میلیون ریال)"]
[null,null,"اشخاص وابسته",null,null,"4x14",null,"3x14"]
["71ـ11",null,"سود (زيان) ناشى از فروش دارايي‌هاى ثابت مشهود",null,null,"..........",null,"(..........)"]
["90ـ17",null,"سود (زیان) ناشی از فروش دارایی‌های نامشهود",null,null,"(..........)",null,".........."]
["ج40-31",null,"سود (زیان) ناشی از فروش دارایی‌های غیرجاری نگهداری شده برای فروش",null,null,"-",null,"-"]
[null,null,"سود حاصل از فروش مواد اولیه\t",null,null,"..........",null,".........."]
["و58ـ15",null,"سود ناشى از فروش سرمايه‏گذاري‌ها",null,null,"..........",null,".........."]
[null,null,null,null,null,"..........",null,".........."]
[null,null,"سایر اشخاص"]
["71ـ11",null,"سود (زيان) ناشى از فروش دارايیهاى ثابت مشهود",null,null,"..........",null,"(..........)"]
["90ـ17",null,"سود (زیان) ناشی از فروش دارایی‌های نامشهود",null,null,"(..........)",null,".........."]
["ج40-31",null,"سود (زیان) ناشی از فروش دارایی‌های غیرجاری نگهداری شده برای فروش",null,null,"-",null,"-"]
[null,null,"سود حاصل از فروش مواد اولیه",null,null,"..........",null,".........."]
["52الف-15",null,"سود حاصل از سایر اوراق بهادار و سپرده‏هاى سرمايه‏گذارى بانکی",null,null,"..........",null,".........."]
["52الف-15",null,"سود سهام",null,null,"..........",null,".........."]
["39ـ21",null,"درآمد اجاره ",null,null,"..........",null,".........."]
[null,null,"سود حاصل از تسهیلات اعطایی به دیگران",null,null,"..........",null,".........."]
[null,null,"سود (زیان) فروش سرمایه‌گذاری در املاک",null,null,"ـ",null,"ـ"]
["41ـ15",null,"زيان كاهش ارزش سرمايه‏گذاري‌های بلندمدت",null,null,"(..........)",null,"(..........)"]
["و58ـ15",null,"سود ناشى از فروش سرمايه‏گذاري‌ها",null,null,"..........",null,".........."]
["96و91ـ32",null,"(کاهش) برگشت ارزش دارایی‌های غیرجاری",null,null,"..........",null,"(..........)"]
["39ـ15",null,"درآمد (هزینه) ناشی از ارزیابی سرمایه‌گذاری‌های جاری سریع‌المعامله به ارزش بازار",null,null,"..........",null,"(..........)"]
["27ـ16",null,"سود (زيان) تسعير یا تسویه دارايي‌ها و بدهي‌هاى ارزى غيرمرتبط با عمليات",null,null,"..........",null,"(..........)"]
[null,null,"سایر",null,null,"..........",null,".........."]
[null,null,null,null,null,".........",null,"........."]
[null,null,null,null,null,"..........",null,".........."]
[]
[]
[]
[]
[]
[]
[]
[]
[]
[]
[]
[]
[""]

{"sheet":"29","index":31,"n_rows":36,"n_cols":9,"rows_kept":36,"cut":false,"hidden":false,"merged":[[35,0,35,8],[5,6,5,8],[32,2,32,3],[4,1,4,8],[24,6,24,8],[0,0,0,8],[1,0,1,8],[2,0,2,8],[3,1,3,8]]}
[{"$f":"عنوان!A13","v":0}]
["یادداشت های توضیحی صورت های مالی"]
[{"$f":"عنوان!A15","v":0}]
["الف32ـ31","14- سود (زیان) خالص عملیات متوقف‌شده"]
["\nب32-31\n33","نتایج عملیات متوقف شده کارخانه تولید محصولات غذایی ..... طبق یادداشت 2-27 به شرح زیر است. از بابت آثار مالی ناشی از این تصمیم، نتایج عملیات و جریان وجوه نقد سال 3x14 ارائه مجدد شده است."]
[null,null,null,null,null,null,"(مبالغ به میلیون ریال)"]
[null,null,null,null,null,null,"4x14",null,"3x14"]
[null,null,"درآمدهای عملیاتی",null,null,null,"..........",null,".........."]
[null,null,"بهاى تمام شده درآمدهای عملیاتی","(..........)",null,"(..........)"]
[null,null,"سود ناخالص",null,null,null,{"$f":"IFERROR(IF(COUNT(G8:G9)=0,\"..........\",SUM(G8:G9)),\"..........\")","v":".........."},null,{"$f":"IFERROR(IF(COUNT(I8:I9)=0,\"..........\",SUM(I8:I9)),\"..........\")","v":".........."}]
[null,null,"هزينه‏هاى فروش، ادارى و عمومى",null,null,null,"(..........)",null,"(..........)"]
[null,null,"ساير درآمدها",null,null,null,"..........",null,".........."]
[null,null,"سایر هزینه‌ها",null,null,null,"(..........)",null,"(..........)"]
[null,null,"سود عملياتى",null,null,null,{"$f":"IFERROR(IF(SUM(G11:G13)=0,\"..........\",SUM(G11:G13)),\"..........\")","v":".........."},null,{"$f":"IFERROR(IF(SUM(I11:I13)=0,\"..........\",SUM(I11:I13)),\"..........\")","v":".........."}]
[null,null,"ساير درآمدها و هزينه‏هاى غيرعملياتى",null,null,null,"..........",null,".........."]
[null,null,"سود (زیان) عملکرد واحد متوقف شده قبل از مالیات",null,null,null,"..........",null,".........."]
[null,null,"مالیات بر درآمد / اثر مالیاتی (یادداشت 4-36)",null,null,null,"(..........)",null,"(..........)"]
[null,null,"سود(زیان) عملکرد واحد متوقف شده پس از مالیات",null,null,null,"..........",null,".........."]
[null,null,"زیان کاهش ارزش دارایی‌های عملیات متوقف شده ",null,null,null,"(..........)",null,"(..........)"]
[null,null,"اثر مالیاتی",null,null,null,"..........",null,"(..........)"]
[null,null,null,null,null,null,"..........",null,"(..........)"]
[null,null,"سود (زیان) خالص عملیات متوقف شده",null,null,null,{"$f":"IFERROR(IF(SUM(G15:G21)=0,\"..........\",SUM(G15:G21)),\"..........\")","v":".........."},null,{"$f":"IFERROR(IF(SUM(I15:I21)=0,\"..........\",SUM(I15:I21)),\"..........\")","v":".........."}]
[]
[]
[null,null,null,null,null,null,"(مبالغ به میلیون ریال)"]
[null,null,null,null,null,null,"4x14",null,"3x14"]
["ج32-31",null,"جریان‌های نقدی حاصل از عملیات متوقف شده"]
[null,null,"جریان خالص ورود وجه نقد ناشی از فعالیت‌های عملیاتی",null,null,null,"..........",null,".........."]
[null,null,"جریان‌خالص ورود وجه نقد ناشی از فعالیت‌های سرمایه‌گذاری",null,null,null,"..........",null,".........."]
[null,null,"جریان‌خالص ورود وجه نقد ناشی از فعالیت‌های تامین مالی",null,null,null,"..........",null,".........."]
[null,null,"خالص افزایش وجه نقد",null,null,null,{"$f":"IFERROR(IF(COUNT(G28:G30)=0,\"..........\",SUM(G28:G30)),\"..........\")","v":".........."},null,{"$f":"IFERROR(IF(COUNT(I28:I30)=0,\"..........\",SUM(I28:I30)),\"..........\")","v":".........."}]
[]
[]
[]
[]
[""]

{"sheet":"30","index":32,"n_rows":39,"n_cols":6,"rows_kept":39,"cut":false,"hidden":false,"merged":[[38,0,38,5],[3,3,3,5],[35,2,35,3],[4,2,4,5],[0,0,0,5],[1,0,1,5],[2,0,2,5]]}
[{"$f":"عنوان!A13","v":0}]
["یادداشت های توضیحی صورت های مالی"]
[{"$f":"عنوان!A15","v":0}]
[null,null,null,"(مبالغ به میلیون ریال)"]
["35ـ30",null,"15- مبنای محاسبه سود (زیان) هر سهم "]
[null,null,null,"4x14",null,"3x14"]
[null,null,"سود ناشی از عملیات در حال تداوم - عملیاتی","..........",null,".........."]
[null,null,"اثر مالیاتی","(..........)",null,"(..........)"]
[null,null,null,"..........",null,".........."]
[null,null,"سود (زیان) ناشی از عملیات در حال تداوم - غیرعملیاتی","..........",null,"(..........)"]
[null,null,"اثر مالیاتی","(..........)",null,"(..........)"]
[null,null,null,"..........",null,"(.........)"]
[null,null,"سود (زیان) ناشی از عملیات متوقف شده","..........",null,"(..........)"]
[null,null,"اثر مالیاتی","(..........)",null,".........."]
[null,null,null,"..........",null,"(..........)"]
[null,null,"سود قبل از مالیات","..........",null,".........."]
[null,null,"اثر مالیاتی","(..........)",null,"(..........)"]
[null,null,"سود خالص ",{"$f":"IFERROR(IF(SUM(D7:D17)=0,\"..........\",SUM(D7:D17)),\"..........\")","v":".........."},null,{"$f":"IFERROR(IF(SUM(F7:F17)=0,\"..........\",SUM(F7:F17)),\"..........\")","v":".........."}]
[]
[null,null,"\n","4x14",null,"3x14"]
[null,null,null,"تعداد",null,"تعداد"]
[null,null,"میانگین موزون تعداد سهام عادی انتشار یافته","..........",null,".........."]
["15-30",null,"میانگین موزون تعداد سهام خزانه ","(..........)",null,"(..........)"]
["ب35ـ30",null,"میانگین موزون تعداد سهام عادی","..........",null,".........."]
[]
[]
[]
[]
[]
[]
[]
[]
[]
[]
[]
[]
[]
[]
[""]

{"sheet":"31","index":33,"n_rows":25,"n_cols":30,"rows_kept":25,"cut":false,"hidden":false,"merged":[[5,1,5,4],[0,1,0,28],[1,1,1,28],[2,1,2,28],[3,26,3,28]]}
[null,{"$f":"عنوان!A13","v":0}]
[null,"یادداشت های توضیحی صورت های مالی"]
[null,{"$f":"عنوان!A15","v":0}]
[null,null,null,null,null,null,null,null,null,null,null,null,null,null,null,null,null,null,null,null,null,null,null,null,null,null,"(مبالغ به میلیون ریال)"]
[]
[null,"16- دارایی‌های ثابت مشهود"]
[null,null,null,null,"..........",null,"..........",null,"..........",null,"..........",null,"..........",null,"..........",null,"..........",null,"..........",null,"..........",null,"..........",null,"..........",null,"..........",null,"..........",".........."]
[null,null,"بهای تمام شده یا مبلغ تجدید ارزیابی",null,{"$f":"IFERROR(IF(COUNT(E7:E7)=0,\"..........\",SUM(E7:E7)),\"..........\")","v":".........."},null,{"$f":"IFERROR(IF(COUNT(G7:G7)=0,\"..........\",SUM(G7:G7)),\"..........\")","v":".........."},null,{"$f":"IFERROR(IF(COUNT(I7:I7)=0,\"..........\",SUM(I7:I7)),\"..........\")","v":".........."},null,{"$f":"IFERROR(IF(COUNT(K7:K7)=0,\"..........\",SUM(K7:K7)),\"..........\")","v":".........."},null,{"$f":"IFERROR(IF(COUNT(M7:M7)=0,\"..........\",SUM(M7:M7)),\"..........\")","v":".........."},null,{"$f":"IFERROR(IF(COUNT(O7:O7)=0,\"..........\",SUM(O7:O7)),\"..........\")","v":".........."},null,{"$f":"IFERROR(IF(COUNT(Q7:Q7)=0,\"..........\",SUM(Q7:Q7)),\"..........\")","v":".........."},null,{"$f":"IFERROR(IF(COUNT(S7:S7)=0,\"..........\",SUM(S7:S7)),\"..........\")","v":".........."},null,{"$f":"IFERROR(IF(COUNT(U7:U7)=0,\"..........\",SUM(U7:U7)),\"..........\")","v":".........."},null,{"$f":"IFERROR(IF(COUNT(W7:W7)=0,\"..........\",SUM(W7:W7)),\"..........\")","v":".........."},null,{"$f":"IFERROR(IF(COUNT(Y7:Y7)=0,\"..........\",SUM(Y7:Y7)),\"..........\")","v":".........."},null,{"$f":"IFERROR(IF(COUNT(AA7:AA7)=0,\"..........\",SUM(AA7:AA7)),\"..........\")","v":".........."},null,{"$f":"IFERROR(IF(COUNT(AC7:AC7)=0,\"..........\",SUM(AC7:AC7)),\"..........\")","v":".........."}]
[null,null,"مانده در ابتدای سال 3x14",null,".......",null,".......",null,"-",null,".......",null,".......",null,".......",null,".......",null,".......",null,".......",null,".......",null,".......",null,".......",null,"......."]
[null,null,"افزایش",null,"(.....)",null,"(.....)",null,"-",null,"(.....)",null,"(.....)",null,"(.....)",null,"(.....)",null,"(.....)",null,"(.....)",null,"-",null,"-",null,"(.....)",null,"(.....)"]
[null,null,"واگذار شده ",null,"-",null,"-",null,"-",null,"-",null,"-",null,"-",null,"-",null,"-",null,"-",null,"-",null,"-",null,"-",null,"-"]
[null,null,"افزایش ناشی از تجدید ارزیابی",null,"-",null,"-",null,"-",null,"(.....)",null,"-",null,"-",null,"-",null,"-",null,"(.....)",null,"-",null,"-",null,"-",null,"(.....)"]
[null,null,"کاهش ناشی از تجدید ارزیابی",null,"-",null,"-",null,"-",null,".......",null,".......",null,"-",null,"-",null,"-",null,".......",null,"-",null,"-",null,"-",null,"......."]
[null,null,"آثار تفاوت‌های تسعیر ارز",null,"(-)",null,"(-)",null,"-",null,"-",null,"(-)",null,"(-)",null,"(-)",null,"(-)",null,"(-)",null,"(-)",null,"(-)",null,"(-)",null,"(-)"]
[null,null,"انتقال به دارایی‌های غیرجاری نگهداری‌شده برای فروش",null,".....",null,".....",null,"-",null,".....",null,"....",null,"....",null,".....",null,".....",null,".....",null," (.....)",null,"-",null,"-",null,"-"]
[null,null,"سایر نقل و انتقالات و تغییرات",null,"......",null,"......",null,"-",null,"......",null,"......",null,"......",null,"......",null,"......",null,"......",null,"......",null,"......",null,"......",null,"......"]
[null,null,"مانده در پایان سال 3x14",null,{"$f":"IFERROR(IF(SUM(E7:E16)=0,\"..........\",SUM(E7:E16)),\"..........\")","v":".........."},null,{"$f":"IFERROR(IF(SUM(G7:G16)=0,\"..........\",SUM(G7:G16)),\"..........\")","v":".........."},null,{"$f":"IFERROR(IF(SUM(I7:I16)=0,\"..........\",SUM(I7:I16)),\"..........\")","v":".........."},null,{"$f":"IFERROR(IF(SUM(K7:K16)=0,\"..........\",SUM(K7:K16)),\"..........\")","v":".........."},null,{"$f":"IFERROR(IF(SUM(M7:M16)=0,\"..........\",SUM(M7:M16)),\"..........\")","v":".........."},null,{"$f":"IFERROR(IF(SUM(O7:O16)=0,\"..........\",SUM(O7:O16)),\"..........\")","v":".........."},null,{"$f":"IFERROR(IF(SUM(Q7:Q16)=0,\"..........\",SUM(Q7:Q16)),\"..........\")","v":".........."},null,{"$f":"IFERROR(IF(SUM(S7:S16)=0,\"..........\",SUM(S7:S16)),\"..........\")","v":".........."},null,{"$f":"IFERROR(IF(SUM(U7:U16)=0,\"..........\",SUM(U7:U16)),\"..........\")","v":".........."},null,{"$f":"IFERROR(IF(SUM(W7:W16)=0,\"..........\",SUM(W7:W16)),\"..........\")","v":".........."},null,{"$f":"IFERROR(IF(SUM(Y7:Y16)=0,\"..........\",SUM(Y7:Y16)),\"..........\")","v":".........."},null,{"$f":"IFERROR(IF(SUM(AA7:AA16)=0,\"..........\",SUM(AA7:AA16)),\"..........\")","v":".........."},null,{"$f":"IFERROR(IF(SUM(AC7:AC16)=0,\"..........\",SUM(AC7:AC16)),\"..........\")","v":".........."}]
[null,null,"افزایش",null,"(.....)",null,"(.....)",null,"-",null,"(.....)",null,"(.....)",null,"(.....)",null,"(.....)",null,"(.....)",null,"(.....)",null,"-",null,"-",null,"(.....)",null,"(.....)"]
[null,null,"واگذار شده ",null,"-",null,"-",null,"-",null,"-",null,".......",null,"-",null,"-",null,"-",null,".......",null,"-",null,"-",null,"-",null,"......."]
[null,null,"افزایش ناشی از تجدید ارزیابی",null,"(-)",null,"(-)",null,"-",null,"-",null,"(-)",null,"(-)",null,"(-)",null,"(-)",null,"(-)",null,"-",null,"-",null,"-",null,"(-)"]
[null,null,"کاهش ناشی از تجدید ارزیابی",null,"-",null,"-",null,"-",null,".....",null,".....",null,"-",null,"-",null,"-",null,".....",null,"-",null,"-",null,"-",null,"......"]
[null,null,"آثار تفاوت‌های تسعیر ارز",null,"(.....)",null,"(.....)",null,"-",null,"(.....)",null,"(.....)",null,"-",null,"(.....)",null,"(.....)",null,"(.....)",null,"-",null,"-",null,"-",null,"(.....)"]
[null,null,"انتقال به دارایی‌های غیرجاری نگهداری‌شده برای فروش",null,".....",null,".....",null,"-",null,".....",null,".....",null,".....",null,".....",null,".....",null,".....",null,"(.....)",null,"(.....)",null,"(.....)",null,"....."]
[null,null,"سایر نقل و انتقالات و تغییرات",null,"......",null,"......",null,"......",null,"......",null,"......",null,"......",null,"......",null,"......",null,"......",null,"......",null,"......",null,"......",null,"......"]
[null,null,"مانده در پایان سال 4x14",null,{"$f":"IFERROR(IF(SUM(E18:E24)=0,\"..........\",SUM(E18:E24)),\"..........\")","v":".........."},null,{"$f":"IFERROR(IF(SUM(G18:G24)=0,\"..........\",SUM(G18:G24)),\"..........\")","v":".........."},null,{"$f":"IFERROR(IF(SUM(I18:I24)=0,\"..........\",SUM(I18:I24)),\"..........\")","v":".........."},null,{"$f":"IFERROR(IF(SUM(K18:K24)=0,\"..........\",SUM(K18:K24)),\"..........\")","v":".........."},null,{"$f":"IFERROR(IF(SUM(M18:M24)=0,\"..........\",SUM(M18:M24)),\"..........\")","v":".........."},null,{"$f":"IFERROR(IF(SUM(O18:O24)=0,\"..........\",SUM(O18:O24)),\"..........\")","v":".........."},null,{"$f":"IFERROR(IF(SUM(Q18:Q24)=0,\"..........\",SUM(Q18:Q24)),\"..........\")","v":".........."},null,{"$f":"IFERROR(IF(SUM(S18:S24)=0,\"..........\",SUM(S18:S24)),\"..........\")","v":".........."},null,{"$f":"IFERROR(IF(SUM(U18:U24)=0,\"..........\",SUM(U18:U24)),\"..........\")","v":".........."},null,{"$f":"IFERROR(IF(SUM(W18:W24)=0,\"..........\",SUM(W18:W24)),\"..........\")","v":".........."},null,{"$f":"IFERROR(IF(SUM(Y18:Y24)=0,\"..........\",SUM(Y18:Y24)),\"..........\")","v":".........."},null,{"$f":"IFERROR(IF(SUM(AA18:AA24)=0,\"..........\",SUM(AA18:AA24)),\"..........\")","v":".........."},null,{"$f":"IFERROR(IF(SUM(AC18:AC24)=0,\"..........\",SUM(AC18:AC24)),\"..........\")","v":".........."}]

{"sheet":"32","index":34,"n_rows":27,"n_cols":30,"rows_kept":27,"cut":false,"hidden":false,"merged":[[0,1,0,28],[1,1,1,28],[2,1,2,28],[3,26,3,28],[5,1,5,4]]}
[null,{"$f":"عنوان!A13","v":0}]
[null,"یادداشت های توضیحی صورت های مالی"]
[null,{"$f":"عنوان!A15","v":0}]
[null,null,null,null,null,null,null,null,null,null,null,null,null,null,null,null,null,null,null,null,null,null,null,null,null,null,"(مبالغ به میلیون ریال)"]
[]
[]
[null,null,null,null,"..........",null,"..........",null,"..........",null,"..........",null,"..........",null,"..........",null,"..........",null,"..........",null,"..........",null,"..........",null,"..........",null,"..........",null,"..........",".........."]
[null,null,"استهلاک انباشته و کاهش ارزش انباشته"]
[null,null,"مانده در ابتدای سال 3x14",null,"-",null,".......",null,"-",null,".......",null,".......",null,".......",null,".......",null,".......",null,".......",null,"-",null,"-",null,"-",null,"......."]
[null,null,"استهلاک",null,"-",null,".......",null,"-",null,".......",null,".......",null,".......",null,".......",null,".......",null,".......",null,"-",null,"-",null,"-",null,"......."]
[null,null,"حذف استهلاک انباشته دارایی‌های تجدید ارزیابی شده",null,"-",null,"-",null,"-",null,"(.....)",null,"-",null,"-",null,"-",null,"-",null,"(.....)",null,"-",null,"-",null,"-",null,"(.....)"]
[null,null,"کاهش ارزش ",null,".......",null,".......",null,"-",null,".......",null,".......",null,".......",null,".......",null,".......",null,".......",null,"-",null,"-",null,"-",null,"......."]
[null,null,"برگشت کاهش ارزش ",null,"(.....)",null,"(.....)",null,"-",null,"(.....)",null,"(.....)",null,"(.....)",null,"(.....)",null,"(.....)",null,"(.....)",null,"-",null,"-",null,"-",null,"(.....)"]
[null,null,"واگذار شده",null,"-",null,"(.....)",null,"-",null,"(.....)",null,"(.....)",null,"(.....)",null,"(.....)",null,"(.....)",null,"(.....)",null,"-",null,"-",null,"-",null,"(.....)"]
[null,null,"انتقال به دارایی‌های غیرجاری نگهداری‌شده برای فروش",null,"(-)",null,"(-)",null,"-",null,"-",null,"(-)",null,"(-)",null,"(-)",null,"(-)",null,"(-)",null,"(-)",null,"(-)",null,"(-)",null,"(-)"]
[null,null,"سایر نقل و انتقالات و تغییرات",null,".....",null,".....",null,"-",null,".....",null,".....",null,".....",null,".....",null,".....",null,".....",null,"-",null,"-",null,"-",null,"....."]
[null,null,"مانده در پایان سال3x14",null,{"$f":"IFERROR(IF(SUM(E9:E16)=0,\"..........\",SUM(E9:E16)),\"..........\")","v":".........."},null,{"$f":"IFERROR(IF(SUM(G9:G16)=0,\"..........\",SUM(G9:G16)),\"..........\")","v":".........."},null,{"$f":"IFERROR(IF(SUM(I9:I16)=0,\"..........\",SUM(I9:I16)),\"..........\")","v":".........."},null,{"$f":"IFERROR(IF(SUM(K9:K16)=0,\"..........\",SUM(K9:K16)),\"..........\")","v":".........."},null,{"$f":"IFERROR(IF(SUM(M9:M16)=0,\"..........\",SUM(M9:M16)),\"..........\")","v":".........."},null,{"$f":"IFERROR(IF(SUM(O9:O16)=0,\"..........\",SUM(O9:O16)),\"..........\")","v":".........."},null,{"$f":"IFERROR(IF(SUM(Q9:Q16)=0,\"..........\",SUM(Q9:Q16)),\"..........\")","v":".........."},null,{"$f":"IFERROR(IF(SUM(S9:S16)=0,\"..........\",SUM(S9:S16)),\"..........\")","v":".........."},null,{"$f":"IFERROR(IF(SUM(U9:U16)=0,\"..........\",SUM(U9:U16)),\"..........\")","v":".........."},null,{"$f":"IFERROR(IF(SUM(W9:W16)=0,\"..........\",SUM(W9:W16)),\"..........\")","v":".........."},null,{"$f":"IFERROR(IF(SUM(Y9:Y16)=0,\"..........\",SUM(Y9:Y16)),\"..........\")","v":".........."},null,{"$f":"IFERROR(IF(SUM(AA9:AA16)=0,\"..........\",SUM(AA9:AA16)),\"..........\")","v":".........."},null,{"$f":"IFERROR(IF(SUM(AC9:AC16)=0,\"..........\",SUM(AC9:AC16)),\"..........\")","v":".........."}]
[null,null,"استهلاک",null,"-",null,".......",null,"......",null,".......",null,".......",null,".......",null,".......",null,".......",null,".......",null,"-",null,"-",null,"-",null,"......."]
[null,null,"حذف استهلاک انباشته دارایی‌های تجدید ارزیابی شده",null,"-",null,"(.....)",null,"-",null,"-",null,"(.....)",null,"(.....)",null,"(.....)",null,"(.....)",null,"(.....)",null,"-",null,"-",null,"-",null,"(.....)"]
[null,null,"کاهش ارزش ",null,".......",null,".......",null,"-",null,".......",null,".......",null,".......",null,".......",null,".......",null,".......",null,"-",null,"-",null,"-",null,"......."]
[null,null,"برگشت کاهش ارزش ",null,"(.....)",null,"(.....)",null,"-",null,"(.....)",null,"(.....)",null,"(.....)",null,"(.....)",null,"(.....)",null,"(.....)",null,"-",null,"-",null,"-",null,"(.....)"]
[null,null,"واگذار شده",null,"-",null,"(.....)",null,"-",null,"(.....)",null,"(.....)",null,"(.....)",null,"(.....)",null,"(.....)",null,"(.....)",null,"-",null,"-",null,"-",null,"(.....)"]
[null,null,"انتقال به دارایی‌های غیرجاری نگهداری‌شده برای فروش",null,"(.....)",null,"(.....)",null,"-",null,"(.....)",null,"(.....)",null,"-",null,"(.....)",null,"(.....)",null,"(.....)",null,"-",null,"-",null,"-",null,"(.....)"]
[null,null,"سایر نقل و انتقالات و تغییرات",null,".....",null,".....",null,"-",null,".....",null,".....",null,".....",null,".....",null,".....",null,".....",null,"-",null,"-",null,"-",null,"....."]
[null,null,"مانده در پایان سال4x14",null,{"$f":"IFERROR(IF(SUM(E18:E24)=0,\"..........\",SUM(E18:E24)),\"..........\")","v":".........."},null,{"$f":"IFERROR(IF(SUM(G18:G24)=0,\"..........\",SUM(G18:G24)),\"..........\")","v":".........."},null,{"$f":"IFERROR(IF(SUM(I18:I24)=0,\"..........\",SUM(I18:I24)),\"..........\")","v":".........."},null,{"$f":"IFERROR(IF(SUM(K18:K24)=0,\"..........\",SUM(K18:K24)),\"..........\")","v":".........."},null,{"$f":"IFERROR(IF(SUM(M18:M24)=0,\"..........\",SUM(M18:M24)),\"..........\")","v":".........."},null,{"$f":"IFERROR(IF(SUM(O18:O24)=0,\"..........\",SUM(O18:O24)),\"..........\")","v":".........."},null,{"$f":"IFERROR(IF(SUM(Q18:Q24)=0,\"..........\",SUM(Q18:Q24)),\"..........\")","v":".........."},null,{"$f":"IFERROR(IF(SUM(S18:S24)=0,\"..........\",SUM(S18:S24)),\"..........\")","v":".........."},null,{"$f":"IFERROR(IF(SUM(U18:U24)=0,\"..........\",SUM(U18:U24)),\"..........\")","v":".........."},null,{"$f":"IFERROR(IF(SUM(W18:W24)=0,\"..........\",SUM(W18:W24)),\"..........\")","v":".........."},null,{"$f":"IFERROR(IF(SUM(Y18:Y24)=0,\"..........\",SUM(Y18:Y24)),\"..........\")","v":".........."},null,{"$f":"IFERROR(IF(SUM(AA18:AA24)=0,\"..........\",SUM(AA18:AA24)),\"..........\")","v":".........."},null,{"$f":"IFERROR(IF(SUM(AC18:AC24)=0,\"..........\",SUM(AC18:AC24)),\"..........\")","v":".........."}]
[null,null,"مبلغ دفتری در پایان سال4x14",null,"......",null,"......",null,"......",null,"......",null,"......",null,"......",null,"......",null,"......",null,"......",null,"......",null,"......",null,"......",null,"......"]
[null,null,"مبلغ دفتری در پایان سال3x14",null,"......",null,"......",null,"-",null,"......",null,"......",null,"......",null,"......",null,"......",null,"......",null,"......",null,"......",null,"......",null,"......"]

{"sheet":"33","index":35,"n_rows":31,"n_cols":15,"rows_kept":31,"cut":false,"hidden":false,"merged":[[12,2,12,14],[0,2,0,14],[22,2,22,14],[7,3,7,6],[15,8,16,8],[5,12,5,14],[5,8,5,10],[10,2,10,14],[1,2,1,14],[2,2,2,14],[3,2,3,14],[4,2,4,14],[30,4,30,8],[13,2,13,14],[15,3,15,4],[29,4,29,8],[15,10,15,12],[15,6,16,6],[15,14,16,14],[24,2,25,14],[28,4,28,8]]}
[null,null,{"$f":"عنوان!A13","v":0}]
[null,null,"یادداشت های توضیحی صورت های مالی"]
[null,null,{"$f":"عنوان!A15","v":0}]
[null,"ب135-1","16-1- دارايي‌هاى ثابت مشهود شركت تا مبلغ ..... ميليون ريال در مقابل خطرات احتمالى ناشى از حريق، سيل و زلزله از پوشش بيمه‏اى برخوردار است."]
[null,"81ـ11",{"$f":"IFERROR(IF(SUM(C3:C4)=0,\"..........\",SUM(C3:C4)),\"..........\")","v":".........."}]
[null,null,null,null,null,null,null,null,"14x4",null,null,null,"14x3"]
[null,null,null,null,null,null,null,null,"بر مبنای\n بهای تمام شده",null,"بر مبنای تجدیدارزیابی",null,"بر مبنای\n بهای تمام شده",null,"بر مبنای\n تجدیدارزیابی"]
[null,null,null,"ماشین آلات و تجهبرات ",null,null,null,null,"...............",null,"...............",null,"...............",null,"..............."]
[]
[]
[null,null,"16-2-1- تجدید ارزیابی ماشين‏آلات و تجهیزات شرکت در تاریخ ...... توسط ارزیابان مستقل .... انجام شده است. این ارزیابان، عضو ......... هستند. تجدید ارزیابی ماشين‏آلات و تجهیزات با توجه به استاندارد حسابداری 42  اندازه‌گیری ارزش منصفانه، توسط ارزیابان با شرایط زیر تعیین شده است:\nالف ـ تکنیک ارزیابی:  رویکرد بهای تمام شده است. این رویکرد مبلغی را منعکس می‌کند  که در حال حاضر برای جایگزین کردن ظرفیت ارائه خدمت یک دارایی (که اغلب بهای جایگزینی جاری نامیده می‌شود) مورد نیاز است.\nب ـ داده‌های مورد استفاده داده‌های ورودی سطح  دو، شامل قیمت دارایی‌هایی است که به طور مستقیم یا غیرمستقیم  برای دارایی مربوط، قابل مشاهده است."]
[]
[null,"الف78-11","16-3- زمين و بخشى از ساختمان‌ها و ماشين‏آلات شركت به مبلغ ..... میلیون ریال در قبال تسهيلات مالى دريافتى در وثیقه بانك‌ها می‌باشد."]
[null,"ﻫ 78-11","16-4- دارايي‌هاى در جریان تكميل به شرح زیر است:"]
[]
[null,null,null,"درصد تکمیل",null,null,"برآورد تاریخ بهره برداری",null,"برآورد مخارج تکمیل",null,"مخارج انباشته",null,null,null,"تاثیر پروژه بر عملیات"]
[null,null,null,{"$f":"IFERROR('10'!I15,\"..........\")","v":"13x4"},{"$f":"IFERROR('10'!K15,\"..........\")","v":"13x3"},null,null,null,null,null,{"$f":"IFERROR('10'!I15,\"..........\")","v":"13x4"},null,{"$f":"IFERROR('10'!K15,\"..........\")","v":"13x3"}]
[null,null,null,null,null,null,null,null," ریال",null," ریال",null," ریال"]
[null,null,"احداث خط تولید",null,null,null,null,null,null,null,0,null,0,null,"افزایش ظرفیت"]
[null,null,"احداث كارخانه توليد .....",null,null,null,null,null,null,null,0,null,0,null,"................."]
[null,null,null,null,null,null,null,null,null,null,{"$f":"IFERROR(IF(SUM(K19:K20)=0,\"..........\",SUM(K19:K20)),\"..........\")","v":".........."},null,{"$f":"IFERROR(IF(SUM(M19:M20)=0,\"..........\",SUM(M19:M20)),\"..........\")","v":".........."}]
[]
[null,null,"16-4-1-بخشی از منابع برای پروژه احداث خط تولید......................ازمحل انتشار اوراق مشارکت به مبلغ ......................میلیون ریال تامین شده است ."]
[]
[null,null,"12-5-2- مبالغ زیر به حساب دارایی درجریان تکمیل منظور شده است :"]
[]
[null,null,null,null,null,null,null,null,null,null,{"$f":"IFERROR('10'!I15,\"..........\")","v":"13x4"},null,{"$f":"IFERROR('10'!K15,\"..........\")","v":"13x3"}]
[null,null,null,null,null,null,null,null,null,null," ریال",null," ریال"]
[null,null,null,null,"مخارج تامین مالی"]
[null,null,null,null,"سود اوراق مشارکت"]
[null,null,null,null,"زیان تسعیر ارز تسهیلات مالی دریافتی"]

{"sheet":"34","index":36,"n_rows":41,"n_cols":13,"rows_kept":41,"cut":false,"hidden":false,"merged":[[0,2,0,12],[1,1,1,12],[2,2,2,12],[29,5,29,6],[26,2,26,4],[29,2,29,4],[28,10,28,12],[29,10,29,12],[28,5,28,6],[7,4,7,8],[9,4,9,8],[18,4,18,8],[17,4,17,8],[3,2,4,12],[12,2,13,12],[22,2,22,12],[24,10,24,12],[24,5,24,8],[8,4,8,8],[40,2,40,12],[25,2,25,4],[35,3,35,8],[28,2,28,4],[24,2,24,4],[26,10,26,12],[27,10,27,12],[25,5,25,6],[27,2,27,4],[27,5,27,6],[26,5,26,6],[36,3,36,8],[34,3,34,8],[31,2,31,12]]}
[null,null,{"$f":"عنوان!A13","v":0}]
[null,"یادداشت های توضیحی صورت های مالی"]
[null,null,{"$f":"عنوان!A15","v":0}]
[null,null,"16-4-2- مبالغ زیر به حساب دارایی درجریان تکمیل منظور شده است :"]
[]
[null,null,null,null,null,null,null,null,null,null,{"$f":"IFERROR('10'!I15,\"..........\")","v":"13x4"},null,{"$f":"IFERROR('10'!K15,\"..........\")","v":"13x3"}]
[null,null,null,null,null,null,null,null,null,null," ریال",null," ریال"]
[null,"الف26-13",null,null,"مخارج تسهیلات مالی"]
[null,"الف26-13",null,null,"مخارج مالی اوراق مشارکت"]
[null,"ب و الف 29ـ16",null,null,"تفاوت تسعیر تسهیلات مالی ارزی دریافتی"]
[]
[]
[null,null,"5ـ16ـ مخارج تامین مالی منظور شده به دارایی‌های ثابت مشهود طی سال به شرح زیر است:"]
[]
[]
[null,null,null,null,null,null,null,null,null,null,{"$f":"IFERROR('10'!I25,\"..........\")","v":0},null,{"$f":"IFERROR('10'!K25,\"..........\")","v":0}]
[null,null,null,null,null,null,null,null,null,null," ریال",null," ریال"]
[null,null,null,null,"مخارج تسهیلات مالی"]
[null,null,null,null,"مخارج مالی اوراق مشارکت"]
[]
[]
[]
[null,"الف78-11","6-16- مالکیت قانونی دارایی‌های مورد استفاده زیر به شرکت منتقل نشده یا شرکت در اعمال حقوق قانونی خود نسبت به آنها با محدودیت مواجه می‌باشد:\n                                                                      (مبالغ به میلیون ریال)"]
[]
[null,null,null,null,null,"مبلغ دفتری",null,null,null,null,"توضیحات"]
[null,null,null,null,null,"4x14",null,null,"3x14"]
[null,null,"زمین .....",null,null,"..........",null,null,"..........",null,"عدم انتقال مالکیت"]
[null,null,"ساختمان .....",null,null,"..........",null,null,"..........",null,"محدودیت در اعمال حقوق قانونی"]
[null,null,"......",null,null,"..........",null,null,"..........",null,"........."]
[null,null,null,null,null,"..........",null,null,".........."]
[]
[null,"15-5","17- سرمایه‌گذاری در املاک                                                                   "]
[null,null,null,null,null,null,null,null,null,null,{"$f":"IFERROR('10'!I41,\"..........\")","v":0},null,{"$f":"IFERROR('10'!K41,\"..........\")","v":0}]
[null,null,null,null,null,null,null,null,null,null," ریال",null," ریال"]
[null,null,null,"یک قطعه زمین به مساحت ...... مترمربع در ......"]
[null,null,null,"پیش‌پرداخت خرید املاک"]
[null,null,null,".........."]
[]
[]
[]
[null,null,"17-1- مبلغ ..... میلیون ریال از سرمایه‌گذاری در املاک شرکت، در قبال تسهيلات مالى دريافتى در وثیقه بانك‌ها می‌باشد."]

{"sheet":"35","index":37,"n_rows":47,"n_cols":17,"rows_kept":47,"cut":false,"hidden":false,"merged":[[46,3,46,5],[11,1,11,2],[20,1,20,2],[27,3,27,5],[36,3,36,5],[39,1,39,2],[40,1,40,2],[24,1,24,2],[40,3,40,5],[16,3,16,5],[17,1,17,2],[26,1,26,2],[42,3,42,5],[10,16,10,17],[31,1,31,2],[25,1,25,2],[34,1,34,2],[15,1,15,2],[26,3,26,5],[12,16,12,17],[10,3,10,5],[20,16,20,17],[21,1,21,2],[30,1,30,2],[11,16,11,17],[10,1,10,2],[28,16,28,17],[22,16,22,17],[11,3,11,5],[13,1,13,2],[29,3,29,5],[25,16,25,17],[38,3,38,5],[34,16,34,17],[12,1,12,2],[37,1,37,2],[13,3,13,5],[28,3,28,5],[22,3,22,5],[26,16,26,17],[29,16,29,17],[23,1,23,2],[16,16,16,17],[32,1,32,2],[36,16,36,17],[38,16,38,17],[13,16,13,17],[17,3,17,5],[16,1,16,2],[32,3,32,5],[41,3,41,5],[43,1,43,2],[18,1,18,2],[33,1,33,2],[27,1,27,2],[34,3,34,5],[37,16,37,17],[24,3,24,5],[30,16,30,17],[39,16,39,17],[28,1,28,2],[14,16,14,17],[36,1,36,2],[14,1,14,2],[30,3,30,5],[45,3,45,5],[39,3,39,5],[20,3,20,5],[31,3,31,5],[27,16,27,17],[41,16,41,17],[15,3,15,5],[42,1,42,2],[19,16,19,17],[41,1,41,2],[5,0,5,1],[9,16,9,17],[9,1,9,2],[9,3,9,5],[1,2,1,14],[2,1,2,14],[3,2,3,14],[5,2,5,14],[7,4,7,14],[8,16,8,17],[43,3,43,5],[19,3,19,5],[33,3,33,5],[29,1,29,2],[44,16,44,17],[19,1,19,2],[21,3,21,5],[44,1,44,2],[31,16,31,17],[35,3,35,5],[44,3,44,5],[40,16,40,17],[46,16,46,17],[15,16,15,17],[46,1,46,2],[12,3,12,5],[24,16,24,17],[42,16,42,17],[45,1,45,2],[23,16,23,17],[17,16,17,17],[32,16,32,17],[38,1,38,2],[22,1,22,2],[18,16,18,17],[14,3,14,5],[23,3,23,5],[33,16,33,17],[37,3,37,5],[43,16,43,17],[21,16,21,17],[25,3,25,5],[35,16,35,17],[18,3,18,5],[35,1,35,2],[45,16,45,17]]}
[]
[null,null,{"$f":"عنوان!A14","v":"ویرایش ۱۴۰۵"}]
[null,"یادداشت های توضیحی صورت های مالی"]
[null,null,{"$f":"عنوان!A16","v":"رفتن به مجمع / فهرست"}]
[]
["پ55-1",null,"18- دارایی‌های نامشهود\t"]
[]
[null,null,null,null,"(مبالغ به میلیون ریال)"]
[null,null,null,null,null,null,"حق امتیاز خدمات عمومی",null,"سرقفلی محل کسب",null,"دانش فنی",null,"نرم افزارها",null,"پیش پرداخت‌های سرمایه‌ای",null,"جمع"]
[null,"ج96-17",null,"بهای تمام شده یا مبلغ تجدید ارزیابی"]
[null,"ج96-17",null,"مانده در ابتدای سال 3x14",null,null,".......",null,".......",null,".......",null,".......",null,".......",null,"......."]
[null,null,null,"افزایش",null,null,"-",null,".......",null,".......",null,".......",null,".......",null,"......."]
[null,null,null,"واگذار شده",null,null,"-",null,"-",null,"(.....)",null,"(.....)",null,"-",null,"(.....)"]
[null,null,null,"افزایش ناشی از تجدید ارزیابی",null,null,"-",null,"-",null,"-",null,"-",null,"-",null,"-"]
[null,null,null,"کاهش ناشی از تجدید ارزیابی",null,null,"-",null,"-",null,"-",null,"-",null,"-",null,"-"]
[null,null,null,"آثار تفاوت‌های تسعیر ارز",null,null,"-",null,"-",null,"-",null,"-",null,"-",null,"-"]
[null,null,null,"انتقال به دارایی‌های غیرجاری نگهداری‌شده برای فروش",null,null,"-",null,"-",null,"-",null,"-",null,"-",null,"-"]
[null,null,null,"سایر نقل و انتقالات و تغییرات",null,null,"-",null,"-",null,"-",null,"-",null,"-",null,"-"]
[null,"ج96-17",null,"مانده در پایان سال 3x14",null,null,{"$f":"IFERROR(IF(SUM(G11:G18)=0,\"..........\",SUM(G11:G18)),\"..........\")","v":".........."},null,{"$f":"IFERROR(IF(SUM(I11:I18)=0,\"..........\",SUM(I11:I18)),\"..........\")","v":".........."},null,{"$f":"IFERROR(IF(SUM(K11:K18)=0,\"..........\",SUM(K11:K18)),\"..........\")","v":".........."},null,{"$f":"IFERROR(IF(SUM(M11:M18)=0,\"..........\",SUM(M11:M18)),\"..........\")","v":".........."},null,{"$f":"IFERROR(IF(SUM(O11:O18)=0,\"..........\",SUM(O11:O18)),\"..........\")","v":".........."},null,{"$f":"IFERROR(IF(SUM(Q11:Q18)=0,\"..........\",SUM(Q11:Q18)),\"..........\")","v":".........."}]
[null,null,null,"افزایش",null,null,"-",null,".......",null,".......",null,".......",null,".......",null,"......."]
[null,null,null,"واگذار شده ",null,null,"-",null,"-",null,"(.....)",null,"(.....)",null,"-",null,"(.....)"]
[null,null,null,"افزایش ناشی از تجدید ارزیابی",null,null,"-",null,"-",null,"-",null,"-",null,"-",null,"-"]
[null,null,null,"کاهش ناشی از تجدید ارزیابی",null,null,"-",null,"-",null,"-",null,"-",null,"-",null,"-"]
[null,null,null,"آثار تفاوت‌های تسعیر ارز",null,null,"-",null,"-",null,".....",null,"-",null,"-",null,"....."]
[null,null,null,"انتقال به دارایی‌های غیرجاری نگهداری‌شده برای فروش",null,null,".....",null,"-",null,"-",null,"-",null,"-",null,"....."]
[null,null,null,"سایر نقل و انتقالات و تغییرات",null,null,"-",null,"-",null,"-",null,"-",null,"-",null,"-"]
[null,"ج96-17",null,"مانده در پایان سال 4x14",null,null,{"$f":"IFERROR(IF(SUM(G20:G26)=0,\"..........\",SUM(G20:G26)),\"..........\")","v":".........."},null,{"$f":"IFERROR(IF(SUM(I20:I26)=0,\"..........\",SUM(I20:I26)),\"..........\")","v":".........."},null,{"$f":"IFERROR(IF(SUM(K20:K26)=0,\"..........\",SUM(K20:K26)),\"..........\")","v":".........."},null,{"$f":"IFERROR(IF(SUM(M20:M26)=0,\"..........\",SUM(M20:M26)),\"..........\")","v":".........."},null,{"$f":"IFERROR(IF(SUM(O20:O26)=0,\"..........\",SUM(O20:O26)),\"..........\")","v":".........."},null,{"$f":"IFERROR(IF(SUM(Q20:Q26)=0,\"..........\",SUM(Q20:Q26)),\"..........\")","v":".........."}]
[null,"ج96-17",null,"استهلاک انباشته و کاهش ارزش انباشته"]
[null,null,null,"مانده در ابتدای سال 3x14",null,null,"-",null,"-",null,".......",null,".......",null,"-",null,"......."]
[null,null,null,"استهلاک",null,null,"-",null,"-",null,".......",null,".......",null,"-",null,"......."]
[null,null,null,"حذف استهلاک ناشی از تجدید ارزیابی",null,null,"-",null,"-",null,"-",null,"-",null,"-",null,"-"]
[null,null,null,"کاهش ارزش ",null,null,"-",null,".......",null,".......",null,".......",null,"-",null,"......."]
[null,null,null,"برگشت کاهش ارزش ",null,null,"-",null,"-",null,"-",null,"-",null,"-",null,"-"]
[null,null,null,"واگذار شده",null,null,"-",null,"(.....)",null,"(.....)",null,"(.....)",null,"-",null,"(.....)"]
[null,null,null,"انتقال به دارایی‌های غیرجاری نگهداری‌شده برای فروش",null,null,"-",null,"-",null,"-",null,"-",null,"-",null,"-"]
[null,null,null,"سایر نقل و انتقالات و تغییرات",null,null,"-",null,"-",null,"-",null,"-",null,"-",null,"-"]
[null,"ج96-17",null,"مانده در پایان سال 3x14",null,null,{"$f":"IFERROR(IF(SUM(G29:G36)=0,\"..........\",SUM(G29:G36)),\"..........\")","v":".........."},null,{"$f":"IFERROR(IF(SUM(I29:I36)=0,\"..........\",SUM(I29:I36)),\"..........\")","v":".........."},null,{"$f":"IFERROR(IF(SUM(K29:K36)=0,\"..........\",SUM(K29:K36)),\"..........\")","v":".........."},null,{"$f":"IFERROR(IF(SUM(M29:M36)=0,\"..........\",SUM(M29:M36)),\"..........\")","v":".........."},null,{"$f":"IFERROR(IF(SUM(O29:O36)=0,\"..........\",SUM(O29:O36)),\"..........\")","v":".........."},null,{"$f":"IFERROR(IF(SUM(Q29:Q36)=0,\"..........\",SUM(Q29:Q36)),\"..........\")","v":".........."}]
[null,null,null,"استهلاک",null,null,"-",null,"-",null,".......",null,".......",null,"-",null,"......."]
[null,null,null,"حذف استهلاک ناشی از تجدید ارزیابی",null,null,"-",null,"-",null,"-",null,"-",null,"-",null,"-"]
[null,null,null,"کاهش ارزش ",null,null,"-",null,".......",null,".......",null,".......",null,"-",null,"......."]
[null,null,null,"برگشت کاهش ارزش ",null,null,"-",null,"-",null,"-",null,"-",null,"-",null,"-"]
[null,null,null,"واگذار شده",null,null,"-",null,"(.....)",null,"(.....)",null,"(.....)",null,"-",null,"(.....)"]
[null,null,null,"انتقال به دارایی‌های غیرجاری نگهداری‌شده برای فروش",null,null,"-",null,"-",null,"-",null,"-",null,"-",null,"-"]
[null,null,null,"سایر نقل و انتقالات و تغییرات",null,null,"-",null,"-",null,"-",null,"-",null,"-",null,"-"]
[null,"ج96-17",null,"مانده در پایان سال 4x14",null,null,{"$f":"IFERROR(IF(SUM(G38:G44)=0,\"..........\",SUM(G38:G44)),\"..........\")","v":".........."},null,{"$f":"IFERROR(IF(SUM(I38:I44)=0,\"..........\",SUM(I38:I44)),\"..........\")","v":".........."},null,{"$f":"IFERROR(IF(SUM(K38:K44)=0,\"..........\",SUM(K38:K44)),\"..........\")","v":".........."},null,{"$f":"IFERROR(IF(SUM(M38:M44)=0,\"..........\",SUM(M38:M44)),\"..........\")","v":".........."},null,{"$f":"IFERROR(IF(SUM(O38:O44)=0,\"..........\",SUM(O38:O44)),\"..........\")","v":".........."},null,{"$f":"IFERROR(IF(SUM(Q38:Q44)=0,\"..........\",SUM(Q38:Q44)),\"..........\")","v":".........."}]
[null,"ج96-17",null,"مبلغ دفتری در پایان سال 4x14",null,null,"......",null,"......",null,"......",null,"......",null,"......",null,"......"]
[null,"ج96-17",null,"مبلغ دفتری در پایان سال 3x14",null,null,"......",null,"......",null,"......",null,"......",null,"......",null,"......"]

{"sheet":"36","index":38,"n_rows":29,"n_cols":19,"rows_kept":29,"cut":false,"hidden":false,"merged":[[14,4,14,18],[17,16,17,18],[12,2,12,6],[18,16,18,18],[1,1,1,18],[11,8,11,10],[8,2,8,18],[7,10,7,12],[18,4,18,14],[15,2,15,18],[14,1,14,3],[3,1,3,18],[5,2,5,16],[2,1,2,18],[9,8,9,10],[11,2,11,6],[12,8,12,10],[10,2,10,6],[10,8,10,10]]}
[]
[null,{"$f":"عنوان!A14","v":"ویرایش ۱۴۰۵"}]
[null,"یادداشت های توضیحی صورت های مالی"]
[null,{"$f":"عنوان!A16","v":"رفتن به مجمع / فهرست"}]
[]
[null,"58ـ15","19- سرمايه‌گذاري‌های بلندمدت"]
[]
[null,null,null,null,null,null,null,null,null,null," (مبالغ به میلیون ریال)"]
[]
[null,null,null,null,null,null,null,null,"یادداشت",null,null,null,"بهای تمام شده",null,"کاهش ارزش انباشته",null,"مبلغ دفتری",null,"مبلغ دفتری"]
[null,null,"سرمایه‌گذاری در سهام شرکت‌ها",null,null,null,null,null,"1-19",null,null,null,"..........",null,"(..........)",null,"..........",null,".........."]
[null,null,"سرمایه‌گذاری در سایر اوراق بهادار",null,null,null,null,null,"2-19",null,null,null,"..........",null,"(..........)",null,"..........",null,".........."]
[null,null,"سپرده سرمايه‌گذاري بلندمدت بانكي ",null,null,null,null,null,"3-19",null,null,null,"..........",null,"-",null,"..........",null,".........."]
[null,null,null,null,null,null,null,null,null,null,null,null,"..........",null,"(..........)",null,"..........",null,".........."]
[]
[null,"58ـ15","19-1-‌ سرمايه‏گذارى در سهام شركت‌ها به شرح زير تفكيك مى‏شود:"]
[]
[null,null,null,null,null,null,null,null,null,null,null,null,null,null,null,null," (مبالغ به میلیون ریال)"]
[null,null,null,null,"4×14",null,null,null,null,null,null,null,null,null,null,null,"3×14"]
[null,null,null,null,"تعداد سهام",null,"درصد سرمايه‌گذاري",null,"بهاي تمام شده",null,"‌کاهش ‌ارزش انباشته",null,"مبلغ دفتری",null,"ارزش بازار",null,"مبلغ دفتری",null,"ارزش بازار"]
[null,null,"سرمایه‌گذاری‌های‌سریع‌المعامله (بورسی و فرابورسی)",null,null,null,null,null,null,null,null,null,null,null,null,null,"..........",null,".........."]
[null,null,"شركت ..........",null,"..........",null,"..........",null,"..........",null,"(..........)",null,null,null,"..........",null,"..........",null,".........."]
[null,null,"شركت ..........",null,"..........",null,"..........",null,"..........",null,"-",null,null,null,"..........",null,"..........",null,".........."]
[null,null," ",null,null,null,null,null,"..........",null,"(..........)",null,null,null,null,null,".........."]
[null,null,"ساير شرکت‌ها",null,null,null,null,null,null,null,null,null,{"$f":"+#REF!:AQ21PAF18:#REF!","v":{"$error":"#REF!"}},null,null,null,"..........",null,"-"]
[null,null,"شرکت ..........",null,"..........",null,"..........",null,"..........",null,"(..........)",null,null,null,"-",null,"..........",null,"-"]
[null,null,"شرکت ..........",null,"..........",null,"..........",null,"..........",null,"(..........)",null,null,null,"-",null,"..........",null,"-"]
[null,null,null,null,"..........",null,"..........",null,"..........",null,"(..........)",null,null,null,"-",null,"..........",null,"-"]
[null,null,null,null,"..........",null,"..........",null,"..........",null,"(..........)"]

{"sheet":"37","index":39,"n_rows":27,"n_cols":51,"rows_kept":27,"cut":false,"hidden":false,"merged":[[1,1,1,18],[23,2,23,6],[17,8,17,10],[8,2,8,19],[11,10,11,12],[11,14,11,16],[10,14,10,16],[7,10,7,14],[3,1,3,18],[2,1,2,18],[8,50,8,57],[20,2,20,6],[9,10,9,12],[12,10,12,12],[12,14,12,16],[11,6,11,8],[20,7,20,8],[13,6,13,8],[13,10,13,12],[15,2,15,18],[14,1,14,3],[9,6,9,8],[19,7,19,8],[12,6,12,8],[13,20,13,24],[22,7,22,8],[9,20,9,24],[10,10,10,12],[25,7,25,8],[14,4,14,49],[13,14,13,16],[25,2,25,6],[24,7,24,8],[24,2,24,6],[21,2,21,6],[21,7,21,8],[22,2,22,6],[26,7,26,8],[9,14,9,16],[10,6,10,8],[5,2,5,16],[16,2,16,18],[23,7,23,8]]}
[]
[null,{"$f":"عنوان!A14","v":"ویرایش ۱۴۰۵"}]
[null,"یادداشت های توضیحی صورت های مالی"]
[null,{"$f":"عنوان!A16","v":"رفتن به مجمع / فهرست"}]
[]
[null,null,"2ـ19ـ سرمايه‌گذاري در سایر اوراق بهادار"]
[]
[null,null,null,null,null,null,null,null,null,null," (مبالغ به میلیون ریال)"]
[null,null,null,null,null,null,null,null,null,null,null,null,null,null,null,null,null,null,null,null,null,null,null,null,null,null,null,null,null,null,null,null,null,null,null,null,null,null,null,null,null,null,null,null,null,null,null,null,null,null,"3x14"]
[null,null,"ناشر",null,"نوع اوراق",null,"نرخ سود",null,null,null,"4x14",null,null,null,"3x14"]
[null,null,"شرکت .......",null,"مشارکت",null,"..........",null,null,null,"..........",null,null,null,".........."]
[null,null,"شرکت .......",null,"مرابحه",null,"..........",null,null,null,"..........",null,null,null,".........."]
[null,null,"شرکت ......",null,"صکوک",null,"..........",null,null,null,"..........",null,null,null,".........."]
[null,null,"شرکت .......",null,"..........",null,"..........",null,null,null,"..........",null,null,null,".........."]
[]
[null,"13-37","3ـ19ـ سپرده‌های سرمایه‌گذاری بلندمدت بانکی"]
[null,null,"سپرده‌های سرمایه‌گذاری شرکت به مبلغ ..... میلیون ریال با نرخ ..... درصد و مبلغ ..... میلیون ریال با نرخ ..... درصد می‌باشد."]
[null,null,null,null,null,null,null,null," (مبالغ به میلیون ریال)"]
[null,null,null,null,null,null,null,null,"4×14",null,"3×14",null,null,null,null,null,null,null,null,null,null,null,null,null,null,null,null,null,null,null,null,null,null,null,null,null,null,null,null,null,null,null,null,null,null,null,null,null,null,"3×14"]
[null,null,null,null,null,null,null,"مبلغ دفتری",null,null,"ارزش بازار"]
[null,null,"سرمایه‌گذاری در سهام شرکت‌ها",null,null,null,null,"..........",null,null,".........."]
[null,null,"شرکت .....",null,null,null,null,"..........",null,null,"..........",null,null,null,null,null,null,null,null,null,null,null,null,null,null,null,null,null,null,null,null,null,null,null,null,null,null,null,null,null,null,null,null,null,null,null,null,null,null,".........."]
[null,null,"شرکت .....",null,null,null,null,"..........",null,null,"..........",null,null,null,null,null,null,null,null,null,null,null,null,null,null,null,null,null,null,null,null,null,null,null,null,null,null,null,null,null,null,null,null,null,null,null,null,null,null,".........."]
[null,null,null,null,null,null,null,"..........",null,null,"..........",null,null,null,null,null,null,null,null,null,null,null,null,null,null,null,null,null,null,null,null,null,null,null,null,null,null,null,null,null,null,null,null,null,null,null,null,null,null,".........."]
[null,null,"سایر اوراق بهادار",null,null,null,null,"..........",null,null,".........."]
[null,null,"سپرده‏هاى سرمايه‏گذارى بلندمدت بانكى",null,null,null,null,"..........",null,null,"..........",null,null,null,null,null,null,null,null,null,null,null,null,null,null,null,null,null,null,null,null,null,null,null,null,null,null,null,null,null,null,null,null,null,null,null,null,null,null,".........."]
[null,null,null,null,null,null,null,"..........",null,null,"..........",null,null,null,null,null,null,null,null,null,null,null,null,null,null,null,null,null,null,null,null,null,null,null,null,null,null,null,null,null,null,null,null,null,null,null,null,null,null,".........."]

{"sheet":"38","index":40,"n_rows":31,"n_cols":16,"rows_kept":31,"cut":false,"hidden":false,"merged":[[3,2,3,9],[2,2,2,15],[5,5,5,13],[1,2,1,15],[0,2,0,15],[4,11,4,15]]}
[null,null,{"$f":"عنوان!A13","v":0}]
[null,null,"یادداشت های توضیحی صورت های مالی"]
[null,null,{"$f":"عنوان!A15","v":0}]
[null,"1-55","20- دریافتنی‌های تجاری و سایر دریافتنی‌ها"]
[null,"80ـ1\n(الف)116-43","20-1-دریافتنی های کوتاه مدت:",null,null,null,null,null,null,null,null," (مبالغ به میلیون ریال)"]
[null,null,null,null,null,{"$f":"IFERROR('10'!I15,\"..........\")","v":"13x4"},null,null,null,null,null,null,null,null,null,{"$f":"IFERROR('10'!K15,\"..........\")","v":"13x3"}]
[null,null,null,null,null,"ریالی",null,"ارزی",null,"جمع",null,"کاهش ارزش",null,"خالص",null,"خالص"]
[]
[null,null,"تجاری:"]
[null,null,"اسناد دریافتنی:",null,null,0,null,0,null,{"$f":"IFERROR(F10+H10,\"..........\")","v":0},null,0,null,{"$f":"IFERROR(J10+L10,\"..........\")","v":0},null,{"$f":"IFERROR(L10+N10,\"..........\")","v":0}]
[null,null,"اشخاص وابسته",null,null,0,null,0,null,{"$f":"IFERROR(F11+H11,\"..........\")","v":0},null,0,null,{"$f":"IFERROR(J11+L11,\"..........\")","v":0}]
[null,null,"ساير مشتریان",null,null,0,null,0,null,{"$f":"IFERROR(F12+H12,\"..........\")","v":0},null,0,null,{"$f":"IFERROR(J12+L12,\"..........\")","v":0},null,{"$f":"IFERROR(L12+N12,\"..........\")","v":0}]
[null,null,null,null,null,{"$f":"IFERROR(IF(SUM(F11:F12)=0,\"..........\",SUM(F11:F12)),\"..........\")","v":".........."},null,{"$f":"IFERROR(IF(SUM(H11:H12)=0,\"..........\",SUM(H11:H12)),\"..........\")","v":".........."},null,{"$f":"IFERROR(IF(SUM(J11:J12)=0,\"..........\",SUM(J11:J12)),\"..........\")","v":".........."},null,{"$f":"IFERROR(IF(SUM(L11:L12)=0,\"..........\",SUM(L11:L12)),\"..........\")","v":".........."},null,{"$f":"IFERROR(IF(SUM(N11:N12)=0,\"..........\",SUM(N11:N12)),\"..........\")","v":".........."},null,{"$f":"IFERROR(IF(SUM(P11:P12)=0,\"..........\",SUM(P11:P12)),\"..........\")","v":".........."}]
[null,null,"حساب‌هاي دريافتني"]
[null,null,"اشخاص وابسته",null,null,0,null,0,null,{"$f":"IFERROR(F15+H15,\"..........\")","v":0},null,0,null,{"$f":"IFERROR(J15+L15,\"..........\")","v":0},null,{"$f":"IFERROR(L15+N15,\"..........\")","v":0}]
[null,null,"ساير مشتریان",null,null,0,null,0,null,{"$f":"IFERROR(F16+H16,\"..........\")","v":0},null,0,null,{"$f":"IFERROR(J16+L16,\"..........\")","v":0}]
[null,null,null,null,null,null,null,null,null,null,null,{"$f":"IFERROR(IF(SUM(L15:L16)=0,\"..........\",SUM(L15:L16)),\"..........\")","v":".........."},null,{"$f":"IFERROR(IF(SUM(N15:N16)=0,\"..........\",SUM(N15:N16)),\"..........\")","v":".........."}]
[null,null,null,null,null,0,null,0,null,0,null,null,null,0,null,".........."]
[null,null,"سایر دریافتنی‌ها"]
[null,null,"اسناد دريافتني"]
[null,null,"اشخاص وابسته",null,null,0,null,0,null,{"$f":"IFERROR(F21+H21,\"..........\")","v":0},null,0,null,{"$f":"IFERROR(J21+L21,\"..........\")","v":0}]
[null,null,"سایر اشخاص",null,null,0,null,0,null,{"$f":"IFERROR(F22+H22,\"..........\")","v":0},null,0,null,{"$f":"IFERROR(J22+L22,\"..........\")","v":0},null,{"$f":"IFERROR(L22+N22,\"..........\")","v":0}]
[]
[null,null,"حساب‌هاي دريافتني"]
[null,null,"اشخاص وابسته",null,null,0,null,0,null,{"$f":"IFERROR(F25+H25,\"..........\")","v":0},null,{"$f":"IFERROR(IF(SUM(L20:L24)=0,\"..........\",SUM(L20:L24)),\"..........\")","v":".........."},null,{"$f":"IFERROR(IF(SUM(N19:N24)=0,\"..........\",SUM(N19:N24)),\"..........\")","v":".........."},null,{"$f":"IFERROR(IF(SUM(P19:P24)=0,\"..........\",SUM(P19:P24)),\"..........\")","v":".........."}]
[null,null,"تسهیلات اعطایی به دیگران",null,null,{"$f":"IFERROR(F17+F25,\"..........\")","v":0},null,{"$f":"IFERROR(H17+H25,\"..........\")","v":0},null,{"$f":"IFERROR(J17+J25,\"..........\")","v":0},null,{"$f":"IFERROR(L17+L25,\"..........\")","v":".........."},null,{"$f":"IFERROR(N17+N25,\"..........\")","v":".........."},null,{"$f":"IFERROR(P17+P25,\"..........\")","v":".........."}]
[null,null,"كاركنان (وام و مساعده)",null,null,"..........",null,"..........",null,"..........",null,null,null,null,null,".........."]
[null,null,"سایر",null,null,"..........",null,"..........",null,"..........",null,null,null,null,null,".........."]
[null,null,null,null,null,"..........",null,"..........",null,"..........",null,null,null,null,null,".........."]
[null,null,null,null,null,"..........",null,"..........",null,"..........",null,null,null,null,null,".........."]
[null,null,null,null,null,"..........",null,"..........",null,"..........",null,null,null,null,null,".........."]

{"sheet":"39","index":41,"n_rows":51,"n_cols":16,"rows_kept":51,"cut":false,"hidden":false,"merged":[[0,2,0,15],[4,11,4,15],[3,2,3,9],[2,2,2,15],[50,1,50,15],[5,5,5,13],[1,2,1,15]]}
[null,null,{"$f":"عنوان!A13","v":0}]
[null,null,"یادداشت های توضیحی صورت های مالی"]
[null,null,{"$f":"عنوان!A15","v":0}]
[null,"80ـ1\n(الف)116-43","2-20- دریافتنی‌های بلندمدت "]
[null,null,null,null,null,null,null,null,null,null,null," (مبالغ به میلیون ریال)"]
[null,null,null,null,null,{"$f":"IFERROR('10'!I15,\"..........\")","v":"13x4"},null,null,null,null,null,null,null,null,null,{"$f":"IFERROR('10'!K15,\"..........\")","v":"13x3"}]
[null,null,null,null,null,"ریالی",null,"ارزی",null,"جمع",null,"کاهش ارزش",null,"خالص",null,"خالص"]
[]
[null,null,"تجاری:"]
[null,null,"اسناد دریافتنی:",null,null,0,null,0,null,{"$f":"IFERROR(F10+H10,\"..........\")","v":0},null,0,null,{"$f":"IFERROR(J10+L10,\"..........\")","v":0},null,{"$f":"IFERROR(L10+N10,\"..........\")","v":0}]
[null,null,"اشخاص وابسته",null,null,0,null,0,null,{"$f":"IFERROR(F11+H11,\"..........\")","v":0},null,0,null,{"$f":"IFERROR(J11+L11,\"..........\")","v":0}]
[null,null,"ساير مشتریان",null,null,0,null,0,null,{"$f":"IFERROR(F12+H12,\"..........\")","v":0},null,0,null,{"$f":"IFERROR(J12+L12,\"..........\")","v":0},null,{"$f":"IFERROR(L12+N12,\"..........\")","v":0}]
[null,null,null,null,null,{"$f":"IFERROR(IF(SUM(F11:F12)=0,\"..........\",SUM(F11:F12)),\"..........\")","v":".........."},null,{"$f":"IFERROR(IF(SUM(H11:H12)=0,\"..........\",SUM(H11:H12)),\"..........\")","v":".........."},null,{"$f":"IFERROR(IF(SUM(J11:J12)=0,\"..........\",SUM(J11:J12)),\"..........\")","v":".........."},null,{"$f":"IFERROR(IF(SUM(L11:L12)=0,\"..........\",SUM(L11:L12)),\"..........\")","v":".........."},null,{"$f":"IFERROR(IF(SUM(N11:N12)=0,\"..........\",SUM(N11:N12)),\"..........\")","v":".........."},null,{"$f":"IFERROR(IF(SUM(P11:P12)=0,\"..........\",SUM(P11:P12)),\"..........\")","v":".........."}]
[null,null,"حساب‌هاي دريافتني"]
[null,null,"اشخاص وابسته",null,null,0,null,0,null,{"$f":"IFERROR(F15+H15,\"..........\")","v":0},null,0,null,{"$f":"IFERROR(J15+L15,\"..........\")","v":0},null,{"$f":"IFERROR(L15+N15,\"..........\")","v":0}]
[null,null,"ساير مشتریان",null,null,0,null,0,null,{"$f":"IFERROR(F16+H16,\"..........\")","v":0},null,0,null,{"$f":"IFERROR(J16+L16,\"..........\")","v":0}]
[null,null,null,null,null,null,null,null,null,null,null,{"$f":"IFERROR(IF(SUM(L15:L16)=0,\"..........\",SUM(L15:L16)),\"..........\")","v":".........."},null,{"$f":"IFERROR(IF(SUM(N15:N16)=0,\"..........\",SUM(N15:N16)),\"..........\")","v":".........."}]
[null,null,null,null,null,0,null,0,null,0,null,null,null,0,null,".........."]
[null,null,"سایر دریافتنی‌ها"]
[null,null,"اسناد دريافتني"]
[null,null,"اشخاص وابسته",null,null,0,null,0,null,{"$f":"IFERROR(F21+H21,\"..........\")","v":0},null,0,null,{"$f":"IFERROR(J21+L21,\"..........\")","v":0}]
[null,null,"سایر اشخاص",null,null,0,null,0,null,{"$f":"IFERROR(F22+H22,\"..........\")","v":0},null,0,null,{"$f":"IFERROR(J22+L22,\"..........\")","v":0},null,{"$f":"IFERROR(L22+N22,\"..........\")","v":0}]
[]
[null,null,"حساب‌هاي دريافتني"]
[null,null,"اشخاص وابسته",null,null,0,null,0,null,{"$f":"IFERROR(F25+H25,\"..........\")","v":0},null,{"$f":"IFERROR(IF(SUM(L20:L24)=0,\"..........\",SUM(L20:L24)),\"..........\")","v":".........."},null,{"$f":"IFERROR(IF(SUM(N19:N24)=0,\"..........\",SUM(N19:N24)),\"..........\")","v":".........."},null,{"$f":"IFERROR(IF(SUM(P19:P24)=0,\"..........\",SUM(P19:P24)),\"..........\")","v":".........."}]
[null,null,"تسهیلات اعطایی به دیگران",null,null,{"$f":"IFERROR(F17+F25,\"..........\")","v":0},null,{"$f":"IFERROR(H17+H25,\"..........\")","v":0},null,{"$f":"IFERROR(J17+J25,\"..........\")","v":0},null,{"$f":"IFERROR(L17+L25,\"..........\")","v":".........."},null,{"$f":"IFERROR(N17+N25,\"..........\")","v":".........."},null,{"$f":"IFERROR(P17+P25,\"..........\")","v":".........."}]
[null,null,"كاركنان (وام و مساعده)",null,null,"..........",null,"..........",null,"..........",null,null,null,null,null,".........."]
[null,null,"سایر",null,null,"..........",null,"..........",null,"..........",null,null,null,null,null,".........."]
[null,null,null,null,null,"..........",null,"..........",null,"..........",null,null,null,null,null,".........."]
[null,null,null,null,null,"..........",null,"..........",null,"..........",null,null,null,null,null,".........."]
[null,null,null,null,null,"..........",null,"..........",null,"..........",null,null,null,null,null,".........."]
[]
[]
[]
[]
[]
[]
[]
[]
[]
[]
[]
[]
[]
[]
[]
[]
[]
[]
[]
[null,"3-20- [سیاست‌های فروش اعتباری و خط‌مشی شرکت برای تعیین کاهش ارزش دریافتنی‌ها در این قسمت افشا می‌شود.]"]

{"sheet":"40","index":42,"n_rows":51,"n_cols":12,"rows_kept":51,"cut":false,"hidden":false,"merged":[[25,2,25,11],[26,2,26,11],[27,1,27,11],[50,1,50,11],[3,2,3,9],[4,9,4,11],[9,3,9,8],[15,9,15,11],[0,2,0,11],[1,2,1,11],[2,2,2,11],[3,10,3,11],[11,2,12,11],[5,3,5,8],[6,3,6,8],[7,3,7,8],[8,3,8,7],[14,2,14,7]]}
[null,null,{"$f":"عنوان!A13","v":0}]
[null,null,"یادداشت های توضیحی صورت های مالی"]
[null,null,{"$f":"عنوان!A15","v":0}]
[null,"الف37-37","4-20- مدت زمان دریافتنی‌هایی که معوق شده ولی کاهش ارزش نداشته‌اند."]
[null,null,null,null,null,null,null,null,null,"  (مبالغ به میلیون ریال)"]
[null,null,null,null,null,null,null,null,null,"14*4",null,"14*3"]
[null,null,null,"...-... روز",null,null,null,null,null,"..........",null,".........."]
[null,null,null,"...-... روز",null,null,null,null,null,"..........",null,".........."]
[null,null,null,"جمع",null,null,null,null,null,{"$f":"IFERROR(IF(SUM(J7:J8)=0,\"..........\",SUM(J7:J8)),\"..........\")","v":".........."},null,{"$f":"IFERROR(IF(SUM(L7:L8)=0,\"..........\",SUM(L7:L8)),\"..........\")","v":".........."}]
[null,null,null,"میانگین مدت زمان (روز)",null,null,null,null,null,"..........",null,"........"]
[]
[null,null,"این دریافتنی‌های تجاری شامل مبالغی است که در پایان دوره گزارشگری معوق شده ولی به دلیل عدم تغییر قابل‌ملاحظه در کیفیت اعتباری، برای آنها کاهش ارزش شناسایی نشده و این مبالغ هنوز قابل دریافت می‌باشند."]
[]
[]
[null,"37-14","5-20-گردش حساب کاهش ارزش دریافتنی‌ها به شرح زیر است:"]
[null,null,null,null,null,null,null,null,null,"  (مبالغ به میلیون ریال)"]
[]
[null,null,null,null,null,null,null,null,null,"14*4",null,"14*3"]
[null,null,"مانده در ابتدای سال",null,null,null,null,null,null,"..........",null,".........."]
[null,null,"زیان‌های کاهش ارزش دریافتنی‌ها",null,null,null,null,null,null,"..........",null,".........."]
[null,null,"حذف شده طی سال به عنوان غیر قابل وصول",null,null,null,null,null,null,"..........",null,".........."]
[null,null,"بازیافت شده طی سال",null,null,null,null,null,null,"..........",null,".........."]
[null,null,"برگشت زیان‌های کاهش ارزش ",null,null,null,null,null,null,"..........",null,".........."]
[null,null,"مانده در پایان سال",null,null,null,null,null,null,{"$f":"IFERROR(IF(SUM(J19:J23)=0,\"..........\",SUM(J19:J23)),\"..........\")","v":".........."},null,{"$f":"IFERROR(IF(SUM(L19:L23)=0,\"..........\",SUM(L19:L23)),\"..........\")","v":".........."}]
[]
[null,null,"6-20- در تعیین قابلیت بازیافت دریافتنی‌های تجاری، هرگونه تغییر در کیفیت اعتباری دریافتنی‌های تجاری از زمان ایجاد تا پایان دوره گزارشگری مد نظر قرار می‌گیرد."]
[null,"27ب-37\n(ب)113-43","7-20- کاهش ارزش شامل دریافتنی‌های تجاری حاصل از قرارداد با مشتریان است که به مبلغ ... ریال (سال قبل ... ریال) کاهش ارزش یافته‌اند. کاهش ارزش شناسایی شده نشان‌دهنده تفاوت بین مبلغ دفتری این دریافتنی‌های تجاری و ارزش فعلی عواید مورد انتظار تسویه است. برای این دسته از دریافتنی‌ها وثیقه دریافت نشده است."]
[null,""]
[]
[]
[]
[]
[]
[]
[]
[]
[]
[]
[]
[]
[]
[]
[]
[]
[]
[]
[]
[]
[]
[]
[null,""]

{"sheet":"41","index":43,"n_rows":39,"n_cols":12,"rows_kept":39,"cut":false,"hidden":false,"merged":[[28,2,29,11],[30,2,30,11],[38,1,38,11],[18,2,18,4],[22,2,22,4],[21,2,21,4],[16,2,16,4],[14,2,14,4],[24,2,24,4],[23,2,23,4],[0,2,0,11],[1,2,1,11],[2,2,2,11],[17,2,17,4]]}
[null,null,{"$f":"عنوان!A13","v":0}]
[null,null,"یادداشت های توضیحی صورت های مالی "]
[null,null,{"$f":"عنوان!A15","v":0}]
[]
[]
[null,"1-56","21- سایر دارایی‌ها","سایر دارایی ها"]
[null,null,null,null,null,null,null,null,null,{"$f":"IFERROR('10'!I15,\"..........\")","v":"13x4"},null,{"$f":"IFERROR('10'!K15,\"..........\")","v":"13x3"}]
[null,null,null,null,null,null,null,null,null," ریال",null," ریال"]
[null,null,null,"وجوه بانکی مسدود شده"]
[null,null,null,"سپرده نزد صندوق دادگستری"]
[null,null,null,"سایر"]
[null,null,null,null,null,null,null,null,null,{"$f":"IFERROR(IF(SUM(J9:J11)=0,\"..........\",SUM(J9:J11)),\"..........\")","v":".........."},null,{"$f":"IFERROR(IF(SUM(L9:L11)=0,\"..........\",SUM(L9:L11)),\"..........\")","v":".........."}]
[]
[]
[null,"1-56","22- پیش‌پرداخت‌ها",null,null,null,null,null,null,{"$f":"IFERROR('10'!I7,\"..........\")","v":0},null,{"$f":"IFERROR('10'!K7,\"..........\")","v":0}]
[null,null,null,null,null,null,null,null,null," ریال",null," ریال"]
[null,null,"پیش پرداخت های خارجی:"]
[null,null,"سفارشات مواد اولیه",null,null,null,null,null,null,0,null,0]
[null,null,"سفارشات قطعات و لوازم یدکی",null,null,null,null,null,null,0,null,0]
[]
[null,null,null,null,null,null,null,null,null,{"$f":"IFERROR(IF(SUM(J18:J19)=0,\"..........\",SUM(J18:J19)),\"..........\")","v":".........."},null,{"$f":"IFERROR(IF(SUM(L18:L19)=0,\"..........\",SUM(L18:L19)),\"..........\")","v":".........."}]
[null,null,"پیش پرداخت های داخلی:"]
[null,null,"سفارشات مواد اولیه",null,null,null,null,null,null,0,null,0]
[null,null,"بیمه دارایی ها",null,null,null,null,null,null,0,null,0]
[null,null,"سایر",null,null,null,null,null,null,0,null,0]
[null,null,null,null,null,null,null,null,null,{"$f":"IFERROR(IF(SUM(J23:J25)=0,\"..........\",SUM(J23:J25)),\"..........\")","v":".........."},null,{"$f":"IFERROR(IF(SUM(L23:L25)=0,\"..........\",SUM(L23:L25)),\"..........\")","v":".........."}]
[null,null,null,null,null,null,null,null,null,null,null,0]
[null,null,null,null,null,null,null,null,null,{"$f":"IFERROR(J21+J26,\"..........\")","v":".........."},null,{"$f":"IFERROR(L21+L26+L27,\"..........\")","v":".........."}]
[null,null,"1-22- پیش‌پرداخت‌ها به ترتیب شامل ........ و ........ میلیون ریال به اشخاص وابسته طبق یادداشت 2-45 می‌باشد."]
[]
[null,null,"2-22- شرکت با هدف تامین مواد اولیه ..... به میزان ..... [تن]، تعداد ..... اوراق سلف موازی استاندارد (بدون اختیار) به قیمت هر ورق ..... ریال را با ارزش اسمی ..... ریال و با سررسید ..... و در تاریخ ..... خریداری کرده است که در سرفصل پیش‌پرداخت‌ها منعکس شده است."]
[]
[]
[]
[]
[]
[]
[]
[null,"وجوه بانکی مسدود شده ، وجوهی است که انتظار نمی رود ظرف یکسال از تاریخ صورت وضعیت مالی قابل دسترس باشد ."]

{"sheet":"42","index":44,"n_rows":29,"n_cols":10,"rows_kept":29,"cut":false,"hidden":false,"merged":[[0,1,0,9],[1,1,1,9],[28,1,28,9],[4,1,4,3],[2,1,2,9],[18,1,18,9],[19,1,19,9],[5,3,5,7],[27,1,27,9],[23,4,23,5],[20,4,20,5]]}
[null,{"$f":"عنوان!A13","v":0}]
[null,"یادداشت های توضیحی صورت های مالی"]
[null,{"$f":"عنوان!A15","v":0}]
[]
["8-50","23- موجودی مواد و کالا"]
["8-51",null,null,{"$f":"IFERROR('10'!I15,\"..........\")","v":"13x4"},null,null,null,null,null,{"$f":"IFERROR('10'!K15,\"..........\")","v":"13x3"}]
[null,null,null,"بهای تمام شده",null,"ذخیره کاهش ارزش",null,"خالص",null,"خالص"]
[null,null,null," ریال",null," ریال",null," ریال",null," ریال"]
[]
["ج51-8","کالای ساخته شده",null,0,null,0,null,{"$f":"IFERROR(F10+D10,\"..........\")","v":0},null,0]
["ب51-8","کالای در جریان ساخت",null,0,null,0,null,{"$f":"IFERROR(F11+D11,\"..........\")","v":0},null,0]
["الف51-8","مواد اولیه و بسته بندی",null,0,null,0,null,{"$f":"IFERROR(F12+D12,\"..........\")","v":0},null,0]
["ﻫ 51-8","قطعات و لوازم یدکی",null,0,null,0,null,{"$f":"IFERROR(F13+D13,\"..........\")","v":0},null,0]
[null,"سایر موجودی ها",null,0,null,0,null,{"$f":"IFERROR(F14+D14,\"..........\")","v":0},null,0]
[null,null,null,{"$f":"IFERROR(IF(SUM(D10:D14)=0,\"..........\",SUM(D10:D14)),\"..........\")","v":".........."},null,{"$f":"IFERROR(IF(SUM(F10:F14)=0,\"..........\",SUM(F10:F14)),\"..........\")","v":".........."},null,{"$f":"IFERROR(IF(SUM(H10:H14)=0,\"..........\",SUM(H10:H14)),\"..........\")","v":".........."},null,{"$f":"IFERROR(IF(SUM(J10:J14)=0,\"..........\",SUM(J10:J14)),\"..........\")","v":".........."}]
["د 51-8","کالای در راه",null,0,null,0,null,0,null,0]
["(پ)21ب-43","دارایی حق برگشت",null,0,null,0,null,0,null,0]
[null,null,null,{"$f":"IFERROR(IF(SUM(D15:D16)=0,\"..........\",SUM(D15:D16)),\"..........\")","v":".........."},null,{"$f":"IFERROR(IF(SUM(F15:F16)=0,\"..........\",SUM(F15:F16)),\"..........\")","v":".........."},null,{"$f":"IFERROR(IF(SUM(H15:H16)=0,\"..........\",SUM(H15:H16)),\"..........\")","v":".........."},null,{"$f":"IFERROR(IF(SUM(J15:J16)=0,\"..........\",SUM(J15:J16)),\"..........\")","v":".........."}]
[null,"1-23- موجودى مواد اوليه و بسته‏بندى، كالاى ساخته شده، قطعات و لوازم يدكى شركت تا مبلغ ..... ميليون ريال در مقابل خطرات ناشى از ..... بيمه شده است."]
[null,"2-23- بخشی از موجودی‌ها به شرح زیر نزد دیگران نگهداری می‌شود:"]
[null,"نوع موجودی",null,"محل نگهداری","علت",null,null,"4x14",null,"3x14"]
[null,"مواد اولیه",null,"قطعه‌سازان",null,"ساخت قطعه",null,".....",null,"....."]
[null,"کالای ساخته شده",null,"انبارهای عمومی",null,"نگهداری",null,".....",null,"....."]
[null,"..........",null,"..........","..........",null,null,".....",null,"....."]
[null,null,null,null,null,null,null,".....",null,"....."]
[]
[]
["ج52-8","6-3- موجودی مواد اولیه، کالای ساخته شده و .......... به بهاي تمام شده ‏....‏‏....‏‏... میلیون‌ ریال در وثیقه بانکها می‌باشد."]
["(پ)21ب-43","4-23- دارایی حق برگشت نشان‌دهنده برآورد شرکت بابت دریافت مجدد محصولات از مشتریانی است که از حق بازگشت کالای خود طبق رویه شرکت مبنی بر برگشت کالا طی ... روز، استفاده می‌کند. شرکت از تجربه گذشته خود برای برآورد تعداد بازگشت‌ها در مجموع با استفاده از روش ارزش مورد انتظار استفاده می‌کند."]

{"sheet":"43","index":45,"n_rows":55,"n_cols":20,"rows_kept":55,"cut":false,"hidden":false,"merged":[[22,1,22,9],[18,9,18,13],[5,3,5,7],[5,9,5,13],[5,15,5,19],[0,1,0,13],[4,1,4,2],[13,1,13,19],[2,1,2,13],[19,9,19,13],[15,15,15,19],[3,1,3,9],[1,1,1,13],[15,1,15,9],[3,15,3,19],[54,1,54,17],[23,13,23,17],[32,5,32,11],[31,5,31,11],[25,5,25,11],[30,5,30,11],[26,5,26,11],[28,5,28,11]]}
[null,{"$f":"عنوان!A13","v":0}]
[null,"یادداشت های توضیحی صورت های مالی"]
[null,{"$f":"عنوان!A15","v":0}]
["(الف)116-43","24- دارایی‌های حاصل از قرارداد",null,null,null,null,null,null,null,null,null,null,null,null,null,"  (مبالغ به میلیون ریال)"]
[]
[null,null,null,"14*4/12/29",null,null,null,null,null,"14*3/12/30",null,null,null,null,null,"14*3/01/01"]
[null,null,null,"دارایی",null,"بدهی ",null,"خالص دارایی",null,"دارایی",null,"بدهی ",null,"خالص دارایی",null,"دارایی",null,"بدهی ",null,"خالص دارایی"]
[null,"قراردادهای فروش کالا",null,"........",null,"(........)",null,"........",null,"-",null,"-",null,"-",null,"-",null,"-",null,"-"]
[null,"قراردادهای ارائه خدمات",null,"........",null,"(........)",null,"........",null,"-",null,"-",null,"-",null,"-",null,"-",null,"-"]
[]
[null,null,null,"........",null,"(........)",null,"........",null,"-",null,"-",null,"-",null,"-",null,"-",null,"-"]
[]
[]
[null,"1-24- مانده‌ دارایی‌های حاصل از هر قرارداد و بدهی‌های ناشی از هر قرارداد به شرح یادداشت توضیحی 3-3 در این جدول منظور شده است.\n2-24- با توجه به یادداشت 1-1-2 به دلیل استفاده از \"رویکرد تسری به گذشته تعدیل شده\" اثر بکارگیری استاندارد حسابداری43 \"درآمد عملیاتی حاصل از قرارداد با مشتریان\" در مورد اقلام مقایسه‌ای برای سال‌های قبل تجدید ارائه نشده است."]
[]
[null,"3-24- دارایی‌های حاصل از قرارداد به تفکیک اشخاص",null,null,null,null,null,null,null,null,null,null,null,null,null,"  (مبالغ به میلیون ریال)"]
[null,null,null,null,null,null,null,null,null,null,null,null,null,null,null,"4x14/12/29",null,"14x3/12/30",null,"14x3/01/01"]
[null,null,null,null,null,null,null,null,null,null,null,null,null,null,null,"خالص دارایی",null,"خالص دارایی",null,"خالص دارایی"]
[null,null,null,null,null,null,null,null,null,"اشخاص وابسته ",null,null,null,null,null,"........",null,"........",null,"........"]
[null,null,null,null,null,null,null,null,null,"سایر اشخاص ",null,null,null,null,null,"........",null,"........",null,"........"]
[null,null,null,null,null,null,null,null,null,null,null,null,null,null,null,"........",null,"........",null,"........"]
[]
["1-55\n1-79\n15-58","25 - سرمايه‌گذاري‌هاى كوتاه‌مدت"]
[null,null,null,null,null,null,null,null,null,null,null,null,null,"14x4",null,null,null,null,null,"14x3"]
[null,null,null,null,null,null,null,null,null,null,null,null,null,"بهای تمام شده ",null,"کاهش ارزش ",null,"خالص ",null,"خالص "]
[null,null,null,null,null,"سرمایه گذاری های سریع المعامله در بازار ",null,null,null,null,null,null,null,null,null,null,null,"........",null,"........"]
[null,null,null,null,null,"سهام شرکت های پدیرفته شده در بورس / فرابورس ",null,null,null,null,null,null,null,"1-",null,"1-",null,"........",null,"........"]
[]
[null,null,null,null,null,"سایر اوراق بهادار ",null,null,null,null,null,null,null,"1-",null,"1-",null,"........",null,"........"]
[null,null,null,null,null,null,null,null,null,null,null,null,null,"-",null,"-",null,"........",null,"........"]
[null,null,null,null,null,"سرمایه گذاری در سهام سایر شرکت ها ",null,null,null,null,null,null,null,"........",null,"(..........)",null,"........",null,"........"]
[null,null,null,null,null,"سرمایه گذاری در اورااق بهادار ",null,null,null,null,null,null,null,"........",null,"(..........)",null,"........",null,"........"]
[null,null,null,null,null,"سپرده های سرمایه گذاری کوتاه مدت بانکی ",null,null,null,null,null,null,null,"........",null,"-",null,"........",null,"........"]
[null,null,null,null,null,null,null,null,null,null,null,null,null,"........",null,"(..........)",null,"........",null,"........"]
[]
[]
[]
[]
[]
[]
[]
[]
[]
[]
[]
[]
[]
[]
[]
[]
[]
[]
[]
[]
[null,"لیکن چنانچه از روش اقل بهای تمام شده و خالص ارزش افزوده اسفاده شود مبالغ مربوط باید درج گردد .  . از آنجا که سرمایه‌گذاری‌های سریع‌المعامله در بازار به ارزش بازار انعکاس می‌یابد لذا درج بهای تمام‌شده و کاهش ارزش، موضوعیت نداشته است. ",null,null,null,null,null,null,null,null,null,null,null,null,null,null,null,null,null,{"$f":"IFERROR(IF(SUM(T29:T34)=0,\"..........\",SUM(T29:T34)),\"..........\")","v":".........."}]

{"sheet":"44","index":46,"n_rows":36,"n_cols":8,"rows_kept":36,"cut":false,"hidden":false,"merged":[[35,1,35,7],[17,1,17,4],[12,1,12,7],[18,1,18,2],[11,1,11,7],[14,1,14,7],[19,1,19,4],[2,5,2,7],[21,1,21,7]]}
[]
[]
[null,null,null,null,null,"(مبالغ به میلیون ریال)"]
["1-55","26- موجودى نقد                                ",null,null,null,"14*4",null,"14x3"]
[null,"موجودى نزد بانك‌ها - ریالی",null,null,null,"........",null,"........"]
[null,"موجودى نزد بانك‌ها – ارزی2",null,null,null,"........",null,"........"]
[null,"موجودى صندوق و تنخواه‌گردان‌ها - ریالی",null,null,null,"........",null,"........"]
[null,"موجودى صندوق و تنخواه‌گردان‌ها - ارزی",null,null,null,"........",null,"........"]
[null,"وجوه نقد در راه",null,null,null,"........",null,"........"]
[null,null,null,null,null,{"$f":"IFERROR(IF(COUNT(F5:F9)=0,\"..........\",SUM(F5:F9)),\"..........\")","v":".........."},null,{"$f":"IFERROR(IF(COUNT(H5:H9)=0,\"..........\",SUM(H5:H9)),\"..........\")","v":".........."}]
[]
["2-52","1-26- مبلغ ..... میلیون ریال از موجودی نزد بانک‌های شرکت به دلیل ..... توسط .....، مسدود شده است که انتظار می‌رود ظرف حداکثر 3 ماه آینده حل و فصل شود."]
[null,"2-26- وجوه نقد در راه، مربوط به چک‌های منتهی به تاریخ 29/12/4x14 می‌باشد که برای وصول به بانک ارائه شده است."]
[]
["31-32","27- دارایی‌های غیرجاری نگهداری‌شده برای فروش و بدهی‌های مرتبط با دارایی‌های غیرجاری نگهداری‌شده برای فروش"]
[]
[null,"زمین و ساختمان انبار ",null,null,null,"........",null,"-"]
[null,"دارایی‌های مرتبط با کارخانه تولید محصولات غذایی .....",null,null,null,"........",null,"-"]
[null,"دارایی‌های غیرجاری نگهداری‌شده برای فروش",null,null,null,{"$f":"IFERROR(IF(COUNT(F17:F18)=0,\"..........\",SUM(F17:F18)),\"..........\")","v":".........."},null,{"$f":"IFERROR(IF(COUNT(H17:H18)=0,\"..........\",SUM(H17:H18)),\"..........\")","v":".........."}]
[null,"بدهی‌های مرتبط با دارایی‌های غیرجاری\n نگهداری‌شده برای فروش",null,null,null,"........",null,"-"]
[]
[null,"27-1- شرکت در سال مالی 4x14 تصمیم گرفته است یک باب انبار واقع در ..... را واگذار نماید. برای فروش انبار به قیمت منطقی، بازاریابی موثری انجام شده است."]
[]
[]
[]
[]
[]
[]
[]
[]
[]
[]
[]
[]
[]
[null," . موجودى نزد بانک‌ها شامل سپرده سرمايه‌گذاري كوتاه‏مدت بدون سررسيد (ديدارى) در بانك است."]

{"sheet":"45","index":47,"n_rows":33,"n_cols":9,"rows_kept":33,"cut":false,"hidden":false,"merged":[[22,8,22,10],[24,2,24,6],[19,8,19,10],[21,8,21,10],[30,2,30,4],[20,8,20,10],[27,8,27,11],[32,2,32,4],[32,8,32,11],[0,1,0,7],[1,1,1,7],[2,1,2,7],[3,2,3,7],[15,2,15,7],[16,2,16,7],[17,6,17,7],[25,2,25,7],[26,8,26,11],[31,2,31,4],[18,8,18,10],[17,2,17,4],[29,2,29,4]]}
[null,{"$f":"عنوان!A13","v":0}]
[null,"یادداشت های توضیحی صورت های مالی"]
[null,{"$f":"عنوان!A15","v":0}]
[null,null,"2-27- شرکت مصمم است کارخانه تولید محصولات غذایی ..... را به منظور ..... واگذار نماید و پیش‌بینی می‌گردد که فرآیند واگذاری تا تاریخ ...../...../5x14 تکمیل شود. به همین منظور، فعالیت این کارخانه از تاریخ ..... متوقف گردیده است (یادداشت 14). سرفصل‌های اصلی دارایی‌ها و بدهی‌های کارخانه قابل‌واگذاری در پایان سال گزارشگری به شرح زیر است:"]
[null,null,null,null,null,null,"(مبالغ به میلیون ریال)"]
[null,null,null,null,null,null,"14x4"]
[null,null,null,null,"دارایی‌های کارخانه",null,".........."]
[null,null,null,null,"دارایی‌های ثابت مشهود",null,".........."]
[null,null,null,null,"دارایی‌های نامشهود",null,".........."]
[null,null,null,null,"موجودی کالا",null,".........."]
[null,null,null,null,"دریافتنی‌های تجاری",null,".........."]
[null,null,null,null,null,null,{"$f":"IFERROR(IF(COUNT(G8:G11)=0,\"..........\",SUM(G8:G11)),\"..........\")","v":".........."}]
[null,null,null,null,"بدهی‌های کارخانه",null,".........."]
[null,null,null,null,"پرداختنی‌های تجاری",null,".........."]
[null,null,null,null,"..........",null,{"$f":"IFERROR(IF(COUNT(G14:G14)=0,\"..........\",SUM(G14:G14)),\"..........\")","v":".........."}]
[null,null,"28- سرمايه"]
[null,null,"سرمايه شركت در تاریخ 29/12/4x14 مبلغ .......... ميليون ريال، شامل .......... سهم .......... ریالی با نام تمام پرداخت شده می‌باشد. ترکیب سهامداران در تاريخ صورت وضعیت مالی به شرح زير است:"]
[]
[null,null,"تعداد سهام ",null,"درصد مالکیت ",null,"تعداد سهام ",null,"درصد مالکیت "]
[null,"..........","..........",null,"..........",null,"..........",null,".........."]
[null,"..........","..........",null,"..........",null,"..........",null,".........."]
[null,"سایرین (کمتر از 5 درصد)","..........",null,"..........",null,"..........",null,".........."]
[null,null,null,null,100,null,null,null,100]
[]
[null,null,"1-28- صورت تطبیق تعداد سهام اول سال و پایان سال"]
[null,null,"طی سال مورد گزارش، سرمایه شرکت از مبلغ ..... میلیون ‌ریال به ..... میلیون ‌ریال (معادل ..... درصد) از محل سود انباشته، افزایش یافته که در تاریخ .../.../4x14 به ثبت رسیده است."]
[null,null,null,null,null,null,"14x4",null,"14x3"]
[null,null,null,null,null,null,"تعداد سهام ",null,"تعداد سهام "]
[null,null,null,"مانده ابتدای سال",null,null,"...........","..........."]
[null,null,"افزایش سرمایه از محل سود انباشته",null,null,null,"...........","..........."]
[null,null,"افزایش سرمایه نقدی",null,null,null,"...........","..........."]
[null,null,".........",null,null,null,"...........","..........."]
[null,null,"مانده پایان سال",null,null,null,{"$f":"IFERROR(IF(COUNT(G29:G32)=0,\"..........\",SUM(G29:G32)),\"..........\")","v":".........."},{"$f":"IFERROR(IF(COUNT(H29:H32)=0,\"..........\",SUM(H29:H32)),\"..........\")","v":".........."}]

{"sheet":"46","index":48,"n_rows":21,"n_cols":15,"rows_kept":21,"cut":false,"hidden":false,"merged":[[12,1,12,2],[15,8,15,10],[0,1,0,14],[7,1,7,14],[3,1,3,14],[6,1,6,2],[1,1,1,14],[9,1,9,14],[10,1,10,14],[2,1,2,14],[4,1,4,14],[15,12,15,14],[13,1,13,14],[15,4,15,6]]}
[null,{"$f":"عنوان!A13","v":0}]
[null,"یادداشت های توضیحی صورت های مالی"]
[null,{"$f":"عنوان!A15","v":0}]
[null,"29- افزایش سرمایه در جریان"]
[null,"طی سال مالی مورد گزارش، سرمایه شرکت به موجب مصوبه مجمع عمومی فوق‌العاده صاحبان سهام مورخ ..... از محل آورده نقدی و مطالبات سهامداران به مبلغ ..... ميليون ريال افزایش یافته و از این بابت مبلغ ..... میلیون ریال در سرفصل افزایش سرمایه در جریان انعکاس یافته است. مراحل ثبت افزایش سرمایه در جریان می‌باشد."]
[]
[null,"30- صرف سهام"]
[null,"طبق مصوبه مجمع عمومی فوق‌العاده در سال3x14 افزایش سرمایه شرکت با سلب حق تقدم از صاحبان سهام به میزان ... درصد از محل فروش سهام تصویب و مقرر گردید هر سهم به قیمت ..... ریال به فروش برسد و تفاوت مبلغ فروش و مبلغ اسمی سهام جمعا به مبلغ ..... میلیون ریال به حساب صرف سهام منظور گردد."]
[]
[null,"31- اندوخته قانونى"]
[null,"در اجراى مفاد مواد 140 و 238 اصلاحيه قانون تجارت مصوب سال 1347 و ماده ..... اساسنامه، مبلغ ..... ميليون ريال از محل سود قابل تخصيص، به اندوخته قانونى منتقل شده است. به موجب مفاد مواد ياد شده تا رسيدن مانده اندوخته قانونى به 10 درصد سرمايه شركت، انتقال يك بيستم از سود خالص هر سال به اندوخته فوق‏الذكر الزامى است. اندوخته قانونى قابل انتقال به سرمايه نمی‌باشد و جز در هنگام انحلال شركت، قابل تقسيم بين سهامداران نیست."]
[]
[null,"32- سایر اندوخته‌ها"]
[null,"ساير اندوخته‏ها متشكل از اندوخته عمومى و اندوخته طرح توسعه است. مجمع عمومى شركت به منظور تقويت بنيه مالى شركت به موجب ماده ..... اساسنامه هر سال معادل ..... درصد از سود خالص را به اندوخته عمومى تخصيص مى‏دهد. علاوه بر اين، به منظور اجراى طرح توسعه .....، طبق مصوبه مجمع عمومى مورخ ../ ../ 4x14، اندوخته طرح توسعه در حساب‌ها اختصاص يافته است. گردش حساب اندوخته‏هاى ياد شده طى سال مالى به شرح زير است:"]
[]
[null,null,null,null,"اندوخته عمومی ",null,null,null,"اندوخته طرح و نوسعه ",null,null,null,"جمع "]
[null,null,null,null,"14x4",null,"14x3",null,"14x4",null,"14x3",null,"14x4",null,"14x3"]
[null,null,"مانده در ابتدای سال ",null,"..........",null,"..........",null,"..........",null,"..........",null,"..........",null,".........."]
[null,null,"کاهش ",null,"-",null,"-",null,"-",null,"-",null,"-",null,"-"]
[null,null,"افزایش ",null,"..........",null,"..........",null,"..........",null,"..........",null,"..........",null,".........."]
[null,null,"مانده در پایان سال ",null,{"$f":"IFERROR(IF(COUNT(E18:E20)=0,\"..........\",SUM(E18:E20)),\"..........\")","v":".........."},null,{"$f":"IFERROR(IF(COUNT(G18:G20)=0,\"..........\",SUM(G18:G20)),\"..........\")","v":".........."},null,{"$f":"IFERROR(IF(COUNT(I18:I20)=0,\"..........\",SUM(I18:I20)),\"..........\")","v":".........."},null,{"$f":"IFERROR(IF(COUNT(K18:K20)=0,\"..........\",SUM(K18:K20)),\"..........\")","v":".........."},null,{"$f":"IFERROR(IF(COUNT(M18:M20)=0,\"..........\",SUM(M18:M20)),\"..........\")","v":".........."},null,{"$f":"IFERROR(IF(COUNT(O18:O20)=0,\"..........\",SUM(O18:O20)),\"..........\")","v":".........."}]

{"sheet":"47","index":49,"n_rows":22,"n_cols":12,"rows_kept":22,"cut":false,"hidden":false,"merged":[[14,2,14,11],[21,2,21,11],[6,9,6,11],[6,5,6,7],[5,1,5,3],[0,1,0,11],[1,1,1,11],[2,1,2,11]]}
[null,{"$f":"عنوان!A13","v":0}]
[null,"یادداشت های توضیحی صورت های مالی"]
[null,{"$f":"عنوان!A15","v":0}]
[]
[]
["36-35","33- سهام خزانه"]
[null,null,null,null,null,{"$f":"IFERROR('10'!I15,\"..........\")","v":"13x4"},null,null,null,{"$f":"IFERROR('10'!K15,\"..........\")","v":"13x3"}]
[null,null,null,null,null,"تعداد سهم",null,"مبلغ سهم",null,"تعداد سهم",null,"مبلغ سهم "]
[null,null,"مانده ابتدای دوره",null,null,"..........",null,"..........",null,"..........",null,".........."]
[null,null,"خرید طی دوره",null,null,"..........",null,"..........",null,"..........",null,".........."]
[null,null,"فروش طی دوره",null,null,"(........)",null,"(........)",null,"(........)",null,"(........)"]
[null,null,"مانده پایان دوره",null,null,{"$f":"IFERROR(IF(COUNT(F9:F11)=0,\"..........\",SUM(F9:F11)),\"..........\")","v":".........."},null,{"$f":"IFERROR(IF(COUNT(H9:H11)=0,\"..........\",SUM(H9:H11)),\"..........\")","v":".........."},null,{"$f":"IFERROR(IF(COUNT(J9:J11)=0,\"..........\",SUM(J9:J11)),\"..........\")","v":".........."},null,{"$f":"IFERROR(IF(COUNT(L9:L11)=0,\"..........\",SUM(L9:L11)),\"..........\")","v":".........."}]
[]
[]
[null,null,"طبق ماده 28 قانون رفع موانع تولید رقابت‌پذیر و ارتقای نظام مالی کشور، شرکت‌ می‌تواند براساس میزان سهام شناور، تا سقف ده درصد (10%) از سهام خود را خریداری و تحت عنوان سهام خزانه در شرکت نگهداری کنند. خرید و فروش سهام خزانه طبق آیین‌نامه و دستورالعمل اجرایی خرید، نگهداری و عرضه سهام خزانه صورت می‌گیرد. شرکت نسبت به سهام خزانه، فاقد حق رای در مجامع بوده و حق‌تقدم در خرید سهام جدید را ندارد و در زمان انحلال حق دریافت هیچ گونه دارایی ندارد. به سهام خزانه در موقع تقسیم سود، سودی تعلق نمی‌گیرد."]
[]
[]
[]
[]
[]
[]
[null,null,"29-1- صورت تطبیق برنامه خرید و فروش سهام خزانه با عملکرد واقعی:"]

{"sheet":"48","index":50,"n_rows":32,"n_cols":14,"rows_kept":32,"cut":false,"hidden":false,"merged":[[6,7,6,11],[4,11,4,13],[4,3,4,7],[3,3,3,7],[0,1,0,13],[1,1,1,13],[2,1,2,13]]}
[null,{"$f":"عنوان!A13","v":0}]
[null,"یادداشت های توضیحی صورت های مالی "]
[null,{"$f":"عنوان!A15","v":0}]
[null,null,null,"34- پرداختنی‌های تجاری و سایر پرداختنی‌ها"]
[null,null,null,"1-34- پرداختنی‌های کوتاه‌مدت ",null,null,null,null,null,null,null,"(مبالغ به میلیون ریال)"]
[]
[null,null,null,null,null,null,null,{"$f":"IFERROR('10'!I15,\"..........\")","v":"13x4"},null,null,null,null,null,{"$f":"IFERROR('10'!K15,\"..........\")","v":"13x3"}]
[null,null,null,null,null,null,null,"ریالی",null,"ارزی",null,"جمع",null,"جمع"]
[null,null,null,null,null,null,null," ریال",null," ریال",null," ریال",null," ریال"]
[null,null,null,"تجاری:"]
[null,null,null,"اسناد پرداختنی:"]
[null,null,null,"اشخاص وابسته",null,null,null,0,null,0,null,0,null,0]
[null,null,null,"سایر تامین کنندگان کالا و خدمات ",null,null,null,0,null,0,null,0,null,0]
[null,null,null,null,null,null,null,{"$f":"IFERROR(IF(SUM(H12:H13)=0,\"..........\",SUM(H12:H13)),\"..........\")","v":".........."},null,{"$f":"IFERROR(IF(SUM(J12:J13)=0,\"..........\",SUM(J12:J13)),\"..........\")","v":".........."},null,{"$f":"IFERROR(IF(SUM(L12:L13)=0,\"..........\",SUM(L12:L13)),\"..........\")","v":".........."},null,{"$f":"IFERROR(IF(SUM(N12:N13)=0,\"..........\",SUM(N12:N13)),\"..........\")","v":".........."}]
[null,null,null,"حسابهای پرداختنی:"]
[null,null,null,"اشخاص وابسته",null,null,null,0,null,0,null,0,null,0]
[null,null,null,"سایر تامین کنندگان کالا و خدمات ",null,null,null,0,null,0,null,0,null,0]
[null,null,null,"یدهی استرداد"]
[null,null,null,{"$f":"IFERROR(IF(SUM(D16:D17)=0,\"..........\",SUM(D16:D17)),\"..........\")","v":".........."},null,null,null,{"$f":"IFERROR(IF(SUM(H16:H17)=0,\"..........\",SUM(H16:H17)),\"..........\")","v":".........."},null,{"$f":"IFERROR(IF(SUM(J16:J17)=0,\"..........\",SUM(J16:J17)),\"..........\")","v":".........."},null,{"$f":"IFERROR(IF(SUM(L16:L17)=0,\"..........\",SUM(L16:L17)),\"..........\")","v":".........."},null,{"$f":"IFERROR(IF(SUM(N16:N17)=0,\"..........\",SUM(N16:N17)),\"..........\")","v":".........."}]
[null,null,null,null,null,null,null,{"$f":"IFERROR(H19+H14,\"..........\")","v":".........."},null,{"$f":"IFERROR(J19+J14,\"..........\")","v":".........."},null,{"$f":"IFERROR(L19+L14,\"..........\")","v":".........."},null,{"$f":"IFERROR(N19+N14,\"..........\")","v":".........."}]
[null,null,null,"سایر پرداختنی ها "]
[null,null,null,"اسناد پرداختنی",null,null,null,0,null,0,null,0,null,0]
[null,null,null,"اشخاص وابسته",null,null,null,0,null,0,null,0,null,0]
[null,null,null,"سایر اشخاص ",null,null,null,0,null,0,null,0,null,0]
[]
[null,null,null,"حساب‌هاى پرداختنى"]
[null,null,null,"اشخاص وابسته"]
[null,null,null,"ماليات‌هاى تكليفى"]
[null,null,null,"حق بيمه‏هاى پرداختنى"]
[null,null,null,"سپرده حسن انجام كار"]
[null,null,null,"هزینه‌های پرداختنی"]
[null,null,null,"ساير"]

{"sheet":"49","index":51,"n_rows":29,"n_cols":14,"rows_kept":29,"cut":false,"hidden":false,"merged":[[5,7,5,11],[3,3,3,7],[0,1,0,13],[1,1,1,13],[2,1,2,13]]}
[null,{"$f":"عنوان!A13","v":0}]
[null,"یادداشت های توضیحی صورت های مالی "]
[null,{"$f":"عنوان!A15","v":0}]
[null,"55ـ1\n(ت)126-43",null,"34-2- پرداختنی‌های بلند مدت "]
[]
[null,null,null,null,null,null,null,{"$f":"IFERROR('10'!I15,\"..........\")","v":"13x4"},null,null,null,null,null,{"$f":"IFERROR('10'!K15,\"..........\")","v":"13x3"}]
[null,null,null,null,null,null,null,"ریالی",null,"ارزی",null,"جمع",null,"جمع"]
[null,null,null,null,null,null,null," ریال",null," ریال",null," ریال",null," ریال"]
[null,null,null,"تجاری:"]
[null,null,null,"اسناد پرداختنی:"]
[null,null,null,"اشخاص وابسته",null,null,null,0,null,0,null,0,null,0]
[null,null,null,"سایر تامین کنندگان کالا و خدمات ",null,null,null,0,null,0,null,0,null,0]
[null,null,null,null,null,null,null,{"$f":"IFERROR(IF(SUM(H11:H12)=0,\"..........\",SUM(H11:H12)),\"..........\")","v":".........."},null,{"$f":"IFERROR(IF(SUM(J11:J12)=0,\"..........\",SUM(J11:J12)),\"..........\")","v":".........."},null,{"$f":"IFERROR(IF(SUM(L11:L12)=0,\"..........\",SUM(L11:L12)),\"..........\")","v":".........."},null,{"$f":"IFERROR(IF(SUM(N11:N12)=0,\"..........\",SUM(N11:N12)),\"..........\")","v":".........."}]
[null,null,null,"حسابهای پرداختنی:"]
[null,null,null,"اشخاص وابسته",null,null,null,0,null,0,null,0,null,0]
[null,null,null,"سایر تامین کنندگان کالا و خدمات ",null,null,null,0,null,0,null,0,null,0]
[null,null,null,".........."]
[null,null,null,null,null,null,null,{"$f":"IFERROR(IF(SUM(H15:H16)=0,\"..........\",SUM(H15:H16)),\"..........\")","v":".........."},null,{"$f":"IFERROR(IF(SUM(J15:J16)=0,\"..........\",SUM(J15:J16)),\"..........\")","v":".........."},null,{"$f":"IFERROR(IF(SUM(L15:L16)=0,\"..........\",SUM(L15:L16)),\"..........\")","v":".........."},null,{"$f":"IFERROR(IF(SUM(N15:N16)=0,\"..........\",SUM(N15:N16)),\"..........\")","v":".........."}]
[null,null,null,null,null,null,null,{"$f":"IFERROR(H18+H13,\"..........\")","v":".........."},null,{"$f":"IFERROR(J18+J13,\"..........\")","v":".........."},null,{"$f":"IFERROR(L18+L13,\"..........\")","v":".........."},null,{"$f":"IFERROR(N18+N13,\"..........\")","v":".........."}]
[null,null,null,"سایر پرداختنی ها "]
[null,null,null,"اسناد پرداختنی",null,null,null,0,null,0,null,0,null,0]
[null,null,null,"اشخاص وابسته",null,null,null,0,null,0,null,0,null,0]
[null,null,null,"سایر اشخاص ",null,null,null,0,null,0,null,0,null,0]
[]
[null,null,null,"حساب‌هاى پرداختنى"]
[null,null,null,"اشخاص وابسته"]
[null,null,null,"سایر اشخاص "]
[null,null,null,".........."]
[null,null,null,"سایر "]

{"sheet":"50","index":52,"n_rows":33,"n_cols":14,"rows_kept":33,"cut":false,"hidden":false,"merged":[[3,3,3,13],[13,3,13,13],[30,0,30,1],[25,1,25,5],[0,1,0,13],[1,1,1,13],[2,1,2,13],[21,1,21,13],[22,1,22,13],[23,1,23,13],[29,0,29,1],[25,7,25,11],[14,11,14,13],[28,0,28,1],[24,0,24,7],[20,3,20,13],[4,11,4,13],[27,0,27,1]]}
[null,{"$f":"عنوان!A13","v":0}]
[null,"یادداشت های توضیحی صورت های مالی "]
[null,{"$f":"عنوان!A15","v":0}]
[null,"37-39",null,"3-34- سررسيد اسناد پرداختنى بلندمدت در تاريخ صورت وضعیت مالی به شرح زير است:"]
[null,null,null,null,null,null,null,null,null,null,null,"(مبالغ به میلیون ریال)"]
[null,null,null,null,null,null,null,null,null,null,null,"سال",null,"مبلغ"]
[null,null,null,null,null,null,null,null,null,null,null,"14x6"]
[null,null,null,null,null,null,null,null,null,null,null,"14x7"]
[null,null,null,null,null,null,null,null,null,null,null,"14x8"]
[null,null,null,null,null,null,null,null,null,null,null,"14x9"]
[]
[]
[]
[null,null,null,"4-34- میانگین دوره اعتباری در مورد خرید کالا ... روز است. شرکت رویه‌های مدیریت ریسک را وضع می‌کند تا اطمینان حاصل شود که کلیه پرداختنی‌ها بر اساس شرایط اعتباری توافق شده، پرداخت می‌شود."]
[null,"(ت)126-43",null,"34-5- بدهی استرداد ",null,null,null,null,null,null,null,"(مبالغ به میلیون ریال)"]
[null,null,null,null,null,null,null,null,null,null,null,"14x4/12/29",null,"14x3/12/30"]
[null,null,null,"بدهی استرداد ......"]
[null,null,null,"بدهی استرداد ......",null,null,null,null,null,null,null,0,null,0]
[]
[]
[null,null,null,"بدهی استرداد، مربوط به حق مشتریان برای برگشت محصولات طی ... روز پس از خرید است.  در نقطه فروش، شناسایی بدهی استرداد و تعدیل متناظر درآمد برای محصولاتی که انتظار می‌رود برگشت داده شوند، انجام می‌شود. شرکت از تجربیات قبلی خود برای برآورد مبلغ مورد انتظار برگشت از فروش‌ها استفاده می‌کند."]
[null,{"$f":"عنوان!A34","v":0}]
[null,"یادداشت های توضیحی صورت های مالی "]
[null,{"$f":"عنوان!A36","v":0}]
["35- تسهیلات مالی",null,null,null,null,null,null,null,null,null,null,null,"(مبالغ به میلیون ریال)"]
[null,{"$f":"IFERROR('10'!I12,\"..........\")","v":0},null,null,null,null,null,{"$f":"IFERROR('10'!K12,\"..........\")","v":0}]
[null,null,null,"جاری",null,"بلند مدت",null,"جمع",null,"جاری",null,"بلند مدت",null,"جمع"]
["تسهیلات دریافتی",null,null,0,null,0,null,{"$f":"IFERROR(D28+F28,\"..........\")","v":0},null,0,null,0,null,{"$f":"IFERROR(J28+L28,\"..........\")","v":0}]
["اوراق مشارکت",null,null,0,null,0,null,{"$f":"IFERROR(D29+F29,\"..........\")","v":0},null,0,null,0,null,{"$f":"IFERROR(J29+L29,\"..........\")","v":0}]
["اوراق خرید دین ",null,null,0,null,0,null,{"$f":"IFERROR(D30+F30,\"..........\")","v":0},null,0,null,0,null,{"$f":"IFERROR(J30+L30,\"..........\")","v":0}]
["تعهدات اجاره سرمایه ای",null,null,{"$f":"IFERROR(IF(SUM(D28:D30)=0,\"..........\",SUM(D28:D30)),\"..........\")","v":".........."},null,{"$f":"IFERROR(IF(SUM(F28:F30)=0,\"..........\",SUM(F28:F30)),\"..........\")","v":".........."},null,{"$f":"IFERROR(IF(SUM(H28:H30)=0,\"..........\",SUM(H28:H30)),\"..........\")","v":".........."},null,{"$f":"IFERROR(IF(SUM(J28:J30)=0,\"..........\",SUM(J28:J30)),\"..........\")","v":".........."},null,{"$f":"IFERROR(IF(SUM(L28:L30)=0,\"..........\",SUM(L28:L30)),\"..........\")","v":".........."},null,{"$f":"IFERROR(IF(SUM(N28:N30)=0,\"..........\",SUM(N28:N30)),\"..........\")","v":".........."}]
[null,"........"]
[null,null,null,{"$f":"IFERROR(IF(SUM(D28:D31)=0,\"..........\",SUM(D28:D31)),\"..........\")","v":".........."},null,{"$f":"IFERROR(IF(SUM(F28:F31)=0,\"..........\",SUM(F28:F31)),\"..........\")","v":".........."},null,{"$f":"IFERROR(IF(SUM(H28:H31)=0,\"..........\",SUM(H28:H31)),\"..........\")","v":".........."},null,{"$f":"IFERROR(IF(SUM(J28:J31)=0,\"..........\",SUM(J28:J31)),\"..........\")","v":".........."},null,{"$f":"IFERROR(IF(SUM(L28:L31)=0,\"..........\",SUM(L28:L31)),\"..........\")","v":".........."},null,{"$f":"IFERROR(IF(SUM(N28:N31)=0,\"..........\",SUM(N28:N31)),\"..........\")","v":".........."}]

{"sheet":"51","index":53,"n_rows":29,"n_cols":11,"rows_kept":29,"cut":false,"hidden":false,"merged":[[12,1,12,3],[0,1,0,10],[1,1,1,10],[2,1,2,10],[3,1,3,10],[5,1,5,10],[27,3,27,4],[24,3,24,4],[6,4,6,8],[23,3,23,4],[22,3,22,4],[17,1,17,3],[25,3,25,4],[19,1,19,10],[20,8,20,10],[9,1,9,3],[26,3,26,4],[8,1,8,3],[14,1,14,3],[10,1,10,3],[13,1,13,3],[16,1,16,3]]}
[null,{"$f":"عنوان!A13","v":0}]
[null,"یادداشت های توضیحی صورت های مالی"]
[null,{"$f":"عنوان!A15","v":0}]
[null,"35-1- تسهیلات دریافتی بر حسب مبانی مختلف به شرح زیر است:"]
[]
[null,"17-1-1- به تفکیک تامین کنندگان تسهیلات:"]
[null,null,null,null,{"$f":"IFERROR('10'!I15,\"..........\")","v":"13x4"},null,null,null,null,null,{"$f":"IFERROR('10'!K15,\"..........\")","v":"13x3"}]
[null,null,null,null,"ریالی",null,"ارزی",null,"جمع",null,"جمع"]
[null,"بانک ها",null,null,0,null,0,null,{"$f":"IFERROR(G9+E9,\"..........\")","v":0},null,0]
[null,"اشخاص وابسته",null,null,0,null,0,null,0,null,0]
[null,"ساير اشخاص",null,null,0,null,0,null,0,null,0]
[null,null,null,null,{"$f":"IFERROR(IF(SUM(E9:E11)=0,\"..........\",SUM(E9:E11)),\"..........\")","v":".........."},null,{"$f":"IFERROR(IF(SUM(G9:G11)=0,\"..........\",SUM(G9:G11)),\"..........\")","v":".........."},null,{"$f":"IFERROR(IF(SUM(I9:I11)=0,\"..........\",SUM(I9:I11)),\"..........\")","v":".........."},null,{"$f":"IFERROR(IF(SUM(K9:K11)=0,\"..........\",SUM(K9:K11)),\"..........\")","v":".........."}]
[null,"سودوکارمزد سال های آتی",null,null,0,null,0,null,{"$f":"IFERROR(G13+E13,\"..........\")","v":0},null,0]
[null,"سپرده های سرمایه گذاری ",null,null,{"$f":"IFERROR(IF(SUM(E12:E13)=0,\"..........\",SUM(E12:E13)),\"..........\")","v":".........."},null,{"$f":"IFERROR(IF(SUM(G12:G13)=0,\"..........\",SUM(G12:G13)),\"..........\")","v":".........."},null,{"$f":"IFERROR(IF(SUM(I12:I13)=0,\"..........\",SUM(I12:I13)),\"..........\")","v":".........."},null,{"$f":"IFERROR(IF(SUM(K12:K13)=0,\"..........\",SUM(K12:K13)),\"..........\")","v":".........."}]
[null,"سود،کارمزد و جرائم معوق",null,null,0,null,0,null,0,null,0]
[null,null,null,null,{"$f":"IFERROR(IF(SUM(E14:E15)=0,\"..........\",SUM(E14:E15)),\"..........\")","v":".........."},null,{"$f":"IFERROR(IF(SUM(G14:G15)=0,\"..........\",SUM(G14:G15)),\"..........\")","v":".........."},null,{"$f":"IFERROR(IF(SUM(I14:I15)=0,\"..........\",SUM(I14:I15)),\"..........\")","v":".........."},null,{"$f":"IFERROR(IF(SUM(K14:K15)=0,\"..........\",SUM(K14:K15)),\"..........\")","v":".........."}]
[null,"حصه بلند مدت",null,null,0,null,0,null,0,null,0]
[null,"حصه جاری",null,null,{"$f":"IFERROR(IF(SUM(E16:E17)=0,\"..........\",SUM(E16:E17)),\"..........\")","v":".........."},null,{"$f":"IFERROR(IF(SUM(G16:G17)=0,\"..........\",SUM(G16:G17)),\"..........\")","v":".........."},null,{"$f":"IFERROR(IF(SUM(I16:I17)=0,\"..........\",SUM(I16:I17)),\"..........\")","v":".........."},null,{"$f":"IFERROR(IF(SUM(K16:K17)=0,\"..........\",SUM(K16:K17)),\"..........\")","v":".........."}]
[]
[null,"17-1-2 به تفکیک نرخ سود و کارمزد:"]
[null,null,null,null,null,null,null,null,"مبالغ به میلیون ریال "]
[null,null,null,null,null,null,null,null,"14x4",null,{"$f":"IFERROR('10'!K15,\"..........\")","v":"13x3"}]
[null,null,null,"بیش از 25 درصد",null,null,null,null,".........",null,".........-"]
[null,null,null,"20 تا 25 درصد",null,null,null,null,".........-",null,".........-"]
[null,null,null,"15 تا 20 درصد",null,null,null,null,".........-",null,".........-"]
[null,null,null,"10 تا 15 درصد",null,null,null,null,".........-",null,".........-"]
[null,null,null,"1 تا 10 درصد",null,null,null,null,".........-",null,".........-"]
[null,null,null,"بدون سود و کارمزد",null,null,null,null,".........-",null,".........-"]
[null,null,null,null,null,null,null,null,{"$f":"IFERROR(IF(SUM(I23:I28)=0,\"..........\",SUM(I23:I28)),\"..........\")","v":".........."},null,{"$f":"IFERROR(IF(SUM(K23:K28)=0,\"..........\",SUM(K23:K28)),\"..........\")","v":".........."}]

{"sheet":"52","index":54,"n_rows":30,"n_cols":12,"rows_kept":30,"cut":false,"hidden":false,"merged":[[18,3,18,8],[20,3,20,7],[24,3,24,7],[19,3,19,7],[0,1,0,11],[1,1,1,11],[2,1,2,11],[4,1,4,11],[14,1,14,11],[28,1,28,11],[29,1,29,11],[23,3,23,7],[22,3,22,7],[21,3,21,7],[27,1,27,11]]}
[null,{"$f":"عنوان!A13","v":0}]
[null,"یادداشت های توضیحی صورت های مالی"]
[null,{"$f":"عنوان!A15","v":0}]
[]
[null,"1-1-35- به تفكيك زمان بندی پرداخت:"]
[null,null,null,null,null,null,null,null,null,null,null,"14x4"]
[null,null,null,null,null,null,null,null,null,null,null," ریال"]
[null,null,null,null,null,null,null,"14X5",null,null,null,".........."]
[null,null,null,null,null,null,null,"14X6",null,null,null,".........."]
[null,null,null,null,null,null,null,"14X7",null,null,null,".........."]
[null,null,null,null,null,null,null,"14X8",null,null,null,".........."]
[null,null,null,null,null,null,null,"14X9",null,"و پس از آن",null,".........."]
[null,null,null,null,null,null,null,null,null,null,null,{"$f":"IFERROR(IF(SUM(L12)=0,\"..........\",SUM(L12)),\"..........\")","v":".........."}]
[]
[null,"35-1-3- به تفكيك نوع وثيقه:"]
[]
[null,null,null,null,null,null,null,null,null,null,null,"14x4"]
[null,null,null,null,null,null,null,null,null,null,null," ریال"]
[null,null,null,"زمين، ساختمان و ماشين‌آلات",null,null,null,null,null,null,null,0]
[null,null,null,"چك و سفته",null,null,null,null,null,null,null,0]
[null,null,null,"موجودی مواد وکالا",null,null,null,null,null,null,null,{"$f":"IFERROR(IF(SUM(L19:L20)=0,\"..........\",SUM(L19:L20)),\"..........\")","v":".........."}]
[null,null,null,"سرمایه‌گذاری در املاک",null,null,null,null,null,null,null,0]
[null,null,null,{"$f":"IFERROR(IF(SUM(D21:D22)=0,\"..........\",SUM(D21:D22)),\"..........\")","v":".........."},null,null,null,null,null,null,null,{"$f":"IFERROR(IF(SUM(L21:L22)=0,\"..........\",SUM(L21:L22)),\"..........\")","v":".........."}]
[null,null,null,null,null,null,null,null,null,null,null,".........."]
[null,null,null,"تسهیلات بدون وثیفه",null,null,null,null,null,null,null,".........."]
[null,null,null,null,null,null,null,null,null,null,null,".........."]
[]
["78ـ1","35-2-  تسهیلات مالی جاری شرکت به مبلغ ..... میلیون ریال از بانک .....، در سال 5x14 [پس از پایان سال و قبل از تاریخ تایید صورت‌های مالی]، به صورت بلندمدت مجددا تامین مالی شده است."]
[null,"35-3- تسهیلات دریافتی به مبلغ ..... میلیون ریال از بانک ..... مستلزم ایجاد ..... میلیون ریال سپرده سرمایه‌گذاری با سود ..... درصد بوده که با توجه به اینکه شرکت در استفاده از آن سپرده محدودیت دارد و نرخ سود آن کمتر از نرخ سود متعارف بانکی است، لذا از تسهیلات مالی مذکور کسر و تسهیلات مالی به صورت خالص ارائه شده است. همچنین نرخ موثر (واقعی) تسهیلات مالی مذکور برابر ..... درصد است."]
["15ـ37","35-4- تسهیلات دریافتی به مبلغ ..... میلیون ریال از بانک ..... نکول شده است که شرکت باید اصل، سود و جرایم آن را به مبلغ ..... میلیون ریال پرداخت نماید. تا تاریخ تایید صورت‌های مالی، مبلغ ...... میلیون ریال آن با تسهیلات جدید جایگزین (استمهال) شده و مذاکره برای استمهال مابقی تسهیلات مذکور در جریان می‌باشد."]

{"sheet":"53","index":55,"n_rows":24,"n_cols":12,"rows_kept":24,"cut":false,"hidden":false,"merged":[[23,1,23,13],[10,7,10,9],[19,11,19,13],[21,7,21,9],[8,2,8,4],[7,11,7,13],[14,1,14,13],[18,2,18,5],[21,2,21,5],[13,1,13,13],[9,7,9,9],[2,1,2,13],[15,1,15,13],[20,11,20,13],[11,2,11,3],[10,11,10,13],[19,2,19,5],[7,7,7,9],[5,7,5,13],[3,1,3,13],[18,7,18,9],[21,11,21,13],[7,2,7,4],[8,11,8,13],[0,1,0,13],[16,1,16,13],[18,11,18,13],[20,2,20,5],[8,7,8,9],[11,11,11,13],[20,7,20,9],[9,2,9,4],[1,1,1,13],[6,11,6,13],[19,7,19,9],[11,7,11,9],[6,7,6,9],[4,1,4,13],[10,2,10,4],[9,11,9,13]]}
[null,{"$f":"عنوان!A13","v":0}]
[null,"یادداشت های توضیحی صورت های مالی"]
[null,{"$f":"عنوان!A15","v":0}]
[null,"35-5- تسهیلات دریافتی از بانک ....... به مبلغ ........ با واگذاری یک واحد آپارتمان متعلق به شرکت، تسویه شده است."]
[null,"35-6- به منظور احداث خط تولید .....، بر اساس مجوز شماره ..... مورخ ....... صادره توسط سازمان بورس و اوراق بهادار، شرکت مبلغ ..... میلیون ریال اوراق مشارکت به سررسید سال ..... و نرخ سود علی‌الحساب ..... درصد، در تاریخ ..... صادر نموده که وضعیت آن در تاریخ صورت وضعیت مالی به شرح زیر است:"]
[null,null,null,null,null,null,null,"مبالغ به میلیون ریال "]
[null,null,null,null,null,null,null,"14x4",null,null,null,"14x3"]
[null,null,"ارزش اسمی",null,null,null,null,"..........",null,null,null,".........."]
[null,null,"کسر اوراق",null,null,null,null,"..........",null,null,null,".........."]
[null,null,"ناخالص",null,null,null,null,{"$f":"IFERROR(IF(SUM(H8:H9)=0,\"..........\",SUM(H8:H9)),\"..........\")","v":".........."},null,null,null,{"$f":"IFERROR(IF(SUM(L8:L9)=0,\"..........\",SUM(L8:L9)),\"..........\")","v":".........."}]
[null,null,"استهلاک کسر",null,null,null,null,"..........",null,null,null,".........."]
[null,null,"مبلغ دفتری",null,null,null,null,"..........",null,null,null,".........."]
[]
[null,"35-6-1- سود علی‌الحساب در مقاطع ..... ماهه به دارندگان اوراق پرداخت می‌شود. سود قطعی پروژه در سررسید طبق ضوابط انتشار اوراق مشارکت، محاسبه و در صورت فزونی آن نسبت به سودهای علی‌الحساب پرداختی، تفاوت به دارندگان اوراق پرداخت می‌شود. بر اساس برآورد مدیریت تا تاریخ صورت وضعیت مالی، سود قطعی پروژه کمتر از مبالغ سود علی‌الحساب متعلقه می‌باشد."]
[null,"35-7- تعهدات اجاره سرمایه‌ای مرتبط با تحصیل ساختمان دفتر مرکزی شرکت از طریق اجاره به شرط تملیک می‌باشد. طبق قرارداد اجاره، مدت قرارداد ..... سال، مبلغ اجاره سالانه ..... میلیون ریال می‌باشد و ضمنا اختیار خرید دارایی با پرداخت مبلغ ..... میلیون ریال در پایان قرارداد به شرکت اعطا شده است."]
[null,"35-8- شرکت با هدف تامین مالی، بخشی از مطالبات مدت‌دار خود از مشتریان را به نهاد واسط منتقل و اوراق خرید دین توسط نهاد واسط منتشر و منابع حاصل در اختیار شرکت قرار گرفته است. با توجه به هدف شرکت و تضمین زیان‌های اعتباری توسط شرکت، اساسا تمام ریسک‌ها و مزایای مالکیت مطالبات حفظ شده و مطالبات دریافتنی (دارایی مالی) انتقال یافته به نهاد واسط، از دفاتر شرکت حذف نشده و بابت وجوه دریافتی در نتیجه انتشار اوراق خرید دین، بدهی مالی در سرفصل تسهیلات مالی شناسایی شده است."]
[null,"مبلغ دفتری، مبلغ جریان‌های نقدی و مدت زمان باقیمانده تا سررسید مطالبات موضوع انتشار اوراق به شرح زیر است:"]
[]
[null,null,"مبلغ دفتری مطالبات",null,null,null,null,"مبلغ جریان‌های نقدی مطالبات",null,null,null,"سررسید مطالبات"]
[null,null,"میلیون ریال",null,null,null,null,"میلیون ریال",null,null,null,"تاریخ"]
[null,null,".....",null,null,null,null,".....",null,null,null,"....."]
[null,null,".....",null,null,null,null,".....",null,null,null,"....."]
[]
[null,"اوراق خرید دین ..... ساله/ماهه با نرخ ..... درصد، به مبلغ ..... میلیون ریال و با مبلغ اسمی هر ورقه ..... ریال در تاریخ ..... منتشر شده است. مبالغ پرداختی مقرر تا پایان مدت اوراق به دارندگان اوراق برابر ..... میلیون ریال و مقاطع پرداخت‌های مرتبط با اوراق، هر ..... ماه یک بار از تاریخ انتشار اوراق است. طی سال بابت اوراق مذکور مبلغ ..... میلیون ریال به حساب نهاد واسط واریز شده است."]

{"sheet":"54","index":56,"n_rows":21,"n_cols":12,"rows_kept":21,"cut":false,"hidden":false,"merged":[[3,2,3,11],[0,1,0,11],[1,1,1,11],[2,1,2,11]]}
[null,{"$f":"عنوان!A13","v":0}]
[null,"یادداشت های توضیحی صورت های مالی"]
[null,{"$f":"عنوان!A15","v":0}]
[null,null,"35-9- تغییرات حاصل از جریان‌های نقدی و تغییرات غیرنقدی در بدهی‌های حاصل از فعالیت‌های تامین مالی به شرح زیر است:"]
[]
[null,null,null,"تسهیلات مالی",null,"اوراق مشارکت",null,"اوراق خرید دین",null,"تعهدات اجاره سرمایه‌ای",null,"جمع"]
[null,null,"مانده در 14x3/01/01","..........",null,"..........",null,"..........",null,"-",null,".........."]
[null,null,"دریافت‌های نقدی","..........",null,"..........",null,"..........",null,"-",null,".........."]
[null,null,"سود و کارمزد و جرائم ","..........",null,"..........",null,"..........",null,"-",null,".........."]
[null,null,"پرداخت‌های نقدی بابت اصل","(..........)",null,"(..........)",null,"(..........)",null,"-",null,"(..........)"]
[null,null,"پرداخت‌های نقدی بابت سود","(..........)",null,"(..........)",null,"(..........)",null,"-",null,"(..........)"]
[null,null,"تاثیر تغییرات نرخ ارز","..........",null,"-",null,"-",null,"-",null,"-"]
[null,null,"سایر تغییرات غیرنقدی (مشخص شود)","-",null,"(..........)",null,"-",null,"-",null,"(..........)"]
[null,null,"مانده در 14x3/12/30",{"$f":"IFERROR(IF(COUNT(D7:D13)=0,\"..........\",SUM(D7:D13)),\"..........\")","v":".........."},null,{"$f":"IFERROR(IF(COUNT(F7:F13)=0,\"..........\",SUM(F7:F13)),\"..........\")","v":".........."},null,{"$f":"IFERROR(IF(COUNT(H7:H13)=0,\"..........\",SUM(H7:H13)),\"..........\")","v":".........."},null,{"$f":"IFERROR(IF(COUNT(J7:J13)=0,\"..........\",SUM(J7:J13)),\"..........\")","v":".........."},null,{"$f":"IFERROR(IF(COUNT(L7:L13)=0,\"..........\",SUM(L7:L13)),\"..........\")","v":".........."}]
[null,null,"دریافت‌های نقدی","..........",null,"..........",null,"..........",null,"-",null,".........."]
[null,null,"سود و کارمزد و جرائم ","..........",null,"..........",null,"..........",null,"..........",null,".........."]
[null,null,"پرداخت‌های نقدی بابت اصل","(..........)",null,"(..........)",null,"(..........)",null,"(..........)",null,"(..........)"]
[null,null,"پرداخت‌های نقدی بابت سود","(..........)",null,"(..........)",null,"(..........)",null,"(..........)",null,"(..........)"]
[null,null,"تاثیر تغییرات نرخ ارز","..........",null,"-",null,"-",null,"-",null,"-"]
[null,null,"سایر تغییرات غیرنقدی (مشخص شود)","-",null,"(..........)",null,"-",null,"-",null,"(..........)"]
[null,null,"مانده در 14x4/12/29",{"$f":"IFERROR(IF(COUNT(D14:D20)=0,\"..........\",SUM(D14:D20)),\"..........\")","v":".........."},null,{"$f":"IFERROR(IF(COUNT(F14:F20)=0,\"..........\",SUM(F14:F20)),\"..........\")","v":".........."},null,{"$f":"IFERROR(IF(COUNT(H14:H20)=0,\"..........\",SUM(H14:H20)),\"..........\")","v":".........."},null,{"$f":"IFERROR(IF(COUNT(J14:J20)=0,\"..........\",SUM(J14:J20)),\"..........\")","v":".........."},null,{"$f":"IFERROR(IF(COUNT(L14:L20)=0,\"..........\",SUM(L14:L20)),\"..........\")","v":".........."}]

{"sheet":"55","index":57,"n_rows":39,"n_cols":22,"rows_kept":39,"cut":false,"hidden":false,"merged":[[32,2,32,19],[27,4,27,12],[0,0,0,16],[10,8,10,14],[35,18,35,20],[11,8,11,14],[5,2,5,18],[17,2,17,16],[9,8,9,14],[34,2,34,18],[8,8,8,14],[33,2,33,18],[4,2,4,16],[1,0,1,16],[21,16,21,18],[13,8,13,14],[16,2,16,18],[2,0,2,16]]}
[{"$f":"عنوان!A13","v":0}]
["یادداشت های توضیحی صورت های مالی"]
[{"$f":"عنوان!A15","v":0}]
[]
[null,"35-11","36- ماليات پرداختنی"]
[null,null,"1-36- گردش حساب ماليات پرداختنی (شامل مانده حساب ذخیره و اسناد پرداختنی) به قرار زير است:"]
[]
[null,null,null,null,null,null,null,null,null,null,null,null,null,null,null,null,"14x4",null,"14x3"]
[null,null,null,null,null,null,null,null,"مانده در ابتداي سال",null,null,null,null,null,null,null,"..........",null,".........."]
[null,null,null,null,null,null,null,null,"ذخيره ماليات عملكرد سال",null,null,null,null,null,null,null,"..........",null,".........."]
[null,null,null,null,null,null,null,null,"تعديل ذخيره ماليات عملكرد سال‌هاي قبل",null,null,null,null,null,null,null,"..........",null,".........."]
[null,null,null,null,null,null,null,null,"پرداختی طی سال",null,null,null,null,null,null,null,"(..........)",null,"(..........)"]
[null,null,null,null,null,null,null,null,null,null,null,null,null,null,null,null,"..........",null,".........."]
[null,null,null,null,null,null,null,null,"پيش‌پرداخت‌هاي ماليات (یادداشت 22)",null,null,null,null,null,null,null,"(..........)",null,"(..........)"]
[null,null,null,null,null,null,null,null,null,null,null,null,null,null,null,null,"..........",null,".........."]
[]
[null,null,"36-36-1- طبق قوانین مالیاتی، شرکت در سال جاری از معافیت‌های ... و ... استفاده نموده است."]
[null,null,"2ـ36 ـ خلاصه وضعیت مالیات پرداختنی به شرح زیر است:"]
[null,null,null,null,null,null,null,null,null,null,null,null,null,null,null,null,null,null,"(مبالغ به میلیون ریال)"]
[]
[null,null,null,null,null,null,null,null,null,null,null,null,null,null,null,null,"مالیات"]
[null,null,null,null,null,null,null,null,null,null,null,null,null,null,null,null,"14x4",null,null,null,"14x3"]
[null,null,"سال \nمالی ",null,"سود \n(زیان) \nابرازی",null,"درآمد مشمول \nمالیات ابرازی ",null,"ابرازی ",null,"تشخیصی ",null,"قطعی ",null,"پرداختنی ",null,"پرداختنی ",null,"مانده پرداختنی ",null,"مالیات پرداختنی ","نحوه تشخیص"]
[null,null,"14x2",null,"..........",null,"..........",null,"..........",null,"..........",null,"-",null,"..........",null,"..........",null,"..........",null,"..........","علی راس"]
[null,null,"14x3",null,"..........",null,"..........",null,"..........",null,"..........",null,"-",null,"..........",null,"..........",null,"..........",null,"..........","رسیدگی به دفاتر"]
[null,null,"14x4",null,"..........",null,"..........",null,"..........",null,"-",null,"-",null,"-",null,"..........",null,"..........",null,"..........","رسیدگی نشده"]
[null,null,null,null,null,null,null,null,null,null,null,null,null,null,null,null,null,null,"..........",null,".........."]
[null,null,null,null,"پیش پرداخت مالیات (یادداشت 22)",null,null,null,null,null,null,null,null,null,null,null,null,null,{"$f":"IFERROR(IF(SUM(S24:S27)=0,\"..........\",SUM(S24:S27)),\"..........\")","v":".........."},null,{"$f":"IFERROR(IF(SUM(U24:U27)=0,\"..........\",SUM(U24:U27)),\"..........\")","v":".........."}]
[null,null,null,null,null,null,null,null,null,null,null,null,null,null,null,null,null,null,"..........",null,".........."]
[]
[]
[]
[null,null,"1ـ2ـ36- ماليات بر درآمد شركت براى كليه سال‌هاى قبل از 2x14 قطعى و تسويه شده است."]
[null,null,"2ـ2-36- شركت نسبت به ماليات تشخيصى براى عملكرد سال مالى 2x14 اعتراض كرده و موضوع توسط هيات حل ‌اختلاف مالياتى در دست رسيدگى است."]
[null,null,"36-3- جمع مبالغ پرداختی و پرداختنی شركت در پايان سال مورد گزارش بالغ بر ..... ميليون ريال كمتر از مجموع برگ‌هاى تشخيص يا قطعى مالياتى صادره توسط اداره امور مالياتى مربوط است كه مورد اعتراض قرار گرفته لذا بدهی بابت آنها در حساب‌ها منظور نشده است. "]
[null,null,null,null,null,null,null,null,null,null,null,null,null,null,null,null,null,null,"(مبالغ به میلیون ریال)"]
[]
[null,null,null,null,null,null,null,null,null,null,null,null,null,null,null,null,"مالیات پرداختی و \nپرداختنی ",null,"مالیات \nتشخیصی / قطعی ",null,"مازاد مورد مطالبه \nاداره امور مالیاتی "]
[null,null,null,null,null,null,null,null,null,null,null,null,null,null,null,null,"..........",null,"..........",null,".........."]

{"sheet":"56","index":58,"n_rows":34,"n_cols":12,"rows_kept":34,"cut":false,"hidden":false,"merged":[[27,2,27,5],[12,2,12,5],[14,2,14,5],[0,1,0,11],[1,1,1,11],[2,1,2,11],[32,2,32,5],[23,2,23,5],[13,2,13,5],[4,2,4,11],[3,2,3,11],[25,2,25,5],[19,2,19,5],[24,2,24,5],[9,2,9,5],[26,2,26,5],[22,2,22,5],[16,2,16,5],[7,2,7,5],[21,2,21,5],[8,2,8,5],[11,2,11,5],[20,2,20,5],[10,2,10,5]]}
[null,{"$f":"عنوان!A13","v":0}]
[null,"یادداشت های توضیحی صورت های مالی"]
[null,{"$f":"عنوان!A15","v":0}]
[null,null,"36-3-1- دلایل اصلی اختلاف مالیات پرداختی و پرداختنی با مالیات تشخیصی/قطعی به شرح زیر است:"]
[null,"35-79","36-4- اجزای عمده هزینه مالیات بر درآمد به شرح زیر است:"]
[null,"35-78"]
[null,null,null,null,null,null,null,null,null,"14x4",null,"14x3"]
[null,null,"مالیات جاری",null,null,null,null,null,null,"..........",null,".........."]
[null,null,"هزینه مالیات انتقالی مربوط به ايجاد بدهی مالیات انتقالی",null,null,null,null,null,null,"..........",null,".........."]
[null,null,"(درآمد مالیات انتقالی) مربوط به ايجاد دارایی مالیات انتقالی",null,null,null,null,null,null,"(........)",null,"(........)"]
[null,null,"هزینه مالیات انتقالی مربوط به برگشت دارایی مالیات انتقالی",null,null,null,null,null,null,"..........",null,".........."]
[null,null,"(درآمد مالیات انتقالی) مربوط به برگشت بدهی مالیات انتقالی",null,null,null,null,null,null,"(........)",null,"(........)"]
[null,null,"هزینه مالیات بر درآمد سال جاری",null,null,null,null,null,null,{"$f":"IFERROR(IF(COUNT(J8:J12)=0,\"..........\",SUM(J8:J12)),\"..........\")","v":".........."},null,{"$f":"IFERROR(IF(COUNT(L8:L12)=0,\"..........\",SUM(L8:L12)),\"..........\")","v":".........."}]
[null,null,"هزینه مالیات بر درآمد سال‌های قبل",null,null,null,null,null,null,{"$f":"IFERROR(IF(COUNT(J8:J13)=0,\"..........\",SUM(J8:J13)),\"..........\")","v":".........."},null,{"$f":"IFERROR(IF(COUNT(L8:L13)=0,\"..........\",SUM(L8:L13)),\"..........\")","v":".........."}]
[null,null,"هزینه مالیات بر درآمد عملیات در حال تداوم",null,null,null,null,null,null,{"$f":"IFERROR(IF(COUNT(J13:J14)=0,\"..........\",SUM(J13:J14)),\"..........\")","v":".........."},null,{"$f":"IFERROR(IF(COUNT(L13:L14)=0,\"..........\",SUM(L13:L14)),\"..........\")","v":".........."}]
[]
[null,null,"عملیات متوقف شده                      ",null,null,null,null,null,null,null,null,"(مبالغ به میلیون ریال)"]
[]
[null,null,null,null,null,null,null,null,null,"14x4",null,"14x3"]
[null,null,"مالیات جاری",null,null,null,null,null,null,"..........",null,".........."]
[null,null,"هزینه مالیات انتقالی مربوط به ايجاد بدهی مالیات انتقالی",null,null,null,null,null,null,"..........",null,".........."]
[null,null,"(درآمد مالیات انتقالی) مربوط به ايجاد دارایی مالیات انتقالی",null,null,null,null,null,null,"(........)",null,"(........)"]
[null,null,"هزینه مالیات انتقالی مربوط به برگشت دارایی مالیات انتقالی",null,null,null,null,null,null,"..........",null,".........."]
[null,null,"(درآمد مالیات انتقالی) مربوط به برگشت بدهی مالیات انتقالی",null,null,null,null,null,null,"(........)",null,"(........)"]
[null,null,"هزینه مالیات بر درآمد سال جاری",null,null,null,null,null,null,{"$f":"IFERROR(IF(COUNT(J20:J24)=0,\"..........\",SUM(J20:J24)),\"..........\")","v":".........."},null,{"$f":"IFERROR(IF(COUNT(L20:L24)=0,\"..........\",SUM(L20:L24)),\"..........\")","v":".........."}]
[null,null,"هزینه مالیات بر درآمد سال‌های قبل",null,null,null,null,null,null,{"$f":"IFERROR(IF(COUNT(J20:J25)=0,\"..........\",SUM(J20:J25)),\"..........\")","v":".........."},null,{"$f":"IFERROR(IF(COUNT(L20:L25)=0,\"..........\",SUM(L20:L25)),\"..........\")","v":".........."}]
[null,null,"هزینه مالیات بر درآمد/اثر مالیاتی عملیات متوقف شده (یادداشت 14)",null,null,null,null,null,null,{"$f":"IFERROR(IF(COUNT(J25:J26)=0,\"..........\",SUM(J25:J26)),\"..........\")","v":".........."},null,{"$f":"IFERROR(IF(COUNT(L25:L26)=0,\"..........\",SUM(L25:L26)),\"..........\")","v":".........."}]
[null,null,"\n\nمالیات مربوط به سایر اقلام سود و زیان جامع"]
[null,null,"(مبالغ به میلیون ریال)"]
[null,null,null,null,null,null,null,null,null,"14x4",null,"14x3"]
[null,null,"مالیات جاری",null,null,null,null,null,null,"..........",null,".........."]
[null,null,"مالیات انتقالی :"]
[null,null,"مالیات انتقالی مربوط به تجدید ارزیابی دارایی‌های ثابت مشهود",null,null,null,null,null,null,"..........",null,".........."]
[null,null,"..........",null,null,null,null,null,null,{"$f":"IFERROR(IF(COUNT(J31:J33)=0,\"..........\",SUM(J31:J33)),\"..........\")","v":".........."},null,{"$f":"IFERROR(IF(COUNT(L31:L33)=0,\"..........\",SUM(L31:L33)),\"..........\")","v":".........."}]

{"sheet":"57","index":59,"n_rows":35,"n_cols":21,"rows_kept":35,"cut":false,"hidden":false,"merged":[[33,2,33,3],[6,18,6,20],[13,18,13,20],[21,11,21,14],[22,18,22,20],[32,13,32,18],[32,2,32,3],[8,11,8,14],[27,18,27,20],[12,18,12,20],[10,11,10,14],[8,18,8,20],[6,11,6,14],[33,13,33,18],[19,18,19,20],[18,11,18,14],[28,18,28,20],[27,11,27,14],[25,18,25,20],[35,13,35,18],[21,18,21,20],[28,2,28,11],[3,2,3,20],[23,11,23,14],[24,18,24,20],[34,13,34,18],[15,18,15,20],[23,2,23,10],[22,11,22,14],[12,11,12,14],[4,2,4,20],[10,18,10,20],[10,2,10,9],[34,2,34,3],[26,11,26,14],[31,13,31,18],[31,2,31,3],[7,11,7,14],[26,18,26,20],[29,11,29,20],[25,11,25,14],[24,11,24,14],[9,18,9,20],[29,5,29,9],[18,18,18,20],[23,18,23,20],[16,11,16,14],[15,11,15,14],[30,13,30,18],[19,11,19,14],[16,18,16,20],[9,11,9,14],[7,18,7,20],[0,1,0,20],[1,1,1,20],[2,1,2,20],[13,11,13,14]]}
[null,{"$f":"عنوان!A13","v":0}]
[null,"یادداشت های توضیحی صورت های مالی"]
[null,{"$f":"عنوان!A15","v":0}]
[null,"35-80","36-5- صورت تطبیق هزینه مالیات بر درآمد سال جاری و حاصل ضرب سود حسابداری در نرخ(های) مالیات قابل اعمال به شرح زیر است:"]
[]
[]
[null,null,null,null,null,null,null,null,null,null,null,"14x4",null,null,null,null,null,null,"14x3"]
[null,null,"سود عملیات در حال تداوم قبل از مالیات",null,null,null,null,null,null,null,null,"..........",null,null,null,null,null,null,".........."]
[null,null,"سود (زیان) عملیات متوقف شده قبل از مالیات",null,null,null,null,null,null,null,null,"..........",null,null,null,null,null,null,"(..........)"]
[null,null,"سود حسابداری قبل از مالیات",null,null,null,null,null,null,null,null,{"$f":"IFERROR(IF(COUNT(L8:L9)=0,\"..........\",SUM(L8:L9)),\"..........\")","v":".........."},null,null,null,null,null,null,{"$f":"IFERROR(IF(COUNT(S8:S9)=0,\"..........\",SUM(S8:S9)),\"..........\")","v":".........."}]
[null,null,"هزینه مالیات بر درامد عملیات در حال تداوم و عملیات متوقف شده محاسبه شده با نرخ مالیات  25 درصد ",null,null,null,null,null,null,null,null,{"$f":"IFERROR(IF(COUNT(L8:L10)=0,\"..........\",SUM(L8:L10)),\"..........\")","v":".........."},null,null,null,null,null,null,{"$f":"IFERROR(IF(COUNT(S8:S10)=0,\"..........\",SUM(S8:S10)),\"..........\")","v":".........."}]
[null,null,"اثر درامدهای معاف از مالیات بر عملکرد:"]
[null,null,"..........",null,null,null,null,null,null,null,null,"(..........)",null,null,null,null,null,null,"(..........)"]
[null,null,"..........",null,null,null,null,null,null,null,null,"(..........)",null,null,null,null,null,null,"(..........)"]
[null,null,"اثر درامدهای مشمول مالیات به نرخ صفر:"]
[null,null,"..........",null,null,null,null,null,null,null,null,"(..........)",null,null,null,null,null,null,"(..........)"]
[null,null,"..........",null,null,null,null,null,null,null,null,"(..........)",null,null,null,null,null,null,"(..........)"]
[null,null,"اثر بخشودگی‌های مالیاتی:"]
[null,null,"تبصره 5 ماده 107 قانون مالیات‌های مستقیم",null,null,null,null,null,null,null,null,"(..........)",null,null,null,null,null,null,"(..........)"]
[null,null,"..........",null,null,null,null,null,null,null,null,"(..........)",null,null,null,null,null,null,"(..........)"]
[null,null,"اثر هزینه‌های غیر قابل قبول برای مقاصد مالیاتی:"]
[null,null,"..........",null,null,null,null,null,null,null,null,"..........",null,null,null,null,null,null,".........."]
[null,null,"..........",null,null,null,null,null,null,null,null,"..........",null,null,null,null,null,null,".........."]
[null,null,"هزینه مالیات بر درامد محاسبه شده با نرخ موثر مالیات ..... درصد (سال 3x14 با نرخ موثر مالیات ..... درصد)",null,null,null,null,null,null,null,null,"..........",null,null,null,null,null,null,".........."]
[null,null,"هزینه مالیات بر درامد عملیات در حال تداوم",null,null,null,null,null,null,null,null,{"$f":"IFERROR(IF(COUNT(L22:L24)=0,\"..........\",SUM(L22:L24)),\"..........\")","v":".........."},null,null,null,null,null,null,{"$f":"IFERROR(IF(COUNT(S22:S24)=0,\"..........\",SUM(S22:S24)),\"..........\")","v":".........."}]
[null,null,"هزینه مالیات بر درامد/اثر مالیاتی عملیات متوقف شده (یادداشت 14)",null,null,null,null,null,null,null,null,"..........",null,null,null,null,null,null,"(..........)"]
[]
[]
[null,null,"6-36- مالیات انتقالی مربوط به تفاوت‌های موقتی به شرح زیر است:"]
[null,null,null,null,null,"14x4",null,null,null,null,null,"14x3"]
[null,null,null,null,null,"دارایی مالیات\nانتفالی",null,"بدهی مالیات \nانتقالی",null,"خالص",null,"دارایی مالیات \nانتفالی",null,"بدهی مالیات \nانتقالی ",null,null,null,null,null,null,"خالص"]
[null,null,"حسابهای پرداختنی- مرخصی استفاده نشده کارکنان",null,null,"..........",null,"-",null,"..........",null,"..........",null,"-",null,null,null,null,null,null,".........."]
[null,null,"دارایی ثابت مشهود- تجدید ارزیابی",null,null,"..........",null,"..........",null,"..........",null,"..........",null,"-",null,null,null,null,null,null,"-"]
[null,null,".......... بابت ...... و بابت ......",null,null,"..........",null,"(..........)",null,"..........",null,"..........",null,"(..........)",null,null,null,null,null,null,"(..........)"]
[null,null,"دارایی (بدهی) مالیات انتقالی",null,null,{"$f":"IFERROR(IF(COUNT(F32:F34)=0,\"..........\",SUM(F32:F34)),\"..........\")","v":".........."},null,{"$f":"IFERROR(IF(COUNT(H32:H34)=0,\"..........\",SUM(H32:H34)),\"..........\")","v":".........."},null,{"$f":"IFERROR(IF(COUNT(J32:J34)=0,\"..........\",SUM(J32:J34)),\"..........\")","v":".........."},null,{"$f":"IFERROR(IF(COUNT(L32:L34)=0,\"..........\",SUM(L32:L34)),\"..........\")","v":".........."},null,{"$f":"IFERROR(IF(COUNT(N32:N34)=0,\"..........\",SUM(N32:N34)),\"..........\")","v":".........."},null,null,null,null,null,null,{"$f":"IFERROR(IF(SUM(U32:U34)=0,\"..........\",SUM(U32:U34)),\"..........\")","v":".........."}]